{"text_format":"1","workbook":"xlsx","n_sheets":6,"sheets":["INDIVIDUAL","JURÍDICA","LISTAS","DI","DJ","I-J"],"not_rendered":{"charts":0,"images":1,"macros":1,"external_links":1,"defined_names":48,"comments":0,"pivot_tables":0},"unopened":[],"bounds":{"document_bytes":16777216,"sheet_cells":100000,"rows_first":2000,"rows_last":500,"rows_between":2000,"halvings":0,"cell_chars":16384,"cell_head_chars":4096},"cells_cut":0,"cells_raw":0,"read":"whole","date_system":"1900"}

{"sheet":"INDIVIDUAL","index":0,"n_rows":41,"n_cols":11,"rows_kept":41,"cut":false,"hidden":false,"merged":[[42,2,42,7],[29,2,29,4],[29,5,29,12],[30,2,30,5],[30,6,30,8],[30,9,30,12],[39,6,39,9],[40,6,40,9],[35,1,35,12],[33,1,33,12],[24,2,24,6],[24,7,24,12],[25,2,25,4],[27,5,27,6],[27,7,27,8],[27,9,27,12],[25,5,25,12],[9,2,9,6],[9,8,9,12],[5,0,5,15],[20,8,20,9],[20,10,20,12],[4,0,4,15],[12,3,12,4],[12,10,12,11],[22,2,22,5],[22,6,22,12],[14,4,14,5],[14,7,14,9],[14,11,14,12],[16,2,16,4],[16,7,16,8],[16,9,16,12],[18,2,18,4],[18,8,18,12],[20,5,20,7],[7,2,7,5],[7,7,7,12]]}
[]
[]
[]
[]
["SOLICITUD DE INFORMACIÓN DE CLIENTE "]
["(INDIVIDUAL)"]
[]
[null,null,"Fecha Inicio Relación:",null,null,null,null,{"$f":"TODAY()","v":"2019-05-20"}]
[]
[]
[]
[]
[null,null,"NIT:",null,null,"Fecha de Nac.:",null,"Género:",null,"Masculino","Femenino"]
[]
[null,null,"Tel. Res.:",null,null,null,"Oficina:",null,null,null,"Cel.:"]
[]
[null,null,"Tipo de Doc.:",null,null,null,null,"No. Documento.:"]
[]
[null,null,"Estado Civil:"]
[]
[null,null,"Correo electrónico:",null,null,null,null,null,"Nacionalidad:"]
[]
[null,null,"Institución donde Labora:"]
[]
[null,null,"Actividad económica, Profesión u Oficio:"]
[null,null,"Dirección Fiscal:"]
[]
[null,null,"Departamento:",null,null,null,null,"Municipio:"]
[]
[null,null,"Dirección cobro y correspondencia:"]
[null,null,"Actúa en nombre propio:"]
[null,null,"El solicitante es Persona Expuesta Políticamente, familiar o asociado (PEP):"]
[]
[]
[]
[null,"Únicamente para pólizas de caución (fianzas) ante gobierno deberán responder la siguiente interrogante:"]
[]
[null,null,"El solicitante es Contratista o Proveedor del Estado (CPE)"]
[]
[]
[null,null,null,null,null,null,"Nombre, firma y código del funcionario de Seguros que autoriza la relación con el CPE"]

{"sheet":"JURÍDICA","index":1,"n_rows":40,"n_cols":10,"rows_kept":40,"cut":false,"hidden":false,"merged":[[39,6,39,10],[38,6,38,10],[21,1,21,4],[21,5,21,13],[29,1,29,9],[24,1,24,6],[24,8,24,13],[27,1,27,2],[27,7,27,8],[27,9,27,10],[27,11,27,13],[23,1,23,8],[34,1,34,13],[32,1,32,13],[4,0,4,15],[11,2,11,3],[11,5,11,6],[11,7,11,8],[11,10,11,13],[7,1,7,5],[7,6,7,13],[9,1,9,5],[9,6,9,13],[5,0,5,15],[13,2,13,3],[13,6,13,8],[13,9,13,13],[15,1,15,5],[15,6,15,13],[17,1,17,3],[17,4,17,13],[19,5,19,7],[19,8,19,9],[19,10,19,13]]}
[]
[]
[]
[]
[" SOLICITUD DE INFORMACIÓN DE CLIENTE"]
["(JURÍDICO)"]
[]
[null,"Fecha Inicio Relación:",null,null,null,null,{"$f":"TODAY()","v":"2019-05-20"}]
[]
[null,"Razón o Denominación Social:"]
[]
[null,"NIT:",null,null,null,"Fecha de constitución.:",null,null,null,"Nacionalidad:"]
[]
[null,"Tels.:",null,null,null,null,"Correo electrónico: "]
[]
[null,"Actividad económica (giro principal del negocio)."]
[]
[null,"Dirección Fiscal:"]
[]
[null,"Departamento:",null,null,null,null,null,null,"Municipio:"]
[]
[null,"Dirección cobro y correspondencia:"]
[]
[null,"Datos del Representante Legal "]
[]
[]
[]
[null,"Tipo de Doc.:",null,null,null,null,"No. Doc.:"]
[]
[null,"El Representante Legal  de la  entidad actúa en nombre propio."]
[null,"El Representante legal es Persona Expuesta Políticamente, familiar o asociado (PEP):"]
[]
[]
[]
[null,"Únicamente para pólizas de caución (fianzas) ante gobierno deberán responder las siguientes interrogantes:"]
[]
[null,"La entidad es Contratista o Proveedor de Estado (CPE)"]
[null,"El representante legal es Contratista o Proveedor del Estado (CPE)"]
[]
[null,null,null,null,null,null,"Nombre, firma y código del funcionario de Seguros que autoriza la relación con el CPE"]

{"sheet":"LISTAS","index":2,"n_rows":348,"n_cols":1,"rows_kept":348,"cut":false,"hidden":true,"merged":[]}
["Moneda"]
["Q"]
["$"]
[]
["ASEGURADO"]
["ASEGURADO Y PAGADOR"]
[]
["Casado (a)"]
["Soltero (a)"]
["Viudo (a)"]
["Unión de Hecho"]
[]
["DPI"]
["Pasaporte"]
[]
["Con Recargo - Nuevo Recargo"]
["SI "]
["NO"]
[]
["Producto"]
["AUTOMÓVILES"]
["TRANSPORTE"]
["INCENDIO Y LÍNEAS ALIADAS"]
["DIVERSOS"]
["RESPONSABILIDAD CIVIL"]
["AVIACIÓN"]
["BANQUEROS"]
[]
["Tipo de Prima"]
["Prima Anual"]
["Prima Única a Cobrar"]
[]
["Frecuencia"]
["Anual"]
["Mensual"]
["Bimensual"]
["Trimestral"]
["Semestral"]
[]
["Agentes"]
["1 - CONSEGUROS, CORREDOR DE SEGUROS, S.A."]
["2 - ARISA, CORREDORES DE SEGUROS, S.A."]
["3 - PROMOTORES UNITY - CORREDORES DE SEGUROS, S.A."]
["4 - CONSULTAS Y SERVICIOS, CORREDORES DE SEGUROS, S.A."]
["5 - GLOBAL CORREDORES DE SEGUROS, S.A."]
["6 - CORREDORES Y ASESORES PROFESIONALES DE SEGUROS, S.A."]
["11 - QUESADA CORREDOR DE SEGUROS, S.A."]
["13 - AGENCIA INDEPENDIENTE DE SEGUROS CONSEJEROS DE SEGUROS, S.A."]
["14 - ASESORES PARA EL DESARROLLO CORREDORES DE SEGUROS, S.A."]
["15 - AGENCIA DE SEGUROS Y FIANZAS ROTTMANN, S.A."]
["16 - GRUPO ELITE, AGENCIA INDEPENDIENTE DE SEGUROS Y FIANZAS"]
["17 - GEO SEGUROS, AGENCIA DE SEGUROS Y FIANZAS, S.A."]
["18 - AGENCIA GENERAL DE SERVICIOS EMPRESARIALES DE SEGUROS Y FIANZAS, S.A."]
["19 - TECNISEGUROS, CORREDORES DE SEGUROS"]
["20 - CORREDOR DE SEGUROS CONSULTORA PROFESIONAL, S.A."]
["21 - TODO RIESGO CORREDORES DE SEGUROS, S.A."]
["26 - ENLACE AGENCIA INDEPENDIENTE DE SEGUROS Y FIANZAS"]
["28 - AGENCIA INDEPENDIENTE DE SEGUROS Y FIANZAS RIESGO CUBIERTO"]
["32 - RUIZ MATAMOROS Y ASOCIADOS CORREDORES DE SEGUROS, SOCIEDAD ANONIMA"]
["35 - AGENCIA DE SEGUROS Y FIANZAS ROTTMANN BARRIOS"]
["36 - AGENCIA DE SEGUROS Y FIANZAS MENCOS & MENCOS, S.A."]
["39 - AGENCIA DE SEGUROS Y FIANZAS COFIÑO STAHL "]
["43 - AGENCIA DE SEGUROS Y FIANZAS QUEZADA, CEP"]
["49 - AGENCIA INDEPENDIENTE DE SEGUROS Y FIANZAS MULTIPROTECTORES"]
["51 - AGENCIA INDEPENDIENTE DE SEGUROS Y FIANZAS PRISMA"]
["52 - AGENCIA INDEPENDIENTE DE SEGUROS Y FIANZAS ESTRADA ROSALES"]
["53 - AGENCIA INDEPENDIENTE DE SEGUROS Y FIANZAS MARIO ALFONSO MENDEZ LOBOS"]
["54 - AGENCIA INDEPENDIENTE DE SEGUROS Y FIANZAS EL AMERICANO"]
["55 - AGENCIA INDEPENDIENTE DE SEGUROS PAREDES CAMARGO"]
["56 - AGENCIA DE SEGUROS Y FIANZAS HERPA"]
["57 - AGENCIA DE SEGUROS Y FIANZAS PAZ ILLESCAS"]
["58 - AGENCIA INDEPENDIENTE  DE SEGUROS Y FIANZAS QUETZALTENANGO"]
["60 - AGENCIA DE SEGUROS Y FIANZAS ALBRAM"]
["61 - AGENCIA DE SEGUROS Y FIANZAS INTERMEDIARIOS DE SEGUROS, S.A."]
["62 - AGENCIA INDEPENDIENTE DE SEGUROS Y FIANZAS PROTECCION SOCIAL "]
["69 - AGENCIA DE SEGUROS Y FIANZAS MARVEL"]
["70 - AGENCIA INDEPENDIENTE DE SEGUROS Y FIANZAS PABLO RENAN"]
["71 - AGENCIA INDEPENDIENTE DE SEGUROS Y FIANZAS CASTELLANOS  "]
["73 - AGENCIA INDEPENDIENTE DE SEGUROS Y FIANZAS ALVAREZ GIRON"]
["77 - AGENCIA INDEPENDIENTE DE SEGUROS Y FIANZAS ALVARADO ORTEGA"]
["78 - AGENCIA DE SEGUROS Y FIANZAS MEGASSEGUROS"]
["80 - AGENCIA INDEPENDIENTE DE SEGUROS Y FIANZAS NORMA LETICIA AGUILAR DE BASAGLIA"]
["81 - AGENCIA INDEPENDIENTE DE SEGUROS BOLAÑOS AMAYA CONSULTORES"]
["82 - AGENCIA INDEPENDIENTE DE SEGUROS MURGA S.A."]
["84 - AGENCIA INDEPENDIENTE DE SEGUROS Y FIANZAS RUBEN  ALONZO "]
["86 - AGENCIA INDEPENDIENTE DE SEGUROS Y FIANZAS ALFAMART"]
["88 - AGENCIA IND. DE SEGUROS Y FIANZAS GRUPO OLSA, S.A."]
["97 - AGENCIA INDEPENDIENTE DE SEGUROS Y FIANZAS GRAN VILLA"]
["103 - AGENCIA DE SEGUROS Y FIANZAS BUENAVENTURA"]
["105 - CORREDORES DE SEGUROS, ASESORIA Y CONSULTORIA, S.A."]
["106 - AGENCIA DE FIANZAS Y SEGUROS APROFISA, S.A."]
["109 - AGENCIA DE SEGUROS Y FIANZAS CENTRO SEGUROS, S.A."]
["113 - AGENCIA INDEPENDIENTE DE SEGUROS Y FIANZAS DISIFER"]
["115 - AGENCIA INDEPENDIENTE DE SEGUROS Y FIANZAS LOPEZ MEJIA"]
["155 - AGENCIA INDEPENDIENTE DE SEGUROS FIANZAS BALSELLS CONDE"]
["215 - AGENCIA INDEPENDIENTE DE SEGUROS, FIANZAS E INVERSIONES SEFI, S. A."]
["244 - CORREDORES DE SEGUROS ASESSA, S.A."]
["246 - AGENCIA INDEPENDIENTE DE SEGUROS Y FIANZAS LA CONTINENTAL"]
["247 - AGENCIA DE SEGUROS Y FIANZAS DONALD RODNEY FRANK MATHEU, S.A."]
["248 - AGENCIA INDEPENDIENTE DE SEGUROS Y FIANZAS CONTINENTAL MOTORES, S.A."]
["251 - ALTERNATIVA AGENCIA INDEPENDIENTE DE SEGUROS Y FIANZAS "]
["257 - SRV CORREDOR DE SEGUROS, S.A."]
["259 - AGENCIA DE SEGUROS Y FIANZAS ADESPA"]
["261 - CORREDORES DE SEGUROS Y FIANZAS BUCHHALTER & NUÑEZ"]
["263 - AGENCIA IND.  DE SEGUROS Y FIANZAS SANCHEZ PAZ"]
["267 - AGENCIA DE SEGUROS Y FIANZAS S.D.R"]
["269 - AGENCIA IND. DE SEGUROS Y FIANZAS ASESORES Y ADM. DE SEGUROS AYASEG"]
["275 - GL CONSULTORES Y ASESORES, AGENCIA DE SEGUROS Y FIANZAS, S.A."]
["276 - AGENCIA DE SEGUROS AGUIRRE MURPHY"]
["277 - AGENCIA DE SEGUROS Y FIANZAS AGROMERCANTIL, S.A."]
["282 - AGENCIA INDEPENDIENTE DE SEGUROS Y FIANZAS PUNTO SEGURO"]
["284 - AGENCIA INDEPENDIENTE DE SEGUROS Y FIANZAS VISION GLOBAL"]
["286 - AGENCIA DE SEGUROS Y FIANZAS COBERTURA, S.A."]
["287 - AGENCIA INDEPENDIENTE DE SEGUROS Y FIANZAS ASTURIAS"]
["289 - MACROSEGUROS, CORREDORES DE SEGUROS, S.A."]
["292 - AGENCIA INDEPENDIENTE DE SEGUROS Y FIANZAS POLANCO CORDON "]
["296 - AGENCIA INDEPENDIENE DE SEGUROS Y FIANZAS URIZAR SPELL "]
["299 - AGENCIA DE SEGUROS Y FIANZAS ASTUVA"]
["301 - AGENCIA INDEPENDIENTE DE SEGUROS AVP"]
["305 - AGENTE DE SEGUROS ACCROSS CONSULTING GROUP, S.A."]
["306 - HUMANA, CORREDORES DE SEGUROS, S.A."]
["307 - JGL CORREDORES DE SEGUROS, S.A."]
["309 - AGENTE INDEPENDIENTE DE SEGUROS Y FIANZAS ASEGRUP, S.A. "]
["310 - SOMIT, CORREDORES DE SEGUROS, S.A."]
["311 - AGENCIA DE SEGUROS Y FIANZAS TIVOLI"]
["312 - GRUPO COFISSA CORREDORES DE SEGUROS, S.A."]
["314 - AGENCIA DE SEGUROS SAN MIGUEL"]
["316 - AGENCIA INDEPENDIENTE DE SEGUROS Y FIANZAS GIOVANNI GONZALEZ ALVAREZ"]
["317 - INTEGRA, AGENCIA DE SEGUROS Y FIANZAS"]
["319 - AGENCIA INDEPENDIENTE DE SEGUROS Y FIANZAS FLORES ROMERO "]
["324 - AGENCIA DE SEGUROS Y FIANZAS CAYO"]
["326 - H&G CORREDORES DE SEGUROS, S. A. "]
["327 - AGENCIA DE SEGUROS Y FIANZAS QUE SI "]
["328 - AGENCIA DE SEGUROS Y FIANZAS MULTI-SEGUROS, S.A."]
["331 - AGENCIA INDEPENDIENTE DE SEGUROS Y FIANZAS LEONEL GARCIA PAREDES"]
["332 - AGENCIA INDEPENDIENTE DE SEGUROS Y FIANZAS GARANTIA EN SEGUROS, S.A."]
["334 - AGENCIA IND. DE SEGUROS Y FIANZAS CRISTO REY"]
["336 - PROTEGEMOS CORREDOR DE SEGUROS, S.A."]
["337 - PROINTEL CORREDOR DE SEGUROS, S.A."]
["340 - AGENCIA DE ASESORES DE SEGUROS Y FIANZAS FIGUEROA Y FIGUEROA, S.A."]
["342 - AGENCIA INDEPENDIENTE DE SEGUROS Y FIANZAS GAS ASESORES DE SEGUROS"]
["344 - CORREDORES DE SEGUROS, GRUPO INTEGRIDAD, RESPONSABILIDAD Y EXCELENCIA EN SEGUROS, S.A."]
["345 - AGENCIA INDEPENDIENTE DE SEGUROS Y FIANZAS CIFUENTES"]
["346 - SEGUROS VALDIVIA, CORREDORES DE SEGUROS, S.A."]
["347 - AGENCIA INDEPENDIENTE DE SEGUROS Y FIANZAS MARROQUIN TIELMAN"]
["348 - AGENCIA DE SEGUROS INDEPENDIENTES ESTRELLA QUINTEROS MELENDEZ"]
["349 - AGENCIA DE SEGUROS Y FIANZAS H. ACE"]
["350 - AGENCIA INDEPENDIENTE DE SEGUROS Y FIANZAS ARMANDO SUAREZ MENDEZ"]
["351 - SOLIDEZ PROFESIONAL, CORREDORES DE SEGUROS, S.A."]
["352 - AGENCIA INDEPENDIENTE DE SEGUROS Y FIANZAS EDGAR RENE BOLAÑOS LAGOS"]
["353 - ASESORIA DE ASEGURAMIENTOS AGENCIA INDEPENDIENTE DE SEGUROS S.A."]
["354 - AGENCIA DE SEGUROS Y FIANZAS LAS AMERICAS"]
["355 - AGENCIA INDEPENDIENTE DE SEGUROS Y FIANZAS SERGIO ALFONSO VALLE BARRIOS"]
["356 - AGENCIA INDEPENDIENTE  DE SEGUROS Y FIANZAS IBC"]
["357 - AGENCIA DE SEGUROS Y FIANZAS ROSALINDA LOPEZ MALDONADO"]
["358 - AGENCIA INDEPENDIENTE DE SEGUROS Y FIANZAS ORTIZ Y GONZALEZ"]
["359 - JBARILLAS AGENCIA INDEPENDIENTE DE SEGUROS Y FIANZAS"]
["360 - AGENCIA INDEPENDIENTE DE SEGUROS Y FIANZAS ERICK PALACIOS"]
["362 - PORTAFOLIO AGENCIA INDEPENDIENTE DE SEGUROS "]
["363 - AGENCIA INDEPENDIENTE DE SEGUROS ETELVINA RALDA DE JEREZ"]
["364 - AGENCIA INDEPENDIENTE DE SEGUROS Y FIANZAS COBAR AGUILERA"]
["365 - AGENCIA INDEPENDIENTE DE SEGUROS Y FIANZAS JULIO ZAGHI"]
["366 - SEFIANCI AGENCIA DE SEGUROS Y FIANZAS "]
["367 - INTERSEGUROS, AGENCIA DE SEGUROS Y FIANZAS, S.A."]
["368 - AGENCIA INDEPENDIENTE DE SEGUROS Y FIANZAS PEREZ CORDOVA"]
["369 - AGENCIA INDEPENDIENTE DE SEGUROS Y FIANZAS ANNABELLA MENENDEZ"]
["370 - AGENCIA INDEPENDIENTE DE SEGUROS Y FIANZAS EN GRAL SEFISER"]
["371 - AGENCIA INDEPENDIENTE DE SEGUROS Y FIANZAS RODRIGUEZ CHANG"]
["372 - AGENCIA INDEPENDIENTE DE SEGUROS Y FIANZAS BEMORA"]
["375 - TRES R`S CORREDORES DE SEGUROS"]
["376 - AGENCIA DE SEGUROS Y FIANZAS IBF, S.A."]
["377 - AGENCIA IND.  DE SEGUROS Y FIANZAS MIGUEL ANGEL RIOS MENDOZA"]
["379 - AGENCIA DE SEGUROS Y FIANZAS GUERRA"]
["380 - AGENCIAS INTEGRALES DE SEGUROS, S.A."]
["381 - GRUCONSA CORREDORES DE SEGUROS"]
["382 - AGENCIA DE SEGUROS Y FIANZAS CUSPIDE"]
["383 - AGENCIA INDEPENDIENTE DE SEGUROS Y FIANZAS DMB PROFESIONAL"]
["384 - AGENCIA INDEPENDIENTE DE SEGUROS Y FIANZAS Y MERCADERIA EN GENERAL"]
["385 - AGENCIA DE SEGUROS Y FIANZAS LA CORTEZA, S.A."]
["386 - AGENCIA IND. DE SEGUROS Y FIANZAS PROSEC"]
["387 - AGENTE DE SEGUROS INDEPENDIENTE PROTECCIÓN ACTIVA, S. A."]
["388 - Agencia Independiente de Seguros y Fianzas Betzayda Lara"]
["389 - AGENCIA DE SEGUROS Y FIANZAS VALIDAT, S.A."]
["390 - AGENCIA DE SEGUROS Y FIANZAS ESCOBEDO "]
["391 - CIRO A. MOLINA CORREDORES DE SEGUROS, SOCIEDAD ANONIMA"]
["392 - AGENCIA INDEPENDIENTE DE SEGUROS Y FIANZAS UNIVERSAL ELITE ASOCIADOS GUATEMALA, S.A."]
["393 - AGENCIA INDEPENDIENTE DE SEGUROS Y FIANZAS MULTIPLE"]
["394 - AGENCIA INDEPENDIENTE DE SEGUROS Y FIANZAS INTERSEGUROS HERRERA, S.A."]
["395 - AGENCIA INDEPENDIENTE DE SEGUROS Y FIANZAS REAL, S.A."]
["396 - AGENCIA DE SEGUROS, SEGUROS EFICIENTES, S.A."]
["397 - AGENCIA INDEPENDIENTE DE SEGUROS Y FIANZAS SEDEL"]
["398 - AGENCIA INDEPENDIENTE DE SEGUROS Y FIANZAS CASTELLANOS BONILLA"]
["399 - AGENCIA INDEPENDIENTE DE SEGUROS Y FIANZAS LUIS FERNANDO CUSTODIO"]
["400 - CORREDORA DE SEGUROS GRUPO PANFER S.A. / CORREDORA DE SEGUROS ASFIASA"]
["401 - AGENCIA INDEPENDIENTE DE SEGUROS Y FIANZAS FLORES ECHEVERRIA"]
["402 - AGENCIA INDEPENDIENTE DE SEGUROS ENPUNTO"]
["403 - AGENCIA INDEPENDIENTE DE SEGUROS Y FIANZAS ARREND"]
["404 - AGENCIA INDEPENDIENTE DE SEGUROS Y FIANZAS INNOVA"]
["405 - AGENCIA DE SEGUROS Y FIANZAS ALVIN BARRIOS"]
["406 - CORREDORA DE SEGUROS NOVA, S.A."]
["407 - CLAVE MORSE, AGENCIA DE SEGUROS"]
["410 - CORREDORES DE SEGUROS MONTANA, S.A."]
["411 - AGENIA INDEPENDIENTE DE SEGUROS Y FIANZAS CENTURION S.A."]
["413 - ANAMAR CORREDORES DE SEGUROS, S.A."]
["414 - SEGUROS CORPORATIVOS, CORREDORES DE SEGUROS, S.A."]
["415 - AGENCIA DE SEGUROS INDEPENDIENTE ASESORIA INTEGRAL EN RIESGOS"]
["416 - VIDA, CORREDOR DE SEGUROS, S.A."]
["417 - AGENCIA DE SEGUROS Y FIANZAS GERMANIA, S.A."]
["418 - AGENCIA DE SEGUROS Y FIANZAS TORRE FUERTE"]
["419 - AGENCIA INDEPENDIENTE DE SEGUROS Y FIANZAS EXPROSEGUROS"]
["420 - PREVIENE, CORREDOR DE SEGUROS, S.A."]
["421 - AGENCIA INDEPENDIENTE DE SEGUROS ASITENCIA TECNICA"]
["422 - AGENCIA INDEPENDIENTE DE SEGUROS Y FIANZAS PADILLA"]
["423 - AGENCIA INDEPENDIENTE DE SEGUROS Y FIANZAS MULTINACIONAL DE SEGUROS"]
["425 - LETICIA PORTILLO AGENCIA INDEPENDIENTE DE SEGUROS Y FIANZAS"]
["426 - AGENCIA INDEPENDIENTE DE SEGUROS Y FIANZAS HENRY ALFONSO NAVARRO QUIÑONEZ"]
["427 - AGENCIA INDEPENDIENTE DE SEGUROS Y FIANZAS GAMALIEL, S.A."]
["428 - AGENCIA DE SEGUROS Y FIANZAS ESTELA NOEMI GUEVARA ALFARO"]
["429 - AGENCIA DE SEGUROS AURA MARINA DOMINGUEZ"]
["430 - CORREDORES DE SEGUROS Y FIANZAS G ASOCIADOS, S.A."]
["431 - R Y R CORREDORES DE SEGUROS"]
["432 - MI SEGURO, CORREDORES DE SEGUROS, S.A."]
["433 - AGENCIA INDEPENDIENTE DE SEGUROS MULTIPLES (UTIL VALOR)"]
["434 - AGENCIA INDEPENDIENTE DE SEGUROS Y FIANZAS PROTECTORA DE RIESGOS, S.A."]
["436 - CORREDORES DE SEGUROS TODO SEGURO, S.A."]
["437 - AGENCIA INDEPENDIENTE DE SEGUROS KLASS"]
["439 - ASESORIA PROTECCION Y SERVICIOS CORREDORES DE SEGUROS, S.A."]
["440 - PBS, CORREDORES DE SEGUROS, S.A."]
["443 - GRUPO PIME CORREDORES DE SEGUROS, S.A."]
["444 - C.E.S. ASESORES, CORREDORES DE SEGUROS, S.A. / EXACTA"]
["445 - AGENCIA INDEPENDIENTE DE SEGUROS Y FIANZAS MERCADO LIBRE DE SEGUROS, S.A."]
["446 - INMOBILIARIA E INVERSIONES MARTINEZ, AGENCIA DE SEGUROS Y FIANZAS, S.A."]
["447 - AGENCIA INDEPENDIENTE DE SEGUROS Y FIANZAS ASJESA"]
["448 - AGENCIA INDEPENDIENTE DE SEGUROS Y FIANZAS LUIS SALVADOR"]
["449 - AGENCIA INDEPENDIENTE DE SEGUROS LA EXCELENCIA "]
["450 - ASEGFIAZA CORREDOR DE SEGUROS"]
["451 - AGENCIA DE SEGUROS Y FIANZAS LA VISION, S.A."]
["452 - CORREDORES DE SEGUROS EMPRESARIALES, S.A."]
["453 - LOTUS, CORREDORES DE SEGUROS, S.A."]
["454 - AGENCIA DE SEGUROS Y FIANZAS CORADO SOLORZANO"]
["455 - AGENCIA INDEPENDIENTE DE SEGUROS DUARTE MARROQUIN "]
["456 - AGENCIA INDEPENDIENTE DE SEGUROS Y FIANZAS RIMAR"]
["462 - AGENCIA DE SEGUROS INDEPENDIENTE J&S"]
["464 - AGENCIA INDEPENDIENTE DE SEGUROS BAYRON OTONIEL GONZALEZ OROZCO"]
["465 - ANGENCIA IND. DE SEGUROS Y FIANZAS J ALONZO ANLEU"]
["466 - AGENCIA DE SEGUROS Y FIANZAS TOTAL COBERTURA"]
["467 - AGENCIA DE SEGUROS Y FIANZAS RC SEGUROS"]
["468 - AGENCIA DE SEGUROS Y FIANZAS ESPECIALIZADOS, S.A."]
["470 - AGENCIA INDEPENDIENTE DE SEGUROS Y FIANZAS GLOBALES"]
["471 - AGENCIA IND. DE SEGUROS Y FIANZAS JOSE LUIS ORTIZ SAMAYOA"]
["472 - AGENCIA INDEPENDIENTE DE SEGUROS Y FIANZAS ESCOBEDO GONZALEZ"]
["473 - AGENCIA IND. DE SEGUROS Y FIANZAS ANFITRIONIKA DE SEGUROS, S.A."]
["474 - HORIZONTE CORREDORES DE SEGUROS, S.A."]
["475 - AGENCIA INDEPENDIENTE DE SEGUROS Y FIANZAS JMJ"]
["476 - CORREDORES DE SEGUROS ALIANZA DINAMICA, S.A. (ADISSA)"]
["477 - ALA FORTE CORREDORES DE SEGUROS"]
["478 - AGENCIA INDEPENDIENTE DE SEGUROS Y FIANZAS AUTO SEGURO"]
["479 - TRUST CORREDORES DE SEGUROS, S.A."]
["480 - AGENCIA INDEPENDIENTE DE SEGUROS Y FIANZAS MUNDO SEGURO"]
["481 - AGENCIA INDEPENDIENTE DE SEGUROS Y FIANZAS SOLVENCIA"]
["482 - AGENCIA INTEGRADA DE SEGUROS AIS"]
["484 - AGENCIA INDEPENDIENTE  DE SEGUROS Y FIANZAS GIRON DARDON"]
["485 - DEL VALLE CORREDORES DE SEGUROS Y FIANZAS"]
["486 - AGENCIA INDEPENDIENTE DE SEGUROS CALI"]
["487 - AGENCIA IND. DE SEGUROS MENOS PRIMA"]
["489 - FORTALEZA CORREDORES DE SEGUROS, S.A"]
["490 - SEDICONFIA"]
["491 - UBALDO MARTIN HERNANDEZ"]
["492 - INFINITY RISK MANAGEMENT AGENCIA DE SEGUROS"]
["493 - MUTUAL CORREDORES DE SEGUROS, S.A."]
["494 - AGENCIA INDEPENDIENTE DE SEGUROS Y FIANZAS ROLDAN CASTILLO"]
["495 - AGENCIA INDEPENDIENTE DE ASESORIA Y SEGUROS ZIVOT"]
["496 - ARNOLDO ENRIQUE DEL VALLE LEON"]
["497 - AGENCIA INDEPENDIENTE DE SEGUROS Y FIANZAS MG CONSULTORES"]
["498 - AGENCIA INDEPENDIENTE DE SEGUROS Y FIANZAS MONTERROSO"]
["499 - CENTRAL DE NEGOCIOS CORREDORES DE SEGUROS, S.A."]
["500 - AGENCIA INDPENDIENE DE SEGUROS Y FIANZAS MVN"]
["501 - AGENCIA DE SEGUROS INDEPENDIENTES COARSA"]
["502 - CORREDORES DE SEGUROS WOA S.A."]
["503 - AGENCIA INDEPENDIENTE DE SEGUROS EL SEGURO"]
["504 - MAJOR MEDICAL & LIFE CORREDORES DE SEGUROS S.A."]
["505 - SEGUROS ANTIGUA - CORREDORES DE SEGUROS"]
["506 - AGENCIA INDEPENDIENTE DE SEGUROS RS"]
["507 - AGENCIA INDEPENDIENTE DE SEGUROS Y FIANZAS ROLANDO ENRIQUE ARCIA"]
["508 - AGENCIA INDEPENDIENTE DE SEGUROS Y FIANZAS CAS"]
["509 - FC CORREDORES DE SEGUROS Y FIANZAS S.A."]
["510 - G&N CORREDORES DE SEGUROS S.A."]
["511 - TOTAL PROTECCION AGENCIA DE SEGUROS Y FIANZAS"]
["512 - AGENCIA INDEPENDIENTE DE SEGUROS Y FIANZAS JJ ASESORES"]
["513 - ASESORES INDEPENDIENTES Y CORREDOR DE SEGUROS S.A."]
["514 - PEGASO CORREDORES DE SEGUROS"]
["515 - AGENCIA DE SEGUROS INDEPENDIENTE"]
["516 - CORREDORES DE SEGUROS MORA"]
["517 - ASENSA AGENTE INDEPENDIENTE DE SEGUROS "]
["518 - PROVESA CORREDORES DE SEGUROS"]
["519 - AGENCIA INDEPENDIENTE DE SEGUROS Y FIANZAS SOLIDA"]
["520 - SEGUROS E&A CORREDORES DE SEGUROS S.A."]
["521 - AGENCIA INDEPENDIENTE DE SEGUROS Y FIANZAS PRONTO SEGURO"]
["522 - AGENCIA DE SEGUROS Y FIANZAS TRANSCORP "]
["523 - AGENCIA INDEPENDIENTE DE SEGUROS Y FIANZAS MARANELLO S.A"]
["524 - AGENCIA DE SEGUROS DARUE S.A."]
[]
[]
[]
["ASEGURADO"]
["ASEGURADO Y PAGADOR"]
[]
["PAGADOR"]
["ASEGURADO ADICIONAL"]
["PAGADOR Y ASEGURADO ADICIONAL"]
[]
[]
["ANEXO CON MOVIMIENTO DE PRIMA - AJUSTE DE TARIFA O CONDICIONES DE LA POLIZA"]
["ANEXO CON MOVIMIENTO DE PRIMA - AMPLIACIÓN DE VIGENCIA"]
["ANEXO CON MOVIMIENTO DE PRIMA - AUMENTO DE SUMAS ASEGURADAS"]
["ANEXO CON MOVIMIENTO DE PRIMA - DISMINUCIÓN DE SUMA ASEGURADA"]
["ANEXO CON MOVIMIENTO DE PRIMA - DISMINUCIÓN DE VIGENCIA"]
["ANEXO CON MOVIMIENTO DE PRIMA - EXCLUSIÓN DE COBERTURAS Y BENEFICIOS"]
["ANEXO CON MOVIMIENTO DE PRIMA - EXCLUSIÓN DE VEHÍCULOS"]
["ANEXO CON MOVIMIENTO DE PRIMA - EXTENSIÓN TERRITORIAL"]
["ANEXO CON MOVIMIENTO DE PRIMA - INCLUSIÓN DE COBERTURAS CLAUSULAS O BENEFICIOS"]
["ANEXO CON MOVIMIENTO DE PRIMA - INCLUSIÓN DE EQUIPO ESPECIAL"]
["ANEXO CON MOVIMIENTO DE PRIMA - INCLUSIÓN DE VEHÍCULOS"]
["ANEXO CON MOVIMIENTO DE PRIMA - SUSTITUCIÓN DE BIEN ASEGURADO"]
["ANEXO SIN VALOR - ACLARACION DE DATOS"]
["ANEXO SIN VALOR - INCLUSIÓN DE BENEFICIOS SIN COBRO"]
["ANEXO SIN VALOR - MODIFICACION DE DATOS "]
["ANEXO SIN VALOR - MODIFICACIÓN DE DEDUCIBLES"]
["ANEXO SIN VALOR - SUSTITUCIÓN DE VEHÍCULOS SIN MOVIMIENTO DE PRIMA"]
["ANULACIÓN DE PÓLIZA - A SOLICITUD DE LA COMPAÑÍA ASEGURADORA"]
["ANULACIÓN DE PÓLIZA - A SOLICITUD DEL ASEGURADO"]
["ANULACIÓN DE PÓLIZA - AL VENCIMIENTO"]
["ANULACIÓN DE PÓLIZA - FALTA DE PAGO"]
["ANULACIÓN DE PÓLIZA - POR RECLAMO"]
["REEMISIÓN DE PÓLIZA O ANEXO POR  - CAMBIO DE NOMBRE"]
["REEMISIÓN DE PÓLIZA O ANEXO POR - CAMBIO EN LA FORMA DE PAGO"]
["REEMISIÓN DE PÓLIZA O ANEXO POR - CORRECCIÓN DE DATOS"]
["REEMISIÓN DE PÓLIZA O ANEXO POR - CORRECCIÓN O MODIFICACION DE PRIMAS"]
["ANEXO DE DECLARACION MENSUAL"]
[]
[]
["ANU -"]
["DEC -"]
["ERR -"]
["EXC -"]
["INC -"]
["MOD -"]
["REE -"]

{"sheet":"DI","index":3,"n_rows":36,"n_cols":28,"rows_kept":36,"cut":false,"hidden":true,"merged":[]}
[]
[]
[]
[null,null,null,"01-Guatemala","02-Sacatepéquez","03-Chimaltenango","04-El Progreso","05-Escuintla","06-Santa Rosa","07-Sololá","08-Totonicapán","09-Quetzaltenango","10-Suchitepéquez","11-Retalhuleu","12-San Marcos","13-Huehuetenango","14-El Quiché","15-Baja Verapaz","16-Alta Verapaz","17-Petén","18-Izabal","19-Zacapa","20-Chiquimula","21-Jalapa","22-Jutiapa",null,"Formula","Final"]
["Departamento",null,null,"0101-Guatemala","0201-Antigua Guatemala","0301-Chimaltenango","0401-Guastatoya","0501-Escuintla","0601-Cuilapa","0701-Sololá","0801-Totonicapán","0901-Quetzaltenango","1001-Mazatenango","1101-Retalhuleu","1201-San Marcos","1301-Huehuetenango","1401-Santa Cruz del Quiché","1501-Salamá","1601-Cobán","1701-Flores (Santa Elena)","1801-Puerto Barrios","1901-Zacapa","2001-Chiquimula","2101-Jalapa","2201-Jutiapa",null,{"$f":"IF(INDIVIDUAL!$F$28=DI!$D$4,DI!D5,IF(INDIVIDUAL!$F$28=DI!$E$4,DI!E5,IF(INDIVIDUAL!$F$28=DI!$F$4,DI!F5,IF(INDIVIDUAL!$F$28=DI!$G$4,DI!G5,IF(INDIVIDUAL!$F$28=DI!$H$4,DI!H5,IF(INDIVIDUAL!$F$28=DI!$I$4,DI!I5,IF(INDIVIDUAL!$F$28=DI!$J$4,DI!J5,IF(INDIVIDUAL!$F$28=DI!$K$4,DI!K5,IF(INDIVIDUAL!$F$28=DI!$L$4,DI!L5,IF(INDIVIDUAL!$F$28=DI!$M$4,DI!M5,IF(INDIVIDUAL!$F$28=DI!$N$4,DI!N5,IF(INDIVIDUAL!$F$28=DI!$O$4,DI!O5,IF(INDIVIDUAL!$F$28=DI!$P$4,DI!P5,IF(INDIVIDUAL!$F$28=DI!$Q$4,DI!Q5,IF(INDIVIDUAL!$F$28=DI!$R$4,DI!R5,IF(INDIVIDUAL!$F$28=DI!$S$4,DI!S5,IF(INDIVIDUAL!$F$28=DI!$T$4,DI!T5,IF(INDIVIDUAL!$F$28=DI!$U$4,DI!U5,IF(INDIVIDUAL!$F$28=DI!$V$4,DI!V5,IF(INDIVIDUAL!$F$28=DI!$W$4,DI!W5,IF(INDIVIDUAL!$F$28=DI!$X$4,DI!X5,IF(INDIVIDUAL!$F$28=DI!$Y$4,DI!Y5,\" \"))))))))))))))))))))))","v":" "},{"$f":"IF(AA5=0,\"\",AA5)","v":" "}]
["Código","Descripción","concatenar","0102-Santa Catarina Pínula","0202-Jocotenango","0302-San José Poaquil","0402-Morazán","0502-Santa Lucía Cotzumalguapa","0602-Barberena","0702-San José Chacayá","0802-San Cristóbal Totonicapan","0902-Salcajá","1002-Cuyotenango","1102-San Sebastián","1202-San Pedro Sacatepéquez","1302-Chiantla","1402-Chiché","1502-San Miguel Chicaj","1602-Santa Cruz Verapaz","1702-San José","1802-Lívingston","1902-Estanzuela","2002-San José La Arada","2102-San Pedro Pínula","2202-El Progreso",null,{"$f":"IF(INDIVIDUAL!$F$28=DI!$D$4,DI!D6,IF(INDIVIDUAL!$F$28=DI!$E$4,DI!E6,IF(INDIVIDUAL!$F$28=DI!$F$4,DI!F6,IF(INDIVIDUAL!$F$28=DI!$G$4,DI!G6,IF(INDIVIDUAL!$F$28=DI!$H$4,DI!H6,IF(INDIVIDUAL!$F$28=DI!$I$4,DI!I6,IF(INDIVIDUAL!$F$28=DI!$J$4,DI!J6,IF(INDIVIDUAL!$F$28=DI!$K$4,DI!K6,IF(INDIVIDUAL!$F$28=DI!$L$4,DI!L6,IF(INDIVIDUAL!$F$28=DI!$M$4,DI!M6,IF(INDIVIDUAL!$F$28=DI!$N$4,DI!N6,IF(INDIVIDUAL!$F$28=DI!$O$4,DI!O6,IF(INDIVIDUAL!$F$28=DI!$P$4,DI!P6,IF(INDIVIDUAL!$F$28=DI!$Q$4,DI!Q6,IF(INDIVIDUAL!$F$28=DI!$R$4,DI!R6,IF(INDIVIDUAL!$F$28=DI!$S$4,DI!S6,IF(INDIVIDUAL!$F$28=DI!$T$4,DI!T6,IF(INDIVIDUAL!$F$28=DI!$U$4,DI!U6,IF(INDIVIDUAL!$F$28=DI!$V$4,DI!V6,IF(INDIVIDUAL!$F$28=DI!$W$4,DI!W6,IF(INDIVIDUAL!$F$28=DI!$X$4,DI!X6,IF(INDIVIDUAL!$F$28=DI!$Y$4,DI!Y6,\" \"))))))))))))))))))))))","v":" "}," "]
["01","Guatemala",{"$f":"CONCATENATE(A7,\"-\",B7)","v":"01-Guatemala"},"0103-San José Pínula","0203-Pastores","0303-San Martín Jilotepeque","0403-San Agustín Acasaguastlán","0503-La Democracia","0603-Santa Rosa De Lima","0703-Santa María Visitación","0803-San Francisco El Alto","0903-Olintepeque","1003-San Francisco Zapotitlán","1103-Santa Cruz Muluá","1203-San Antonio Sacatepéquez","1303-Malacatancito","1403-Chinique","1503-Rabinal","1603-San Cristóbal Verapaz","1703-San Benito","1803-El Estor","1903-Río Hondo","2003-San Juan Ermita","2103-San Luis Jilotepeque","2203-Santa Catarina Mita",null,{"$f":"IF(INDIVIDUAL!$F$28=DI!$D$4,DI!D7,IF(INDIVIDUAL!$F$28=DI!$E$4,DI!E7,IF(INDIVIDUAL!$F$28=DI!$F$4,DI!F7,IF(INDIVIDUAL!$F$28=DI!$G$4,DI!G7,IF(INDIVIDUAL!$F$28=DI!$H$4,DI!H7,IF(INDIVIDUAL!$F$28=DI!$I$4,DI!I7,IF(INDIVIDUAL!$F$28=DI!$J$4,DI!J7,IF(INDIVIDUAL!$F$28=DI!$K$4,DI!K7,IF(INDIVIDUAL!$F$28=DI!$L$4,DI!L7,IF(INDIVIDUAL!$F$28=DI!$M$4,DI!M7,IF(INDIVIDUAL!$F$28=DI!$N$4,DI!N7,IF(INDIVIDUAL!$F$28=DI!$O$4,DI!O7,IF(INDIVIDUAL!$F$28=DI!$P$4,DI!P7,IF(INDIVIDUAL!$F$28=DI!$Q$4,DI!Q7,IF(INDIVIDUAL!$F$28=DI!$R$4,DI!R7,IF(INDIVIDUAL!$F$28=DI!$S$4,DI!S7,IF(INDIVIDUAL!$F$28=DI!$T$4,DI!T7,IF(INDIVIDUAL!$F$28=DI!$U$4,DI!U7,IF(INDIVIDUAL!$F$28=DI!$V$4,DI!V7,IF(INDIVIDUAL!$F$28=DI!$W$4,DI!W7,IF(INDIVIDUAL!$F$28=DI!$X$4,DI!X7,IF(INDIVIDUAL!$F$28=DI!$Y$4,DI!Y7,\" \"))))))))))))))))))))))","v":" "}," "]
["02","Sacatepéquez","02-Sacatepéquez","0104-San José del Golfo","0204-Sumpango","0304-Comalapa","0404-San Cristóbal Acasaguastlán","0504-Siquinala","0604-Casillas","0704-Santa Lucía Utatlán","0804-San Andrés Xecul","0904-San Carlos Sija","1004-San Bernardino","1104-San Martín Zapotitlán","1204-Comitancillo","1304-Cuilco","1404-Zacualpa","1504-Cubulco","1604-Tactic","1704-San Andrés","1804-Morales","1904-Gualán","2004-Jocotán","2104-San Manuel Chaparrón","2204-Agua Blanca",null,{"$f":"IF(INDIVIDUAL!$F$28=DI!$D$4,DI!D8,IF(INDIVIDUAL!$F$28=DI!$E$4,DI!E8,IF(INDIVIDUAL!$F$28=DI!$F$4,DI!F8,IF(INDIVIDUAL!$F$28=DI!$G$4,DI!G8,IF(INDIVIDUAL!$F$28=DI!$H$4,DI!H8,IF(INDIVIDUAL!$F$28=DI!$I$4,DI!I8,IF(INDIVIDUAL!$F$28=DI!$J$4,DI!J8,IF(INDIVIDUAL!$F$28=DI!$K$4,DI!K8,IF(INDIVIDUAL!$F$28=DI!$L$4,DI!L8,IF(INDIVIDUAL!$F$28=DI!$M$4,DI!M8,IF(INDIVIDUAL!$F$28=DI!$N$4,DI!N8,IF(INDIVIDUAL!$F$28=DI!$O$4,DI!O8,IF(INDIVIDUAL!$F$28=DI!$P$4,DI!P8,IF(INDIVIDUAL!$F$28=DI!$Q$4,DI!Q8,IF(INDIVIDUAL!$F$28=DI!$R$4,DI!R8,IF(INDIVIDUAL!$F$28=DI!$S$4,DI!S8,IF(INDIVIDUAL!$F$28=DI!$T$4,DI!T8,IF(INDIVIDUAL!$F$28=DI!$U$4,DI!U8,IF(INDIVIDUAL!$F$28=DI!$V$4,DI!V8,IF(INDIVIDUAL!$F$28=DI!$W$4,DI!W8,IF(INDIVIDUAL!$F$28=DI!$X$4,DI!X8,IF(INDIVIDUAL!$F$28=DI!$Y$4,DI!Y8,\" \"))))))))))))))))))))))","v":" "}," "]
["03","Chimaltenango","03-Chimaltenango","0105-Palencia","0205-Santo Domingo Xenacoj","0305-Santa Apolonia","0405-El Jícaro","0505-Masagua","0605-San Rafael Las Flores","0705-Nahualá","0805-Momostenango","0905-Sibilia","1005-San José El Idolo","1105-San Felipe","1205-San Miguel Ixtahuacán","1305-Nentón","1405-Chajul","1505-Granados","1605-Tamahú","1705-La Libertad","1805-Los Amates","1905-Teculután","2005-Camotán","2105-San Carlos Alzatate","2205-Asunción Mita",null,{"$f":"IF(INDIVIDUAL!$F$28=DI!$D$4,DI!D9,IF(INDIVIDUAL!$F$28=DI!$E$4,DI!E9,IF(INDIVIDUAL!$F$28=DI!$F$4,DI!F9,IF(INDIVIDUAL!$F$28=DI!$G$4,DI!G9,IF(INDIVIDUAL!$F$28=DI!$H$4,DI!H9,IF(INDIVIDUAL!$F$28=DI!$I$4,DI!I9,IF(INDIVIDUAL!$F$28=DI!$J$4,DI!J9,IF(INDIVIDUAL!$F$28=DI!$K$4,DI!K9,IF(INDIVIDUAL!$F$28=DI!$L$4,DI!L9,IF(INDIVIDUAL!$F$28=DI!$M$4,DI!M9,IF(INDIVIDUAL!$F$28=DI!$N$4,DI!N9,IF(INDIVIDUAL!$F$28=DI!$O$4,DI!O9,IF(INDIVIDUAL!$F$28=DI!$P$4,DI!P9,IF(INDIVIDUAL!$F$28=DI!$Q$4,DI!Q9,IF(INDIVIDUAL!$F$28=DI!$R$4,DI!R9,IF(INDIVIDUAL!$F$28=DI!$S$4,DI!S9,IF(INDIVIDUAL!$F$28=DI!$T$4,DI!T9,IF(INDIVIDUAL!$F$28=DI!$U$4,DI!U9,IF(INDIVIDUAL!$F$28=DI!$V$4,DI!V9,IF(INDIVIDUAL!$F$28=DI!$W$4,DI!W9,IF(INDIVIDUAL!$F$28=DI!$X$4,DI!X9,IF(INDIVIDUAL!$F$28=DI!$Y$4,DI!Y9,\" \"))))))))))))))))))))))","v":" "}," "]
["04","El Progreso","04-El Progreso","0106-Chinautla","0206-Santiago Sacatepéquez","0306-Tecpan Guatemala","0406-Sansare","0506-Tiquisate","0606-Oratorio","0706-Santa Catarina Ixtahuacán","0806-Santa María Chiquimula","0906-Cabricán","1006-Santo Domingo Suchitepéquez","1106-San Andrés Villa Seca","1206-Concepción Tutuapa","1306-San Pedro Necta","1406-Chichicastenango","1506-El Chol","1606-Tucurú","1706-San Francisco",null,"1906-Usumatlán","2006-Olopa","2106-Monjas","2206-Yupiltepeque",null,{"$f":"IF(INDIVIDUAL!$F$28=DI!$D$4,DI!D10,IF(INDIVIDUAL!$F$28=DI!$E$4,DI!E10,IF(INDIVIDUAL!$F$28=DI!$F$4,DI!F10,IF(INDIVIDUAL!$F$28=DI!$G$4,DI!G10,IF(INDIVIDUAL!$F$28=DI!$H$4,DI!H10,IF(INDIVIDUAL!$F$28=DI!$I$4,DI!I10,IF(INDIVIDUAL!$F$28=DI!$J$4,DI!J10,IF(INDIVIDUAL!$F$28=DI!$K$4,DI!K10,IF(INDIVIDUAL!$F$28=DI!$L$4,DI!L10,IF(INDIVIDUAL!$F$28=DI!$M$4,DI!M10,IF(INDIVIDUAL!$F$28=DI!$N$4,DI!N10,IF(INDIVIDUAL!$F$28=DI!$O$4,DI!O10,IF(INDIVIDUAL!$F$28=DI!$P$4,DI!P10,IF(INDIVIDUAL!$F$28=DI!$Q$4,DI!Q10,IF(INDIVIDUAL!$F$28=DI!$R$4,DI!R10,IF(INDIVIDUAL!$F$28=DI!$S$4,DI!S10,IF(INDIVIDUAL!$F$28=DI!$T$4,DI!T10,IF(INDIVIDUAL!$F$28=DI!$U$4,DI!U10,IF(INDIVIDUAL!$F$28=DI!$V$4,DI!V10,IF(INDIVIDUAL!$F$28=DI!$W$4,DI!W10,IF(INDIVIDUAL!$F$28=DI!$X$4,DI!X10,IF(INDIVIDUAL!$F$28=DI!$Y$4,DI!Y10,\" \"))))))))))))))))))))))","v":" "}," "]
["05","Escuintla","05-Escuintla","0107-San Pedro Ayampuc","0207-San Bartolomé Milpas Altas","0307-Patzún","0407-Sanarate","0507-La Gomera","0607-San Juan Tecuaco","0707-Santa Clara La Laguna","0807-Santa Lucía La Reforma","0907-Cajolá","1007-San Lorenzo","1107-Champerico","1207-Tacaná","1307-Jacaltenango","1407-Patzité","1507-San Jerónimo","1607-Panzós","1707-Santa Ana",null,"1907-Cabañas","2007-Esquipulas","2107-Mataquescuintla","2207-Atescatempa",null,{"$f":"IF(INDIVIDUAL!$F$28=DI!$D$4,DI!D11,IF(INDIVIDUAL!$F$28=DI!$E$4,DI!E11,IF(INDIVIDUAL!$F$28=DI!$F$4,DI!F11,IF(INDIVIDUAL!$F$28=DI!$G$4,DI!G11,IF(INDIVIDUAL!$F$28=DI!$H$4,DI!H11,IF(INDIVIDUAL!$F$28=DI!$I$4,DI!I11,IF(INDIVIDUAL!$F$28=DI!$J$4,DI!J11,IF(INDIVIDUAL!$F$28=DI!$K$4,DI!K11,IF(INDIVIDUAL!$F$28=DI!$L$4,DI!L11,IF(INDIVIDUAL!$F$28=DI!$M$4,DI!M11,IF(INDIVIDUAL!$F$28=DI!$N$4,DI!N11,IF(INDIVIDUAL!$F$28=DI!$O$4,DI!O11,IF(INDIVIDUAL!$F$28=DI!$P$4,DI!P11,IF(INDIVIDUAL!$F$28=DI!$Q$4,DI!Q11,IF(INDIVIDUAL!$F$28=DI!$R$4,DI!R11,IF(INDIVIDUAL!$F$28=DI!$S$4,DI!S11,IF(INDIVIDUAL!$F$28=DI!$T$4,DI!T11,IF(INDIVIDUAL!$F$28=DI!$U$4,DI!U11,IF(INDIVIDUAL!$F$28=DI!$V$4,DI!V11,IF(INDIVIDUAL!$F$28=DI!$W$4,DI!W11,IF(INDIVIDUAL!$F$28=DI!$X$4,DI!X11,IF(INDIVIDUAL!$F$28=DI!$Y$4,DI!Y11,\" \"))))))))))))))))))))))","v":" "}," "]
["06","Santa Rosa","06-Santa Rosa","0108-Mixco","0208-San Lucas Sacatepéquez","0308-Pochuta","0408-San Antonio La Paz","0508-Guanagazapa","0608-Chiquimulilla","0708-Concepción","0808-San Bartolo","0908-San Miguel Siguilá","1008-Samayac","1108-Nuevo San Carlos","1208-Sibinal","1308-Soloma","1408-San Antonio Ilotenango","1508-Purulhá","1608-Senahú","1708-Dolores",null,"1908-San Diego","2008-Concepción Las Minas",null,"2208-Jerez",null,{"$f":"IF(INDIVIDUAL!$F$28=DI!$D$4,DI!D12,IF(INDIVIDUAL!$F$28=DI!$E$4,DI!E12,IF(INDIVIDUAL!$F$28=DI!$F$4,DI!F12,IF(INDIVIDUAL!$F$28=DI!$G$4,DI!G12,IF(INDIVIDUAL!$F$28=DI!$H$4,DI!H12,IF(INDIVIDUAL!$F$28=DI!$I$4,DI!I12,IF(INDIVIDUAL!$F$28=DI!$J$4,DI!J12,IF(INDIVIDUAL!$F$28=DI!$K$4,DI!K12,IF(INDIVIDUAL!$F$28=DI!$L$4,DI!L12,IF(INDIVIDUAL!$F$28=DI!$M$4,DI!M12,IF(INDIVIDUAL!$F$28=DI!$N$4,DI!N12,IF(INDIVIDUAL!$F$28=DI!$O$4,DI!O12,IF(INDIVIDUAL!$F$28=DI!$P$4,DI!P12,IF(INDIVIDUAL!$F$28=DI!$Q$4,DI!Q12,IF(INDIVIDUAL!$F$28=DI!$R$4,DI!R12,IF(INDIVIDUAL!$F$28=DI!$S$4,DI!S12,IF(INDIVIDUAL!$F$28=DI!$T$4,DI!T12,IF(INDIVIDUAL!$F$28=DI!$U$4,DI!U12,IF(INDIVIDUAL!$F$28=DI!$V$4,DI!V12,IF(INDIVIDUAL!$F$28=DI!$W$4,DI!W12,IF(INDIVIDUAL!$F$28=DI!$X$4,DI!X12,IF(INDIVIDUAL!$F$28=DI!$Y$4,DI!Y12,\" \"))))))))))))))))))))))","v":" "}," "]
["07","Sololá","07-Sololá","0109-San Pedro Sacatepéquez","0209-Santa Lucia Milpas Altas","0309-Patzicía",null,"0509-Puerto San José","0609-Taxisco","0709-San Andrés Semetabaj",null,"0909-San Juan Ostuncalco","1009-San Pablo Jocopilas","1109-El Asintal","1209-Tajumulco","1309-Ixtahuacán","1409-San Pedro Jocopilas",null,"1609-San Pedro Carchá","1709-San Luis",null,"1909-La Unión","2009-Quetzaltepeque",null,"2209-El Adelanto",null,{"$f":"IF(INDIVIDUAL!$F$28=DI!$D$4,DI!D13,IF(INDIVIDUAL!$F$28=DI!$E$4,DI!E13,IF(INDIVIDUAL!$F$28=DI!$F$4,DI!F13,IF(INDIVIDUAL!$F$28=DI!$G$4,DI!G13,IF(INDIVIDUAL!$F$28=DI!$H$4,DI!H13,IF(INDIVIDUAL!$F$28=DI!$I$4,DI!I13,IF(INDIVIDUAL!$F$28=DI!$J$4,DI!J13,IF(INDIVIDUAL!$F$28=DI!$K$4,DI!K13,IF(INDIVIDUAL!$F$28=DI!$L$4,DI!L13,IF(INDIVIDUAL!$F$28=DI!$M$4,DI!M13,IF(INDIVIDUAL!$F$28=DI!$N$4,DI!N13,IF(INDIVIDUAL!$F$28=DI!$O$4,DI!O13,IF(INDIVIDUAL!$F$28=DI!$P$4,DI!P13,IF(INDIVIDUAL!$F$28=DI!$Q$4,DI!Q13,IF(INDIVIDUAL!$F$28=DI!$R$4,DI!R13,IF(INDIVIDUAL!$F$28=DI!$S$4,DI!S13,IF(INDIVIDUAL!$F$28=DI!$T$4,DI!T13,IF(INDIVIDUAL!$F$28=DI!$U$4,DI!U13,IF(INDIVIDUAL!$F$28=DI!$V$4,DI!V13,IF(INDIVIDUAL!$F$28=DI!$W$4,DI!W13,IF(INDIVIDUAL!$F$28=DI!$X$4,DI!X13,IF(INDIVIDUAL!$F$28=DI!$Y$4,DI!Y13,\" \"))))))))))))))))))))))","v":" "}," "]
["08","Totonicapán","08-Totonicapán","0110-San Juan Sacatepéquez","0210-Magdalena Milpas Altas","0310-Santa Cruz Balanya",null,"0510-Iztapa","0610-Santa María Ixhuatán","0710-Panajachel",null,"0910-San Mateo","1010-San Antonio Suchitepéquez",null,"1210-Tejutla","1310-Santa Bárbara","1410-Cunén",null,"1610-San Juan Chamelco","1710-Sayaxché",null,"1910-Huité","2010-San Jacinto",null,"2210-Zapotitlán",null,{"$f":"IF(INDIVIDUAL!$F$28=DI!$D$4,DI!D14,IF(INDIVIDUAL!$F$28=DI!$E$4,DI!E14,IF(INDIVIDUAL!$F$28=DI!$F$4,DI!F14,IF(INDIVIDUAL!$F$28=DI!$G$4,DI!G14,IF(INDIVIDUAL!$F$28=DI!$H$4,DI!H14,IF(INDIVIDUAL!$F$28=DI!$I$4,DI!I14,IF(INDIVIDUAL!$F$28=DI!$J$4,DI!J14,IF(INDIVIDUAL!$F$28=DI!$K$4,DI!K14,IF(INDIVIDUAL!$F$28=DI!$L$4,DI!L14,IF(INDIVIDUAL!$F$28=DI!$M$4,DI!M14,IF(INDIVIDUAL!$F$28=DI!$N$4,DI!N14,IF(INDIVIDUAL!$F$28=DI!$O$4,DI!O14,IF(INDIVIDUAL!$F$28=DI!$P$4,DI!P14,IF(INDIVIDUAL!$F$28=DI!$Q$4,DI!Q14,IF(INDIVIDUAL!$F$28=DI!$R$4,DI!R14,IF(INDIVIDUAL!$F$28=DI!$S$4,DI!S14,IF(INDIVIDUAL!$F$28=DI!$T$4,DI!T14,IF(INDIVIDUAL!$F$28=DI!$U$4,DI!U14,IF(INDIVIDUAL!$F$28=DI!$V$4,DI!V14,IF(INDIVIDUAL!$F$28=DI!$W$4,DI!W14,IF(INDIVIDUAL!$F$28=DI!$X$4,DI!X14,IF(INDIVIDUAL!$F$28=DI!$Y$4,DI!Y14,\" \"))))))))))))))))))))))","v":" "}," "]
["09","Quetzaltenango","09-Quetzaltenango","0111-San Raymundo","0211-Santa María de Jesús","0311-Acatenango",null,"0511-Palín","0611-Guazacapan","0711-Santa Catarina Palopó",null,"0911-Concepción Chiquirichapa","1011-San Miguel Panán",null,"1211-San Rafael Pie De La Cuesta","1311-La Libertad","1411-San Juan Cotzal",null,"1611-Lanquín","1711-Melchor De Mencos",null,null,"2011-Ipala",null,"2211-Comapa",null,{"$f":"IF(INDIVIDUAL!$F$28=DI!$D$4,DI!D15,IF(INDIVIDUAL!$F$28=DI!$E$4,DI!E15,IF(INDIVIDUAL!$F$28=DI!$F$4,DI!F15,IF(INDIVIDUAL!$F$28=DI!$G$4,DI!G15,IF(INDIVIDUAL!$F$28=DI!$H$4,DI!H15,IF(INDIVIDUAL!$F$28=DI!$I$4,DI!I15,IF(INDIVIDUAL!$F$28=DI!$J$4,DI!J15,IF(INDIVIDUAL!$F$28=DI!$K$4,DI!K15,IF(INDIVIDUAL!$F$28=DI!$L$4,DI!L15,IF(INDIVIDUAL!$F$28=DI!$M$4,DI!M15,IF(INDIVIDUAL!$F$28=DI!$N$4,DI!N15,IF(INDIVIDUAL!$F$28=DI!$O$4,DI!O15,IF(INDIVIDUAL!$F$28=DI!$P$4,DI!P15,IF(INDIVIDUAL!$F$28=DI!$Q$4,DI!Q15,IF(INDIVIDUAL!$F$28=DI!$R$4,DI!R15,IF(INDIVIDUAL!$F$28=DI!$S$4,DI!S15,IF(INDIVIDUAL!$F$28=DI!$T$4,DI!T15,IF(INDIVIDUAL!$F$28=DI!$U$4,DI!U15,IF(INDIVIDUAL!$F$28=DI!$V$4,DI!V15,IF(INDIVIDUAL!$F$28=DI!$W$4,DI!W15,IF(INDIVIDUAL!$F$28=DI!$X$4,DI!X15,IF(INDIVIDUAL!$F$28=DI!$Y$4,DI!Y15,\" \"))))))))))))))))))))))","v":" "}," "]
["10","Suchitepéquez","10-Suchitepéquez","0112-Chuarrancho","0212-Ciudad Vieja","0312-San Pedro Yepocapa",null,"0512-San Vicente Pacaya","0612-Santa Cruz Naranjo","0712-San Antonio Palopó",null,"0912-San Martín Sacatepéquez","1012-San Gabriel",null,"1212-Nuevo Progreso","1312-La Democracia","1412-Joyabaj",null,"1612-Cahabón","1712-Poptún",null,null,null,null,"2212-Jalpatagua",null,{"$f":"IF(INDIVIDUAL!$F$28=DI!$D$4,DI!D16,IF(INDIVIDUAL!$F$28=DI!$E$4,DI!E16,IF(INDIVIDUAL!$F$28=DI!$F$4,DI!F16,IF(INDIVIDUAL!$F$28=DI!$G$4,DI!G16,IF(INDIVIDUAL!$F$28=DI!$H$4,DI!H16,IF(INDIVIDUAL!$F$28=DI!$I$4,DI!I16,IF(INDIVIDUAL!$F$28=DI!$J$4,DI!J16,IF(INDIVIDUAL!$F$28=DI!$K$4,DI!K16,IF(INDIVIDUAL!$F$28=DI!$L$4,DI!L16,IF(INDIVIDUAL!$F$28=DI!$M$4,DI!M16,IF(INDIVIDUAL!$F$28=DI!$N$4,DI!N16,IF(INDIVIDUAL!$F$28=DI!$O$4,DI!O16,IF(INDIVIDUAL!$F$28=DI!$P$4,DI!P16,IF(INDIVIDUAL!$F$28=DI!$Q$4,DI!Q16,IF(INDIVIDUAL!$F$28=DI!$R$4,DI!R16,IF(INDIVIDUAL!$F$28=DI!$S$4,DI!S16,IF(INDIVIDUAL!$F$28=DI!$T$4,DI!T16,IF(INDIVIDUAL!$F$28=DI!$U$4,DI!U16,IF(INDIVIDUAL!$F$28=DI!$V$4,DI!V16,IF(INDIVIDUAL!$F$28=DI!$W$4,DI!W16,IF(INDIVIDUAL!$F$28=DI!$X$4,DI!X16,IF(INDIVIDUAL!$F$28=DI!$Y$4,DI!Y16,\" \"))))))))))))))))))))))","v":" "}," "]
["11","Retalhuleu","11-Retalhuleu","0113-Fraijanes","0213-San Miguel Dueñas","0313-San Andrés Itzapa",null,"0513-Nueva Concepción","0613-Pueblo Nuevo Viñas","0713-San Lucas Tolimán",null,"0913-Almolonga","1013-Chicacao",null,"1213-El Tumbador","1313-San Miguel Acatán","1413-Nebaj",null,"1613-Chisec","1713-Las Cruces",null,null,null,null,"2213-Conguaco",null,{"$f":"IF(INDIVIDUAL!$F$28=DI!$D$4,DI!D17,IF(INDIVIDUAL!$F$28=DI!$E$4,DI!E17,IF(INDIVIDUAL!$F$28=DI!$F$4,DI!F17,IF(INDIVIDUAL!$F$28=DI!$G$4,DI!G17,IF(INDIVIDUAL!$F$28=DI!$H$4,DI!H17,IF(INDIVIDUAL!$F$28=DI!$I$4,DI!I17,IF(INDIVIDUAL!$F$28=DI!$J$4,DI!J17,IF(INDIVIDUAL!$F$28=DI!$K$4,DI!K17,IF(INDIVIDUAL!$F$28=DI!$L$4,DI!L17,IF(INDIVIDUAL!$F$28=DI!$M$4,DI!M17,IF(INDIVIDUAL!$F$28=DI!$N$4,DI!N17,IF(INDIVIDUAL!$F$28=DI!$O$4,DI!O17,IF(INDIVIDUAL!$F$28=DI!$P$4,DI!P17,IF(INDIVIDUAL!$F$28=DI!$Q$4,DI!Q17,IF(INDIVIDUAL!$F$28=DI!$R$4,DI!R17,IF(INDIVIDUAL!$F$28=DI!$S$4,DI!S17,IF(INDIVIDUAL!$F$28=DI!$T$4,DI!T17,IF(INDIVIDUAL!$F$28=DI!$U$4,DI!U17,IF(INDIVIDUAL!$F$28=DI!$V$4,DI!V17,IF(INDIVIDUAL!$F$28=DI!$W$4,DI!W17,IF(INDIVIDUAL!$F$28=DI!$X$4,DI!X17,IF(INDIVIDUAL!$F$28=DI!$Y$4,DI!Y17,\" \"))))))))))))))))))))))","v":" "}," "]
["12","San Marcos","12-San Marcos","0114-Amatitlán","0214-Alotenango","0314-Parramos",null,null,"0614-Nueva Santa Rosa","0714-Santa Cruz La Laguna",null,"0914-Cantel","1014-Patulul",null,"1214-San José El Rodeo","1314-San Rafael La Independencia","1414-San Andrés Sajcabajá",null,"1614-Chahal",null,null,null,null,null,"2214-Moyuta",null,{"$f":"IF(INDIVIDUAL!$F$28=DI!$D$4,DI!D18,IF(INDIVIDUAL!$F$28=DI!$E$4,DI!E18,IF(INDIVIDUAL!$F$28=DI!$F$4,DI!F18,IF(INDIVIDUAL!$F$28=DI!$G$4,DI!G18,IF(INDIVIDUAL!$F$28=DI!$H$4,DI!H18,IF(INDIVIDUAL!$F$28=DI!$I$4,DI!I18,IF(INDIVIDUAL!$F$28=DI!$J$4,DI!J18,IF(INDIVIDUAL!$F$28=DI!$K$4,DI!K18,IF(INDIVIDUAL!$F$28=DI!$L$4,DI!L18,IF(INDIVIDUAL!$F$28=DI!$M$4,DI!M18,IF(INDIVIDUAL!$F$28=DI!$N$4,DI!N18,IF(INDIVIDUAL!$F$28=DI!$O$4,DI!O18,IF(INDIVIDUAL!$F$28=DI!$P$4,DI!P18,IF(INDIVIDUAL!$F$28=DI!$Q$4,DI!Q18,IF(INDIVIDUAL!$F$28=DI!$R$4,DI!R18,IF(INDIVIDUAL!$F$28=DI!$S$4,DI!S18,IF(INDIVIDUAL!$F$28=DI!$T$4,DI!T18,IF(INDIVIDUAL!$F$28=DI!$U$4,DI!U18,IF(INDIVIDUAL!$F$28=DI!$V$4,DI!V18,IF(INDIVIDUAL!$F$28=DI!$W$4,DI!W18,IF(INDIVIDUAL!$F$28=DI!$X$4,DI!X18,IF(INDIVIDUAL!$F$28=DI!$Y$4,DI!Y18,\" \"))))))))))))))))))))))","v":" "}," "]
["13","Huehuetenango","13-Huehuetenango","0115-Villa Nueva","0215-San Antonio Aguas Calientes","0315-Zaragoza",null,null,null,"0715-San Pablo La Laguna",null,"0915-Huitán","1015-Santa Bárbara",null,"1215-Malacatán","1315-Todos Santos Cuchumatánes","1415-Uspantán",null,"1615-Fray Bartolomé de Las Casas",null,null,null,null,null,"2215-Pasaco",null,{"$f":"IF(INDIVIDUAL!$F$28=DI!$D$4,DI!D19,IF(INDIVIDUAL!$F$28=DI!$E$4,DI!E19,IF(INDIVIDUAL!$F$28=DI!$F$4,DI!F19,IF(INDIVIDUAL!$F$28=DI!$G$4,DI!G19,IF(INDIVIDUAL!$F$28=DI!$H$4,DI!H19,IF(INDIVIDUAL!$F$28=DI!$I$4,DI!I19,IF(INDIVIDUAL!$F$28=DI!$J$4,DI!J19,IF(INDIVIDUAL!$F$28=DI!$K$4,DI!K19,IF(INDIVIDUAL!$F$28=DI!$L$4,DI!L19,IF(INDIVIDUAL!$F$28=DI!$M$4,DI!M19,IF(INDIVIDUAL!$F$28=DI!$N$4,DI!N19,IF(INDIVIDUAL!$F$28=DI!$O$4,DI!O19,IF(INDIVIDUAL!$F$28=DI!$P$4,DI!P19,IF(INDIVIDUAL!$F$28=DI!$Q$4,DI!Q19,IF(INDIVIDUAL!$F$28=DI!$R$4,DI!R19,IF(INDIVIDUAL!$F$28=DI!$S$4,DI!S19,IF(INDIVIDUAL!$F$28=DI!$T$4,DI!T19,IF(INDIVIDUAL!$F$28=DI!$U$4,DI!U19,IF(INDIVIDUAL!$F$28=DI!$V$4,DI!V19,IF(INDIVIDUAL!$F$28=DI!$W$4,DI!W19,IF(INDIVIDUAL!$F$28=DI!$X$4,DI!X19,IF(INDIVIDUAL!$F$28=DI!$Y$4,DI!Y19,\" \"))))))))))))))))))))))","v":" "}," "]
["14","El Quiché","14-El Quiché","0116-Villa Canales","0216-Santa Catalina Barahona","0316-El Tejar",null,null,null,"0716-San Marcos La Laguna",null,"0916-Zunil","1016-San Juan Bautista",null,"1216-Catarina","1316-San Juan Atitán","1416-Sacapulas",null,"1616-Santa Catarina La Tinta",null,null,null,null,null,"2216-San José Acatempa",null,{"$f":"IF(INDIVIDUAL!$F$28=DI!$D$4,DI!D20,IF(INDIVIDUAL!$F$28=DI!$E$4,DI!E20,IF(INDIVIDUAL!$F$28=DI!$F$4,DI!F20,IF(INDIVIDUAL!$F$28=DI!$G$4,DI!G20,IF(INDIVIDUAL!$F$28=DI!$H$4,DI!H20,IF(INDIVIDUAL!$F$28=DI!$I$4,DI!I20,IF(INDIVIDUAL!$F$28=DI!$J$4,DI!J20,IF(INDIVIDUAL!$F$28=DI!$K$4,DI!K20,IF(INDIVIDUAL!$F$28=DI!$L$4,DI!L20,IF(INDIVIDUAL!$F$28=DI!$M$4,DI!M20,IF(INDIVIDUAL!$F$28=DI!$N$4,DI!N20,IF(INDIVIDUAL!$F$28=DI!$O$4,DI!O20,IF(INDIVIDUAL!$F$28=DI!$P$4,DI!P20,IF(INDIVIDUAL!$F$28=DI!$Q$4,DI!Q20,IF(INDIVIDUAL!$F$28=DI!$R$4,DI!R20,IF(INDIVIDUAL!$F$28=DI!$S$4,DI!S20,IF(INDIVIDUAL!$F$28=DI!$T$4,DI!T20,IF(INDIVIDUAL!$F$28=DI!$U$4,DI!U20,IF(INDIVIDUAL!$F$28=DI!$V$4,DI!V20,IF(INDIVIDUAL!$F$28=DI!$W$4,DI!W20,IF(INDIVIDUAL!$F$28=DI!$X$4,DI!X20,IF(INDIVIDUAL!$F$28=DI!$Y$4,DI!Y20,\" \"))))))))))))))))))))))","v":" "}," "]
["15","Baja Verapaz","15-Baja Verapaz","0117-Petapa",null,null,null,null,null,"0717-San Juan La Laguna",null,"0917-Colomba","1017-Santo Tomás La Unión",null,"1217-Ayutla (Tecún Uman)","1317-Santa Eulalia","1417-San Bartolomé Jocotenango",null,"1617-Raxruha",null,null,null,null,null,"2217-Quezada",null,{"$f":"IF(INDIVIDUAL!$F$28=DI!$D$4,DI!D21,IF(INDIVIDUAL!$F$28=DI!$E$4,DI!E21,IF(INDIVIDUAL!$F$28=DI!$F$4,DI!F21,IF(INDIVIDUAL!$F$28=DI!$G$4,DI!G21,IF(INDIVIDUAL!$F$28=DI!$H$4,DI!H21,IF(INDIVIDUAL!$F$28=DI!$I$4,DI!I21,IF(INDIVIDUAL!$F$28=DI!$J$4,DI!J21,IF(INDIVIDUAL!$F$28=DI!$K$4,DI!K21,IF(INDIVIDUAL!$F$28=DI!$L$4,DI!L21,IF(INDIVIDUAL!$F$28=DI!$M$4,DI!M21,IF(INDIVIDUAL!$F$28=DI!$N$4,DI!N21,IF(INDIVIDUAL!$F$28=DI!$O$4,DI!O21,IF(INDIVIDUAL!$F$28=DI!$P$4,DI!P21,IF(INDIVIDUAL!$F$28=DI!$Q$4,DI!Q21,IF(INDIVIDUAL!$F$28=DI!$R$4,DI!R21,IF(INDIVIDUAL!$F$28=DI!$S$4,DI!S21,IF(INDIVIDUAL!$F$28=DI!$T$4,DI!T21,IF(INDIVIDUAL!$F$28=DI!$U$4,DI!U21,IF(INDIVIDUAL!$F$28=DI!$V$4,DI!V21,IF(INDIVIDUAL!$F$28=DI!$W$4,DI!W21,IF(INDIVIDUAL!$F$28=DI!$X$4,DI!X21,IF(INDIVIDUAL!$F$28=DI!$Y$4,DI!Y21,\" \"))))))))))))))))))))))","v":" "}," "]
["16","Alta Verapaz","16-Alta Verapaz",null,null,null,null,null,null,"0718-San Pedro La Laguna",null,"0918-San Francisco La Unión","1018-Zunilito",null,"1218-Ocós","1318-San Mateo Ixtatán","1418-Canillá",null,null,null,null,null,null,null,null,null,{"$f":"IF(INDIVIDUAL!$F$28=DI!$D$4,DI!D22,IF(INDIVIDUAL!$F$28=DI!$E$4,DI!E22,IF(INDIVIDUAL!$F$28=DI!$F$4,DI!F22,IF(INDIVIDUAL!$F$28=DI!$G$4,DI!G22,IF(INDIVIDUAL!$F$28=DI!$H$4,DI!H22,IF(INDIVIDUAL!$F$28=DI!$I$4,DI!I22,IF(INDIVIDUAL!$F$28=DI!$J$4,DI!J22,IF(INDIVIDUAL!$F$28=DI!$K$4,DI!K22,IF(INDIVIDUAL!$F$28=DI!$L$4,DI!L22,IF(INDIVIDUAL!$F$28=DI!$M$4,DI!M22,IF(INDIVIDUAL!$F$28=DI!$N$4,DI!N22,IF(INDIVIDUAL!$F$28=DI!$O$4,DI!O22,IF(INDIVIDUAL!$F$28=DI!$P$4,DI!P22,IF(INDIVIDUAL!$F$28=DI!$Q$4,DI!Q22,IF(INDIVIDUAL!$F$28=DI!$R$4,DI!R22,IF(INDIVIDUAL!$F$28=DI!$S$4,DI!S22,IF(INDIVIDUAL!$F$28=DI!$T$4,DI!T22,IF(INDIVIDUAL!$F$28=DI!$U$4,DI!U22,IF(INDIVIDUAL!$F$28=DI!$V$4,DI!V22,IF(INDIVIDUAL!$F$28=DI!$W$4,DI!W22,IF(INDIVIDUAL!$F$28=DI!$X$4,DI!X22,IF(INDIVIDUAL!$F$28=DI!$Y$4,DI!Y22,\" \"))))))))))))))))))))))","v":" "}," "]
["17","Petén","17-Petén",null,null,null,null,null,null,"0719-Santiago Atitlán",null,"0919-El Palmar","1019-Pueblo Nuevo",null,"1219-San Pablo","1319-Colotenango","1419-Chicamán",null,null,null,null,null,null,null,null,null,{"$f":"IF(INDIVIDUAL!$F$28=DI!$D$4,DI!D23,IF(INDIVIDUAL!$F$28=DI!$E$4,DI!E23,IF(INDIVIDUAL!$F$28=DI!$F$4,DI!F23,IF(INDIVIDUAL!$F$28=DI!$G$4,DI!G23,IF(INDIVIDUAL!$F$28=DI!$H$4,DI!H23,IF(INDIVIDUAL!$F$28=DI!$I$4,DI!I23,IF(INDIVIDUAL!$F$28=DI!$J$4,DI!J23,IF(INDIVIDUAL!$F$28=DI!$K$4,DI!K23,IF(INDIVIDUAL!$F$28=DI!$L$4,DI!L23,IF(INDIVIDUAL!$F$28=DI!$M$4,DI!M23,IF(INDIVIDUAL!$F$28=DI!$N$4,DI!N23,IF(INDIVIDUAL!$F$28=DI!$O$4,DI!O23,IF(INDIVIDUAL!$F$28=DI!$P$4,DI!P23,IF(INDIVIDUAL!$F$28=DI!$Q$4,DI!Q23,IF(INDIVIDUAL!$F$28=DI!$R$4,DI!R23,IF(INDIVIDUAL!$F$28=DI!$S$4,DI!S23,IF(INDIVIDUAL!$F$28=DI!$T$4,DI!T23,IF(INDIVIDUAL!$F$28=DI!$U$4,DI!U23,IF(INDIVIDUAL!$F$28=DI!$V$4,DI!V23,IF(INDIVIDUAL!$F$28=DI!$W$4,DI!W23,IF(INDIVIDUAL!$F$28=DI!$X$4,DI!X23,IF(INDIVIDUAL!$F$28=DI!$Y$4,DI!Y23,\" \"))))))))))))))))))))))","v":" "}," "]
["18","Izabal","18-Izabal",null,null,null,null,null,null,null,null,"0920-Coatepeque","1020-Río Bravo",null,"1220-El Quetzal","1320-San Sebastián Huehetenango","1420-Ixcán",null,null,null,null,null,null,null,null,null,{"$f":"IF(INDIVIDUAL!$F$28=DI!$D$4,DI!D24,IF(INDIVIDUAL!$F$28=DI!$E$4,DI!E24,IF(INDIVIDUAL!$F$28=DI!$F$4,DI!F24,IF(INDIVIDUAL!$F$28=DI!$G$4,DI!G24,IF(INDIVIDUAL!$F$28=DI!$H$4,DI!H24,IF(INDIVIDUAL!$F$28=DI!$I$4,DI!I24,IF(INDIVIDUAL!$F$28=DI!$J$4,DI!J24,IF(INDIVIDUAL!$F$28=DI!$K$4,DI!K24,IF(INDIVIDUAL!$F$28=DI!$L$4,DI!L24,IF(INDIVIDUAL!$F$28=DI!$M$4,DI!M24,IF(INDIVIDUAL!$F$28=DI!$N$4,DI!N24,IF(INDIVIDUAL!$F$28=DI!$O$4,DI!O24,IF(INDIVIDUAL!$F$28=DI!$P$4,DI!P24,IF(INDIVIDUAL!$F$28=DI!$Q$4,DI!Q24,IF(INDIVIDUAL!$F$28=DI!$R$4,DI!R24,IF(INDIVIDUAL!$F$28=DI!$S$4,DI!S24,IF(INDIVIDUAL!$F$28=DI!$T$4,DI!T24,IF(INDIVIDUAL!$F$28=DI!$U$4,DI!U24,IF(INDIVIDUAL!$F$28=DI!$V$4,DI!V24,IF(INDIVIDUAL!$F$28=DI!$W$4,DI!W24,IF(INDIVIDUAL!$F$28=DI!$X$4,DI!X24,IF(INDIVIDUAL!$F$28=DI!$Y$4,DI!Y24,\" \"))))))))))))))))))))))","v":" "}," "]
["19","Zacapa","19-Zacapa",null,null,null,null,null,null,null,null,"0921-Génova Cosata Cuca",null,null,"1221-La Reforma","1321-Tectitán","1421-Pachalum",null,null,null,null,null,null,null,null,null,{"$f":"IF(INDIVIDUAL!$F$28=DI!$D$4,DI!D25,IF(INDIVIDUAL!$F$28=DI!$E$4,DI!E25,IF(INDIVIDUAL!$F$28=DI!$F$4,DI!F25,IF(INDIVIDUAL!$F$28=DI!$G$4,DI!G25,IF(INDIVIDUAL!$F$28=DI!$H$4,DI!H25,IF(INDIVIDUAL!$F$28=DI!$I$4,DI!I25,IF(INDIVIDUAL!$F$28=DI!$J$4,DI!J25,IF(INDIVIDUAL!$F$28=DI!$K$4,DI!K25,IF(INDIVIDUAL!$F$28=DI!$L$4,DI!L25,IF(INDIVIDUAL!$F$28=DI!$M$4,DI!M25,IF(INDIVIDUAL!$F$28=DI!$N$4,DI!N25,IF(INDIVIDUAL!$F$28=DI!$O$4,DI!O25,IF(INDIVIDUAL!$F$28=DI!$P$4,DI!P25,IF(INDIVIDUAL!$F$28=DI!$Q$4,DI!Q25,IF(INDIVIDUAL!$F$28=DI!$R$4,DI!R25,IF(INDIVIDUAL!$F$28=DI!$S$4,DI!S25,IF(INDIVIDUAL!$F$28=DI!$T$4,DI!T25,IF(INDIVIDUAL!$F$28=DI!$U$4,DI!U25,IF(INDIVIDUAL!$F$28=DI!$V$4,DI!V25,IF(INDIVIDUAL!$F$28=DI!$W$4,DI!W25,IF(INDIVIDUAL!$F$28=DI!$X$4,DI!X25,IF(INDIVIDUAL!$F$28=DI!$Y$4,DI!Y25,\" \"))))))))))))))))))))))","v":" "}," "]
["20","Chiquimula","20-Chiquimula",null,null,null,null,null,null,null,null,"0922-Flores ",null,null,"1222-Pajapita","1322-Concepción Huista",null,null,null,null,null,null,null,null,null,null,{"$f":"IF(INDIVIDUAL!$F$28=DI!$D$4,DI!D26,IF(INDIVIDUAL!$F$28=DI!$E$4,DI!E26,IF(INDIVIDUAL!$F$28=DI!$F$4,DI!F26,IF(INDIVIDUAL!$F$28=DI!$G$4,DI!G26,IF(INDIVIDUAL!$F$28=DI!$H$4,DI!H26,IF(INDIVIDUAL!$F$28=DI!$I$4,DI!I26,IF(INDIVIDUAL!$F$28=DI!$J$4,DI!J26,IF(INDIVIDUAL!$F$28=DI!$K$4,DI!K26,IF(INDIVIDUAL!$F$28=DI!$L$4,DI!L26,IF(INDIVIDUAL!$F$28=DI!$M$4,DI!M26,IF(INDIVIDUAL!$F$28=DI!$N$4,DI!N26,IF(INDIVIDUAL!$F$28=DI!$O$4,DI!O26,IF(INDIVIDUAL!$F$28=DI!$P$4,DI!P26,IF(INDIVIDUAL!$F$28=DI!$Q$4,DI!Q26,IF(INDIVIDUAL!$F$28=DI!$R$4,DI!R26,IF(INDIVIDUAL!$F$28=DI!$S$4,DI!S26,IF(INDIVIDUAL!$F$28=DI!$T$4,DI!T26,IF(INDIVIDUAL!$F$28=DI!$U$4,DI!U26,IF(INDIVIDUAL!$F$28=DI!$V$4,DI!V26,IF(INDIVIDUAL!$F$28=DI!$W$4,DI!W26,IF(INDIVIDUAL!$F$28=DI!$X$4,DI!X26,IF(INDIVIDUAL!$F$28=DI!$Y$4,DI!Y26,\" \"))))))))))))))))))))))","v":" "}," "]
["21","Jalapa","21-Jalapa",null,null,null,null,null,null,null,null,"0923-La Esperanza",null,null,"1223-Ixchiguán","1323-San Juan Ixcoy",null,null,null,null,null,null,null,null,null,null,{"$f":"IF(INDIVIDUAL!$F$28=DI!$D$4,DI!D27,IF(INDIVIDUAL!$F$28=DI!$E$4,DI!E27,IF(INDIVIDUAL!$F$28=DI!$F$4,DI!F27,IF(INDIVIDUAL!$F$28=DI!$G$4,DI!G27,IF(INDIVIDUAL!$F$28=DI!$H$4,DI!H27,IF(INDIVIDUAL!$F$28=DI!$I$4,DI!I27,IF(INDIVIDUAL!$F$28=DI!$J$4,DI!J27,IF(INDIVIDUAL!$F$28=DI!$K$4,DI!K27,IF(INDIVIDUAL!$F$28=DI!$L$4,DI!L27,IF(INDIVIDUAL!$F$28=DI!$M$4,DI!M27,IF(INDIVIDUAL!$F$28=DI!$N$4,DI!N27,IF(INDIVIDUAL!$F$28=DI!$O$4,DI!O27,IF(INDIVIDUAL!$F$28=DI!$P$4,DI!P27,IF(INDIVIDUAL!$F$28=DI!$Q$4,DI!Q27,IF(INDIVIDUAL!$F$28=DI!$R$4,DI!R27,IF(INDIVIDUAL!$F$28=DI!$S$4,DI!S27,IF(INDIVIDUAL!$F$28=DI!$T$4,DI!T27,IF(INDIVIDUAL!$F$28=DI!$U$4,DI!U27,IF(INDIVIDUAL!$F$28=DI!$V$4,DI!V27,IF(INDIVIDUAL!$F$28=DI!$W$4,DI!W27,IF(INDIVIDUAL!$F$28=DI!$X$4,DI!X27,IF(INDIVIDUAL!$F$28=DI!$Y$4,DI!Y27,\" \"))))))))))))))))))))))","v":" "}," "]
["22","Jutiapa","22-Jutiapa",null,null,null,null,null,null,null,null,"0924-Palestina de Los Altos",null,null,"1224-San José Ojetenam","1324-San Antonio Huista",null,null,null,null,null,null,null,null,null,null,{"$f":"IF(INDIVIDUAL!$F$28=DI!$D$4,DI!D28,IF(INDIVIDUAL!$F$28=DI!$E$4,DI!E28,IF(INDIVIDUAL!$F$28=DI!$F$4,DI!F28,IF(INDIVIDUAL!$F$28=DI!$G$4,DI!G28,IF(INDIVIDUAL!$F$28=DI!$H$4,DI!H28,IF(INDIVIDUAL!$F$28=DI!$I$4,DI!I28,IF(INDIVIDUAL!$F$28=DI!$J$4,DI!J28,IF(INDIVIDUAL!$F$28=DI!$K$4,DI!K28,IF(INDIVIDUAL!$F$28=DI!$L$4,DI!L28,IF(INDIVIDUAL!$F$28=DI!$M$4,DI!M28,IF(INDIVIDUAL!$F$28=DI!$N$4,DI!N28,IF(INDIVIDUAL!$F$28=DI!$O$4,DI!O28,IF(INDIVIDUAL!$F$28=DI!$P$4,DI!P28,IF(INDIVIDUAL!$F$28=DI!$Q$4,DI!Q28,IF(INDIVIDUAL!$F$28=DI!$R$4,DI!R28,IF(INDIVIDUAL!$F$28=DI!$S$4,DI!S28,IF(INDIVIDUAL!$F$28=DI!$T$4,DI!T28,IF(INDIVIDUAL!$F$28=DI!$U$4,DI!U28,IF(INDIVIDUAL!$F$28=DI!$V$4,DI!V28,IF(INDIVIDUAL!$F$28=DI!$W$4,DI!W28,IF(INDIVIDUAL!$F$28=DI!$X$4,DI!X28,IF(INDIVIDUAL!$F$28=DI!$Y$4,DI!Y28,\" \"))))))))))))))))))))))","v":" "}," "]
[null,null,null,null,null,null,null,null,null,null,null,null,null,null,"1225-San Cristóbal Cucho","1325-San Sebastián Coatán",null,null,null,null,null,null,null,null,null,null,{"$f":"IF(INDIVIDUAL!$F$28=DI!$D$4,DI!D29,IF(INDIVIDUAL!$F$28=DI!$E$4,DI!E29,IF(INDIVIDUAL!$F$28=DI!$F$4,DI!F29,IF(INDIVIDUAL!$F$28=DI!$G$4,DI!G29,IF(INDIVIDUAL!$F$28=DI!$H$4,DI!H29,IF(INDIVIDUAL!$F$28=DI!$I$4,DI!I29,IF(INDIVIDUAL!$F$28=DI!$J$4,DI!J29,IF(INDIVIDUAL!$F$28=DI!$K$4,DI!K29,IF(INDIVIDUAL!$F$28=DI!$L$4,DI!L29,IF(INDIVIDUAL!$F$28=DI!$M$4,DI!M29,IF(INDIVIDUAL!$F$28=DI!$N$4,DI!N29,IF(INDIVIDUAL!$F$28=DI!$O$4,DI!O29,IF(INDIVIDUAL!$F$28=DI!$P$4,DI!P29,IF(INDIVIDUAL!$F$28=DI!$Q$4,DI!Q29,IF(INDIVIDUAL!$F$28=DI!$R$4,DI!R29,IF(INDIVIDUAL!$F$28=DI!$S$4,DI!S29,IF(INDIVIDUAL!$F$28=DI!$T$4,DI!T29,IF(INDIVIDUAL!$F$28=DI!$U$4,DI!U29,IF(INDIVIDUAL!$F$28=DI!$V$4,DI!V29,IF(INDIVIDUAL!$F$28=DI!$W$4,DI!W29,IF(INDIVIDUAL!$F$28=DI!$X$4,DI!X29,IF(INDIVIDUAL!$F$28=DI!$Y$4,DI!Y29,\" \"))))))))))))))))))))))","v":" "}," "]
[null,null,null,null,null,null,null,null,null,null,null,null,null,null,"1226-Sipacapa","1326-Barillas",null,null,null,null,null,null,null,null,null,null,{"$f":"IF(INDIVIDUAL!$F$28=DI!$D$4,DI!D30,IF(INDIVIDUAL!$F$28=DI!$E$4,DI!E30,IF(INDIVIDUAL!$F$28=DI!$F$4,DI!F30,IF(INDIVIDUAL!$F$28=DI!$G$4,DI!G30,IF(INDIVIDUAL!$F$28=DI!$H$4,DI!H30,IF(INDIVIDUAL!$F$28=DI!$I$4,DI!I30,IF(INDIVIDUAL!$F$28=DI!$J$4,DI!J30,IF(INDIVIDUAL!$F$28=DI!$K$4,DI!K30,IF(INDIVIDUAL!$F$28=DI!$L$4,DI!L30,IF(INDIVIDUAL!$F$28=DI!$M$4,DI!M30,IF(INDIVIDUAL!$F$28=DI!$N$4,DI!N30,IF(INDIVIDUAL!$F$28=DI!$O$4,DI!O30,IF(INDIVIDUAL!$F$28=DI!$P$4,DI!P30,IF(INDIVIDUAL!$F$28=DI!$Q$4,DI!Q30,IF(INDIVIDUAL!$F$28=DI!$R$4,DI!R30,IF(INDIVIDUAL!$F$28=DI!$S$4,DI!S30,IF(INDIVIDUAL!$F$28=DI!$T$4,DI!T30,IF(INDIVIDUAL!$F$28=DI!$U$4,DI!U30,IF(INDIVIDUAL!$F$28=DI!$V$4,DI!V30,IF(INDIVIDUAL!$F$28=DI!$W$4,DI!W30,IF(INDIVIDUAL!$F$28=DI!$X$4,DI!X30,IF(INDIVIDUAL!$F$28=DI!$Y$4,DI!Y30,\" \"))))))))))))))))))))))","v":" "}," "]
[null,null,null,null,null,null,null,null,null,null,null,null,null,null,"1227-Esquipulas Palo Gordo","1327-Aguacatán",null,null,null,null,null,null,null,null,null,null,{"$f":"IF(INDIVIDUAL!$F$28=DI!$D$4,DI!D31,IF(INDIVIDUAL!$F$28=DI!$E$4,DI!E31,IF(INDIVIDUAL!$F$28=DI!$F$4,DI!F31,IF(INDIVIDUAL!$F$28=DI!$G$4,DI!G31,IF(INDIVIDUAL!$F$28=DI!$H$4,DI!H31,IF(INDIVIDUAL!$F$28=DI!$I$4,DI!I31,IF(INDIVIDUAL!$F$28=DI!$J$4,DI!J31,IF(INDIVIDUAL!$F$28=DI!$K$4,DI!K31,IF(INDIVIDUAL!$F$28=DI!$L$4,DI!L31,IF(INDIVIDUAL!$F$28=DI!$M$4,DI!M31,IF(INDIVIDUAL!$F$28=DI!$N$4,DI!N31,IF(INDIVIDUAL!$F$28=DI!$O$4,DI!O31,IF(INDIVIDUAL!$F$28=DI!$P$4,DI!P31,IF(INDIVIDUAL!$F$28=DI!$Q$4,DI!Q31,IF(INDIVIDUAL!$F$28=DI!$R$4,DI!R31,IF(INDIVIDUAL!$F$28=DI!$S$4,DI!S31,IF(INDIVIDUAL!$F$28=DI!$T$4,DI!T31,IF(INDIVIDUAL!$F$28=DI!$U$4,DI!U31,IF(INDIVIDUAL!$F$28=DI!$V$4,DI!V31,IF(INDIVIDUAL!$F$28=DI!$W$4,DI!W31,IF(INDIVIDUAL!$F$28=DI!$X$4,DI!X31,IF(INDIVIDUAL!$F$28=DI!$Y$4,DI!Y31,\" \"))))))))))))))))))))))","v":" "}," "]
[null,null,null,null,null,null,null,null,null,null,null,null,null,null,"1228-Río Blanco","1328-San Rafael Petzal",null,null,null,null,null,null,null,null,null,null,{"$f":"IF(INDIVIDUAL!$F$28=DI!$D$4,DI!D32,IF(INDIVIDUAL!$F$28=DI!$E$4,DI!E32,IF(INDIVIDUAL!$F$28=DI!$F$4,DI!F32,IF(INDIVIDUAL!$F$28=DI!$G$4,DI!G32,IF(INDIVIDUAL!$F$28=DI!$H$4,DI!H32,IF(INDIVIDUAL!$F$28=DI!$I$4,DI!I32,IF(INDIVIDUAL!$F$28=DI!$J$4,DI!J32,IF(INDIVIDUAL!$F$28=DI!$K$4,DI!K32,IF(INDIVIDUAL!$F$28=DI!$L$4,DI!L32,IF(INDIVIDUAL!$F$28=DI!$M$4,DI!M32,IF(INDIVIDUAL!$F$28=DI!$N$4,DI!N32,IF(INDIVIDUAL!$F$28=DI!$O$4,DI!O32,IF(INDIVIDUAL!$F$28=DI!$P$4,DI!P32,IF(INDIVIDUAL!$F$28=DI!$Q$4,DI!Q32,IF(INDIVIDUAL!$F$28=DI!$R$4,DI!R32,IF(INDIVIDUAL!$F$28=DI!$S$4,DI!S32,IF(INDIVIDUAL!$F$28=DI!$T$4,DI!T32,IF(INDIVIDUAL!$F$28=DI!$U$4,DI!U32,IF(INDIVIDUAL!$F$28=DI!$V$4,DI!V32,IF(INDIVIDUAL!$F$28=DI!$W$4,DI!W32,IF(INDIVIDUAL!$F$28=DI!$X$4,DI!X32,IF(INDIVIDUAL!$F$28=DI!$Y$4,DI!Y32,\" \"))))))))))))))))))))))","v":" "}," "]
[null,null,null,null,null,null,null,null,null,null,null,null,null,null,"1229-San Lorenzo","1329-San Gaspar Ixchil",null,null,null,null,null,null,null,null,null,null,{"$f":"IF(INDIVIDUAL!$F$28=DI!$D$4,DI!D33,IF(INDIVIDUAL!$F$28=DI!$E$4,DI!E33,IF(INDIVIDUAL!$F$28=DI!$F$4,DI!F33,IF(INDIVIDUAL!$F$28=DI!$G$4,DI!G33,IF(INDIVIDUAL!$F$28=DI!$H$4,DI!H33,IF(INDIVIDUAL!$F$28=DI!$I$4,DI!I33,IF(INDIVIDUAL!$F$28=DI!$J$4,DI!J33,IF(INDIVIDUAL!$F$28=DI!$K$4,DI!K33,IF(INDIVIDUAL!$F$28=DI!$L$4,DI!L33,IF(INDIVIDUAL!$F$28=DI!$M$4,DI!M33,IF(INDIVIDUAL!$F$28=DI!$N$4,DI!N33,IF(INDIVIDUAL!$F$28=DI!$O$4,DI!O33,IF(INDIVIDUAL!$F$28=DI!$P$4,DI!P33,IF(INDIVIDUAL!$F$28=DI!$Q$4,DI!Q33,IF(INDIVIDUAL!$F$28=DI!$R$4,DI!R33,IF(INDIVIDUAL!$F$28=DI!$S$4,DI!S33,IF(INDIVIDUAL!$F$28=DI!$T$4,DI!T33,IF(INDIVIDUAL!$F$28=DI!$U$4,DI!U33,IF(INDIVIDUAL!$F$28=DI!$V$4,DI!V33,IF(INDIVIDUAL!$F$28=DI!$W$4,DI!W33,IF(INDIVIDUAL!$F$28=DI!$X$4,DI!X33,IF(INDIVIDUAL!$F$28=DI!$Y$4,DI!Y33,\" \"))))))))))))))))))))))","v":" "}," "]
[null,null,null,null,null,null,null,null,null,null,null,null,null,null,null,"1330-Santiago Chimaltenango",null,null,null,null,null,null,null,null,null,null,{"$f":"IF(INDIVIDUAL!$F$28=DI!$D$4,DI!D34,IF(INDIVIDUAL!$F$28=DI!$E$4,DI!E34,IF(INDIVIDUAL!$F$28=DI!$F$4,DI!F34,IF(INDIVIDUAL!$F$28=DI!$G$4,DI!G34,IF(INDIVIDUAL!$F$28=DI!$H$4,DI!H34,IF(INDIVIDUAL!$F$28=DI!$I$4,DI!I34,IF(INDIVIDUAL!$F$28=DI!$J$4,DI!J34,IF(INDIVIDUAL!$F$28=DI!$K$4,DI!K34,IF(INDIVIDUAL!$F$28=DI!$L$4,DI!L34,IF(INDIVIDUAL!$F$28=DI!$M$4,DI!M34,IF(INDIVIDUAL!$F$28=DI!$N$4,DI!N34,IF(INDIVIDUAL!$F$28=DI!$O$4,DI!O34,IF(INDIVIDUAL!$F$28=DI!$P$4,DI!P34,IF(INDIVIDUAL!$F$28=DI!$Q$4,DI!Q34,IF(INDIVIDUAL!$F$28=DI!$R$4,DI!R34,IF(INDIVIDUAL!$F$28=DI!$S$4,DI!S34,IF(INDIVIDUAL!$F$28=DI!$T$4,DI!T34,IF(INDIVIDUAL!$F$28=DI!$U$4,DI!U34,IF(INDIVIDUAL!$F$28=DI!$V$4,DI!V34,IF(INDIVIDUAL!$F$28=DI!$W$4,DI!W34,IF(INDIVIDUAL!$F$28=DI!$X$4,DI!X34,IF(INDIVIDUAL!$F$28=DI!$Y$4,DI!Y34,\" \"))))))))))))))))))))))","v":" "}," "]
[null,null,null,null,null,null,null,null,null,null,null,null,null,null,null,"1331-Santa Ana Huista",null,null,null,null,null,null,null,null,null,null,{"$f":"IF(INDIVIDUAL!$F$28=DI!$D$4,DI!D35,IF(INDIVIDUAL!$F$28=DI!$E$4,DI!E35,IF(INDIVIDUAL!$F$28=DI!$F$4,DI!F35,IF(INDIVIDUAL!$F$28=DI!$G$4,DI!G35,IF(INDIVIDUAL!$F$28=DI!$H$4,DI!H35,IF(INDIVIDUAL!$F$28=DI!$I$4,DI!I35,IF(INDIVIDUAL!$F$28=DI!$J$4,DI!J35,IF(INDIVIDUAL!$F$28=DI!$K$4,DI!K35,IF(INDIVIDUAL!$F$28=DI!$L$4,DI!L35,IF(INDIVIDUAL!$F$28=DI!$M$4,DI!M35,IF(INDIVIDUAL!$F$28=DI!$N$4,DI!N35,IF(INDIVIDUAL!$F$28=DI!$O$4,DI!O35,IF(INDIVIDUAL!$F$28=DI!$P$4,DI!P35,IF(INDIVIDUAL!$F$28=DI!$Q$4,DI!Q35,IF(INDIVIDUAL!$F$28=DI!$R$4,DI!R35,IF(INDIVIDUAL!$F$28=DI!$S$4,DI!S35,IF(INDIVIDUAL!$F$28=DI!$T$4,DI!T35,IF(INDIVIDUAL!$F$28=DI!$U$4,DI!U35,IF(INDIVIDUAL!$F$28=DI!$V$4,DI!V35,IF(INDIVIDUAL!$F$28=DI!$W$4,DI!W35,IF(INDIVIDUAL!$F$28=DI!$X$4,DI!X35,IF(INDIVIDUAL!$F$28=DI!$Y$4,DI!Y35,\" \"))))))))))))))))))))))","v":" "}," "]
[null,null,null,null,null,null,null,null,null,null,null,null,null,null,null,"1332-Unión Cantinil",null,null,null,null,null,null,null,null,null,null,{"$f":"IF(INDIVIDUAL!$F$28=DI!$D$4,DI!D36,IF(INDIVIDUAL!$F$28=DI!$E$4,DI!E36,IF(INDIVIDUAL!$F$28=DI!$F$4,DI!F36,IF(INDIVIDUAL!$F$28=DI!$G$4,DI!G36,IF(INDIVIDUAL!$F$28=DI!$H$4,DI!H36,IF(INDIVIDUAL!$F$28=DI!$I$4,DI!I36,IF(INDIVIDUAL!$F$28=DI!$J$4,DI!J36,IF(INDIVIDUAL!$F$28=DI!$K$4,DI!K36,IF(INDIVIDUAL!$F$28=DI!$L$4,DI!L36,IF(INDIVIDUAL!$F$28=DI!$M$4,DI!M36,IF(INDIVIDUAL!$F$28=DI!$N$4,DI!N36,IF(INDIVIDUAL!$F$28=DI!$O$4,DI!O36,IF(INDIVIDUAL!$F$28=DI!$P$4,DI!P36,IF(INDIVIDUAL!$F$28=DI!$Q$4,DI!Q36,IF(INDIVIDUAL!$F$28=DI!$R$4,DI!R36,IF(INDIVIDUAL!$F$28=DI!$S$4,DI!S36,IF(INDIVIDUAL!$F$28=DI!$T$4,DI!T36,IF(INDIVIDUAL!$F$28=DI!$U$4,DI!U36,IF(INDIVIDUAL!$F$28=DI!$V$4,DI!V36,IF(INDIVIDUAL!$F$28=DI!$W$4,DI!W36,IF(INDIVIDUAL!$F$28=DI!$X$4,DI!X36,IF(INDIVIDUAL!$F$28=DI!$Y$4,DI!Y36,\" \"))))))))))))))))))))))","v":" "}," "]

{"sheet":"DJ","index":4,"n_rows":36,"n_cols":28,"rows_kept":36,"cut":false,"hidden":true,"merged":[]}
[]
[]
[]
[null,null,null,"01-Guatemala","02-Sacatepéquez","03-Chimaltenango","04-El Progreso","05-Escuintla","06-Santa Rosa","07-Sololá","08-Totonicapán","09-Quetzaltenango","10-Suchitepéquez","11-Retalhuleu","12-San Marcos","13-Huehuetenango","14-El Quiché","15-Baja Verapaz","16-Alta Verapaz","17-Petén","18-Izabal","19-Zacapa","20-Chiquimula","21-Jalapa","22-Jutiapa",null,"Formula","Final"]
["Departamento",null,null,"0101-Guatemala","0201-Antigua Guatemala","0301-Chimaltenango","0401-Guastatoya","0501-Escuintla","0601-Cuilapa","0701-Sololá","0801-Totonicapán","0901-Quetzaltenango","1001-Mazatenango","1101-Retalhuleu","1201-San Marcos","1301-Huehuetenango","1401-Santa Cruz del Quiché","1501-Salamá","1601-Cobán","1701-Flores","1801-Puerto Barrios","1901-Zacapa","2001-Chiquimula","2101-Jalapa","2201-Jutiapa",null,{"$f":"IF(JURÍDICA!$F$20=DI!$D$4,DI!D5,IF(JURÍDICA!$F$20=DI!$E$4,DI!E5,IF(JURÍDICA!$F$20=DI!$F$4,DI!F5,IF(JURÍDICA!$F$20=DI!$G$4,DI!G5,IF(JURÍDICA!$F$20=DI!$H$4,DI!H5,IF(JURÍDICA!$F$20=DI!$I$4,DI!I5,IF(JURÍDICA!$F$20=DI!$J$4,DI!J5,IF(JURÍDICA!$F$20=DI!$K$4,DI!K5,IF(JURÍDICA!$F$20=DI!$L$4,DI!L5,IF(JURÍDICA!$F$20=DI!$M$4,DI!M5,IF(JURÍDICA!$F$20=DI!$N$4,DI!N5,IF(JURÍDICA!$F$20=DI!$O$4,DI!O5,IF(JURÍDICA!$F$20=DI!$P$4,DI!P5,IF(JURÍDICA!$F$20=DI!$Q$4,DI!Q5,IF(JURÍDICA!$F$20=DI!$R$4,DI!R5,IF(JURÍDICA!$F$20=DI!$S$4,DI!S5,IF(JURÍDICA!$F$20=DI!$T$4,DI!T5,IF(JURÍDICA!$F$20=DI!$U$4,DI!U5,IF(JURÍDICA!$F$20=DI!$V$4,DI!V5,IF(JURÍDICA!$F$20=DI!$W$4,DI!W5,IF(JURÍDICA!$F$20=DI!$X$4,DI!X5,IF(JURÍDICA!$F$20=DI!$Y$4,DI!Y5,\"\"))))))))))))))))))))))","v":""},{"$f":"IF(AA5=0,\"\",AA5)","v":""}]
["Código","Descripción","concatenar","0102-Santa Catarina Pínula","0202-Jocotenango","0302-San José Poaquil","0402-Morazán","0502-Santa Lucía Cotzumalguapa","0602-Barberena","0702-San José Chacayá","0802-San Cristóbal Totonicapan","0902-Salcajá","1002-Cuyotenango","1102-San Sebastián","1202-San Pedro Sacatepéquez","1302-Chiantla","1402-Chiché","1502-San Miguel Chicaj","1602-Santa Cruz Verapaz","1701-Santa Elena","1802-Lívingston","1902-Estanzuela","2002-San José La Arada","2102-San Pedro Pínula","2202-El Progreso",null,{"$f":"IF(JURÍDICA!$F$20=DI!$D$4,DI!D6,IF(JURÍDICA!$F$20=DI!$E$4,DI!E6,IF(JURÍDICA!$F$20=DI!$F$4,DI!F6,IF(JURÍDICA!$F$20=DI!$G$4,DI!G6,IF(JURÍDICA!$F$20=DI!$H$4,DI!H6,IF(JURÍDICA!$F$20=DI!$I$4,DI!I6,IF(JURÍDICA!$F$20=DI!$J$4,DI!J6,IF(JURÍDICA!$F$20=DI!$K$4,DI!K6,IF(JURÍDICA!$F$20=DI!$L$4,DI!L6,IF(JURÍDICA!$F$20=DI!$M$4,DI!M6,IF(JURÍDICA!$F$20=DI!$N$4,DI!N6,IF(JURÍDICA!$F$20=DI!$O$4,DI!O6,IF(JURÍDICA!$F$20=DI!$P$4,DI!P6,IF(JURÍDICA!$F$20=DI!$Q$4,DI!Q6,IF(JURÍDICA!$F$20=DI!$R$4,DI!R6,IF(JURÍDICA!$F$20=DI!$S$4,DI!S6,IF(JURÍDICA!$F$20=DI!$T$4,DI!T6,IF(JURÍDICA!$F$20=DI!$U$4,DI!U6,IF(JURÍDICA!$F$20=DI!$V$4,DI!V6,IF(JURÍDICA!$F$20=DI!$W$4,DI!W6,IF(JURÍDICA!$F$20=DI!$X$4,DI!X6,IF(JURÍDICA!$F$20=DI!$Y$4,DI!Y6,\"\"))))))))))))))))))))))","v":""},""]
["01","Guatemala",{"$f":"CONCATENATE(A7,\"-\",B7)","v":"01-Guatemala"},"0103-San José Pínula","0203-Pastores","0303-San Martín Jilotepeque","0403-San Agustín Acasaguastlán","0503-La Democracia","0603-Santa Rosa De Lima","0703-Santa María Visitación","0803-San Francisco El Alto","0903-Olintepeque","1003-San Francisco Zapotitlán","1103-Santa Cruz Muluá","1203-San Antonio Sacatepéquez","1303-Malacatancito","1403-Chinique","1503-Rabinal","1603-San Cristóbal Verapaz","1702-San José","1803-El Estor","1903-Río Hondo","2003-San Juan Ermita","2103-San Luis Jilotepeque","2203-Santa Catarina Mita",null,{"$f":"IF(JURÍDICA!$F$20=DI!$D$4,DI!D7,IF(JURÍDICA!$F$20=DI!$E$4,DI!E7,IF(JURÍDICA!$F$20=DI!$F$4,DI!F7,IF(JURÍDICA!$F$20=DI!$G$4,DI!G7,IF(JURÍDICA!$F$20=DI!$H$4,DI!H7,IF(JURÍDICA!$F$20=DI!$I$4,DI!I7,IF(JURÍDICA!$F$20=DI!$J$4,DI!J7,IF(JURÍDICA!$F$20=DI!$K$4,DI!K7,IF(JURÍDICA!$F$20=DI!$L$4,DI!L7,IF(JURÍDICA!$F$20=DI!$M$4,DI!M7,IF(JURÍDICA!$F$20=DI!$N$4,DI!N7,IF(JURÍDICA!$F$20=DI!$O$4,DI!O7,IF(JURÍDICA!$F$20=DI!$P$4,DI!P7,IF(JURÍDICA!$F$20=DI!$Q$4,DI!Q7,IF(JURÍDICA!$F$20=DI!$R$4,DI!R7,IF(JURÍDICA!$F$20=DI!$S$4,DI!S7,IF(JURÍDICA!$F$20=DI!$T$4,DI!T7,IF(JURÍDICA!$F$20=DI!$U$4,DI!U7,IF(JURÍDICA!$F$20=DI!$V$4,DI!V7,IF(JURÍDICA!$F$20=DI!$W$4,DI!W7,IF(JURÍDICA!$F$20=DI!$X$4,DI!X7,IF(JURÍDICA!$F$20=DI!$Y$4,DI!Y7,\"\"))))))))))))))))))))))","v":""},""]
["02","Sacatepéquez","02-Sacatepéquez","0104-San José del Golfo","0204-Sumpango","0304-Comalapa","0404-San Cristóbal Acasaguastlán","0504-Siquinala","0604-Casillas","0704-Santa Lucía Utatlán","0804-San Andrés Xecul","0904-San Carlos Sija","1004-San Bernardino","1104-San Martín Zapotitlán","1204-Comitancillo","1304-Cuilco","1404-Zacualpa","1504-Cubulco","1604-Tactic","1703-San Benito","1804-Morales","1904-Gualán","2004-Jocotán","2104-San Manuel Chaparrón","2204-Agua Blanca",null,{"$f":"IF(JURÍDICA!$F$20=DI!$D$4,DI!D8,IF(JURÍDICA!$F$20=DI!$E$4,DI!E8,IF(JURÍDICA!$F$20=DI!$F$4,DI!F8,IF(JURÍDICA!$F$20=DI!$G$4,DI!G8,IF(JURÍDICA!$F$20=DI!$H$4,DI!H8,IF(JURÍDICA!$F$20=DI!$I$4,DI!I8,IF(JURÍDICA!$F$20=DI!$J$4,DI!J8,IF(JURÍDICA!$F$20=DI!$K$4,DI!K8,IF(JURÍDICA!$F$20=DI!$L$4,DI!L8,IF(JURÍDICA!$F$20=DI!$M$4,DI!M8,IF(JURÍDICA!$F$20=DI!$N$4,DI!N8,IF(JURÍDICA!$F$20=DI!$O$4,DI!O8,IF(JURÍDICA!$F$20=DI!$P$4,DI!P8,IF(JURÍDICA!$F$20=DI!$Q$4,DI!Q8,IF(JURÍDICA!$F$20=DI!$R$4,DI!R8,IF(JURÍDICA!$F$20=DI!$S$4,DI!S8,IF(JURÍDICA!$F$20=DI!$T$4,DI!T8,IF(JURÍDICA!$F$20=DI!$U$4,DI!U8,IF(JURÍDICA!$F$20=DI!$V$4,DI!V8,IF(JURÍDICA!$F$20=DI!$W$4,DI!W8,IF(JURÍDICA!$F$20=DI!$X$4,DI!X8,IF(JURÍDICA!$F$20=DI!$Y$4,DI!Y8,\"\"))))))))))))))))))))))","v":""},""]
["03","Chimaltenango","03-Chimaltenango","0105-Palencia","0205-Santo Domingo Xenacoj","0305-Santa Apolonia","0405-El Jícaro","0505-Masagua","0605-San Rafael Las Flores","0705-Nahualá","0805-Momostenango","0905-Sibilia","1005-San José El Idolo","1105-San Felipe","1205-San Miguel Ixtahuacán","1305-Nentón","1405-Chajul","1505-Granados","1605-Tamahú","1704-San Andrés","1805-Los Amates","1905-Teculután","2005-Camotán","2105-San Carlos Alzatate","2205-Asunción Mita",null,{"$f":"IF(JURÍDICA!$F$20=DI!$D$4,DI!D9,IF(JURÍDICA!$F$20=DI!$E$4,DI!E9,IF(JURÍDICA!$F$20=DI!$F$4,DI!F9,IF(JURÍDICA!$F$20=DI!$G$4,DI!G9,IF(JURÍDICA!$F$20=DI!$H$4,DI!H9,IF(JURÍDICA!$F$20=DI!$I$4,DI!I9,IF(JURÍDICA!$F$20=DI!$J$4,DI!J9,IF(JURÍDICA!$F$20=DI!$K$4,DI!K9,IF(JURÍDICA!$F$20=DI!$L$4,DI!L9,IF(JURÍDICA!$F$20=DI!$M$4,DI!M9,IF(JURÍDICA!$F$20=DI!$N$4,DI!N9,IF(JURÍDICA!$F$20=DI!$O$4,DI!O9,IF(JURÍDICA!$F$20=DI!$P$4,DI!P9,IF(JURÍDICA!$F$20=DI!$Q$4,DI!Q9,IF(JURÍDICA!$F$20=DI!$R$4,DI!R9,IF(JURÍDICA!$F$20=DI!$S$4,DI!S9,IF(JURÍDICA!$F$20=DI!$T$4,DI!T9,IF(JURÍDICA!$F$20=DI!$U$4,DI!U9,IF(JURÍDICA!$F$20=DI!$V$4,DI!V9,IF(JURÍDICA!$F$20=DI!$W$4,DI!W9,IF(JURÍDICA!$F$20=DI!$X$4,DI!X9,IF(JURÍDICA!$F$20=DI!$Y$4,DI!Y9,\"\"))))))))))))))))))))))","v":""},""]
["04","El Progreso","04-El Progreso","0106-Chinautla","0206-Santiago Sacatepéquez","0306-Tecpan Guatemala","0406-Sansare","0506-Tiquisate","0606-Oratorio","0706-Santa Catarina Ixtahuacán","0806-Santa María Chiquimula","0906-Cabricán","1006-Santo Domingo Suchitepéquez","1106-San Andrés Villa Seca","1206-Concepción Tutuapa","1306-San Pedro Necta","1406-Chichicastenango","1506-El Chol","1606-Tucurú","1705-La Libertad",null,"1906-Usumatlán","2006-Olopa","2106-Monjas","2206-Yupiltepeque",null,{"$f":"IF(JURÍDICA!$F$20=DI!$D$4,DI!D10,IF(JURÍDICA!$F$20=DI!$E$4,DI!E10,IF(JURÍDICA!$F$20=DI!$F$4,DI!F10,IF(JURÍDICA!$F$20=DI!$G$4,DI!G10,IF(JURÍDICA!$F$20=DI!$H$4,DI!H10,IF(JURÍDICA!$F$20=DI!$I$4,DI!I10,IF(JURÍDICA!$F$20=DI!$J$4,DI!J10,IF(JURÍDICA!$F$20=DI!$K$4,DI!K10,IF(JURÍDICA!$F$20=DI!$L$4,DI!L10,IF(JURÍDICA!$F$20=DI!$M$4,DI!M10,IF(JURÍDICA!$F$20=DI!$N$4,DI!N10,IF(JURÍDICA!$F$20=DI!$O$4,DI!O10,IF(JURÍDICA!$F$20=DI!$P$4,DI!P10,IF(JURÍDICA!$F$20=DI!$Q$4,DI!Q10,IF(JURÍDICA!$F$20=DI!$R$4,DI!R10,IF(JURÍDICA!$F$20=DI!$S$4,DI!S10,IF(JURÍDICA!$F$20=DI!$T$4,DI!T10,IF(JURÍDICA!$F$20=DI!$U$4,DI!U10,IF(JURÍDICA!$F$20=DI!$V$4,DI!V10,IF(JURÍDICA!$F$20=DI!$W$4,DI!W10,IF(JURÍDICA!$F$20=DI!$X$4,DI!X10,IF(JURÍDICA!$F$20=DI!$Y$4,DI!Y10,\"\"))))))))))))))))))))))","v":""},""]
["05","Escuintla","05-Escuintla","0107-San Pedro Ayampuc","0207-San Bartolomé Milpas Altas","0307-Patzún","0407-Sanarate","0507-La Gomera","0607-San Juan Tecuaco","0707-Santa Clara La Laguna","0807-Santa Lucía La Reforma","0907-Cajolá","1007-San Lorenzo","1107-Champerico","1207-Tacaná","1307-Jacaltenango","1407-Patzité","1507-San Jerónimo","1607-Panzós","1706-San Francisco",null,"1907-Cabañas","2007-Esquipulas","2107-Mataquescuintla","2207-Atescatempa",null,{"$f":"IF(JURÍDICA!$F$20=DI!$D$4,DI!D11,IF(JURÍDICA!$F$20=DI!$E$4,DI!E11,IF(JURÍDICA!$F$20=DI!$F$4,DI!F11,IF(JURÍDICA!$F$20=DI!$G$4,DI!G11,IF(JURÍDICA!$F$20=DI!$H$4,DI!H11,IF(JURÍDICA!$F$20=DI!$I$4,DI!I11,IF(JURÍDICA!$F$20=DI!$J$4,DI!J11,IF(JURÍDICA!$F$20=DI!$K$4,DI!K11,IF(JURÍDICA!$F$20=DI!$L$4,DI!L11,IF(JURÍDICA!$F$20=DI!$M$4,DI!M11,IF(JURÍDICA!$F$20=DI!$N$4,DI!N11,IF(JURÍDICA!$F$20=DI!$O$4,DI!O11,IF(JURÍDICA!$F$20=DI!$P$4,DI!P11,IF(JURÍDICA!$F$20=DI!$Q$4,DI!Q11,IF(JURÍDICA!$F$20=DI!$R$4,DI!R11,IF(JURÍDICA!$F$20=DI!$S$4,DI!S11,IF(JURÍDICA!$F$20=DI!$T$4,DI!T11,IF(JURÍDICA!$F$20=DI!$U$4,DI!U11,IF(JURÍDICA!$F$20=DI!$V$4,DI!V11,IF(JURÍDICA!$F$20=DI!$W$4,DI!W11,IF(JURÍDICA!$F$20=DI!$X$4,DI!X11,IF(JURÍDICA!$F$20=DI!$Y$4,DI!Y11,\"\"))))))))))))))))))))))","v":""},""]
["06","Santa Rosa","06-Santa Rosa","0108-Mixco","0208-San Lucas Sacatepéquez","0308-Pochuta","0408-San Antonio La Paz","0508-Guanagazapa","0608-Chiquimulilla","0708-Concepción","0808-San Bartolo","0908-San Miguel Siguilá","1008-Samayac","1108-Nuevo San Carlos","1208-Sibinal","1308-Soloma","1408-San Antonio Ilotenango","1508-Purulhá","1608-Senahú","1707-Santa Ana",null,"1908-San Diego","2008-Concepción Las Minas",null,"2208-Jerez",null,{"$f":"IF(JURÍDICA!$F$20=DI!$D$4,DI!D12,IF(JURÍDICA!$F$20=DI!$E$4,DI!E12,IF(JURÍDICA!$F$20=DI!$F$4,DI!F12,IF(JURÍDICA!$F$20=DI!$G$4,DI!G12,IF(JURÍDICA!$F$20=DI!$H$4,DI!H12,IF(JURÍDICA!$F$20=DI!$I$4,DI!I12,IF(JURÍDICA!$F$20=DI!$J$4,DI!J12,IF(JURÍDICA!$F$20=DI!$K$4,DI!K12,IF(JURÍDICA!$F$20=DI!$L$4,DI!L12,IF(JURÍDICA!$F$20=DI!$M$4,DI!M12,IF(JURÍDICA!$F$20=DI!$N$4,DI!N12,IF(JURÍDICA!$F$20=DI!$O$4,DI!O12,IF(JURÍDICA!$F$20=DI!$P$4,DI!P12,IF(JURÍDICA!$F$20=DI!$Q$4,DI!Q12,IF(JURÍDICA!$F$20=DI!$R$4,DI!R12,IF(JURÍDICA!$F$20=DI!$S$4,DI!S12,IF(JURÍDICA!$F$20=DI!$T$4,DI!T12,IF(JURÍDICA!$F$20=DI!$U$4,DI!U12,IF(JURÍDICA!$F$20=DI!$V$4,DI!V12,IF(JURÍDICA!$F$20=DI!$W$4,DI!W12,IF(JURÍDICA!$F$20=DI!$X$4,DI!X12,IF(JURÍDICA!$F$20=DI!$Y$4,DI!Y12,\"\"))))))))))))))))))))))","v":""},""]
["07","Sololá","07-Sololá","0109-San Pedro Sacatepéquez","0209-Santa Lucia Milpas Altas","0309-Patzicía",null,"0509-Puerto San José","0609-Taxisco","0709-San Andrés Semetabaj",null,"0909-San Juan Ostuncalco","1009-San Pablo Jocopilas","1109-El Asintal","1209-Tajumulco","1309-Ixtahuacán","1409-San Pedro Jocopilas",null,"1609-San Pedro Carchá","1708-Dolores",null,"1909-La Unión","2009-Quetzaltepeque",null,"2209-El Adelanto",null,{"$f":"IF(JURÍDICA!$F$20=DI!$D$4,DI!D13,IF(JURÍDICA!$F$20=DI!$E$4,DI!E13,IF(JURÍDICA!$F$20=DI!$F$4,DI!F13,IF(JURÍDICA!$F$20=DI!$G$4,DI!G13,IF(JURÍDICA!$F$20=DI!$H$4,DI!H13,IF(JURÍDICA!$F$20=DI!$I$4,DI!I13,IF(JURÍDICA!$F$20=DI!$J$4,DI!J13,IF(JURÍDICA!$F$20=DI!$K$4,DI!K13,IF(JURÍDICA!$F$20=DI!$L$4,DI!L13,IF(JURÍDICA!$F$20=DI!$M$4,DI!M13,IF(JURÍDICA!$F$20=DI!$N$4,DI!N13,IF(JURÍDICA!$F$20=DI!$O$4,DI!O13,IF(JURÍDICA!$F$20=DI!$P$4,DI!P13,IF(JURÍDICA!$F$20=DI!$Q$4,DI!Q13,IF(JURÍDICA!$F$20=DI!$R$4,DI!R13,IF(JURÍDICA!$F$20=DI!$S$4,DI!S13,IF(JURÍDICA!$F$20=DI!$T$4,DI!T13,IF(JURÍDICA!$F$20=DI!$U$4,DI!U13,IF(JURÍDICA!$F$20=DI!$V$4,DI!V13,IF(JURÍDICA!$F$20=DI!$W$4,DI!W13,IF(JURÍDICA!$F$20=DI!$X$4,DI!X13,IF(JURÍDICA!$F$20=DI!$Y$4,DI!Y13,\"\"))))))))))))))))))))))","v":""},""]
["08","Totonicapán","08-Totonicapán","0110-San Juan Sacatepéquez","0210-Magdalena Milpas Altas","0310-Santa Cruz Balanya",null,"0510-Iztapa","0610-Santa María Ixhuatán","0710-Panajachel",null,"0910-San Mateo","1010-San Antonio Suchitepéquez",null,"1210-Tejutla","1310-Santa Bárbara","1410-Cunén",null,"1610-San Juan Chamelco","1709-San Luis",null,"1910-Huité","2010-San Jacinto",null,"2210-Zapotitlán",null,{"$f":"IF(JURÍDICA!$F$20=DI!$D$4,DI!D14,IF(JURÍDICA!$F$20=DI!$E$4,DI!E14,IF(JURÍDICA!$F$20=DI!$F$4,DI!F14,IF(JURÍDICA!$F$20=DI!$G$4,DI!G14,IF(JURÍDICA!$F$20=DI!$H$4,DI!H14,IF(JURÍDICA!$F$20=DI!$I$4,DI!I14,IF(JURÍDICA!$F$20=DI!$J$4,DI!J14,IF(JURÍDICA!$F$20=DI!$K$4,DI!K14,IF(JURÍDICA!$F$20=DI!$L$4,DI!L14,IF(JURÍDICA!$F$20=DI!$M$4,DI!M14,IF(JURÍDICA!$F$20=DI!$N$4,DI!N14,IF(JURÍDICA!$F$20=DI!$O$4,DI!O14,IF(JURÍDICA!$F$20=DI!$P$4,DI!P14,IF(JURÍDICA!$F$20=DI!$Q$4,DI!Q14,IF(JURÍDICA!$F$20=DI!$R$4,DI!R14,IF(JURÍDICA!$F$20=DI!$S$4,DI!S14,IF(JURÍDICA!$F$20=DI!$T$4,DI!T14,IF(JURÍDICA!$F$20=DI!$U$4,DI!U14,IF(JURÍDICA!$F$20=DI!$V$4,DI!V14,IF(JURÍDICA!$F$20=DI!$W$4,DI!W14,IF(JURÍDICA!$F$20=DI!$X$4,DI!X14,IF(JURÍDICA!$F$20=DI!$Y$4,DI!Y14,\"\"))))))))))))))))))))))","v":""},""]
["09","Quetzaltenango","09-Quetzaltenango","0111-San Raymundo","0211-Santa María de Jesús","0311-Acatenango",null,"0511-Palín","0611-Guazacapan","0711-Santa Catarina Palopó",null,"0911-Concepción Chiquirichapa","1011-San Miguel Panán",null,"1211-San Rafael Pie De La Cuesta","1311-La Libertad","1411-San Juan Cotzal",null,"1611-Lanquín","1710-Sayaxché",null,null,"2011-Ipala",null,"2211-Comapa",null,{"$f":"IF(JURÍDICA!$F$20=DI!$D$4,DI!D15,IF(JURÍDICA!$F$20=DI!$E$4,DI!E15,IF(JURÍDICA!$F$20=DI!$F$4,DI!F15,IF(JURÍDICA!$F$20=DI!$G$4,DI!G15,IF(JURÍDICA!$F$20=DI!$H$4,DI!H15,IF(JURÍDICA!$F$20=DI!$I$4,DI!I15,IF(JURÍDICA!$F$20=DI!$J$4,DI!J15,IF(JURÍDICA!$F$20=DI!$K$4,DI!K15,IF(JURÍDICA!$F$20=DI!$L$4,DI!L15,IF(JURÍDICA!$F$20=DI!$M$4,DI!M15,IF(JURÍDICA!$F$20=DI!$N$4,DI!N15,IF(JURÍDICA!$F$20=DI!$O$4,DI!O15,IF(JURÍDICA!$F$20=DI!$P$4,DI!P15,IF(JURÍDICA!$F$20=DI!$Q$4,DI!Q15,IF(JURÍDICA!$F$20=DI!$R$4,DI!R15,IF(JURÍDICA!$F$20=DI!$S$4,DI!S15,IF(JURÍDICA!$F$20=DI!$T$4,DI!T15,IF(JURÍDICA!$F$20=DI!$U$4,DI!U15,IF(JURÍDICA!$F$20=DI!$V$4,DI!V15,IF(JURÍDICA!$F$20=DI!$W$4,DI!W15,IF(JURÍDICA!$F$20=DI!$X$4,DI!X15,IF(JURÍDICA!$F$20=DI!$Y$4,DI!Y15,\"\"))))))))))))))))))))))","v":""},""]
["10","Suchitepéquez","10-Suchitepéquez","0112-Chuarrancho","0212-Ciudad Vieja","0312-San Pedro Yepocapa",null,"0512-San Vicente Pacaya","0612-Santa Cruz Naranjo","0712-San Antonio Palopó",null,"0912-San Martín Sacatepéquez","1012-San Gabriel",null,"1212-Nuevo Progreso","1312-La Democracia","1412-Joyabaj",null,"1612-Cahabón","1711-Melchor De Mencos",null,null,null,null,"2212-Jalpatagua",null,{"$f":"IF(JURÍDICA!$F$20=DI!$D$4,DI!D16,IF(JURÍDICA!$F$20=DI!$E$4,DI!E16,IF(JURÍDICA!$F$20=DI!$F$4,DI!F16,IF(JURÍDICA!$F$20=DI!$G$4,DI!G16,IF(JURÍDICA!$F$20=DI!$H$4,DI!H16,IF(JURÍDICA!$F$20=DI!$I$4,DI!I16,IF(JURÍDICA!$F$20=DI!$J$4,DI!J16,IF(JURÍDICA!$F$20=DI!$K$4,DI!K16,IF(JURÍDICA!$F$20=DI!$L$4,DI!L16,IF(JURÍDICA!$F$20=DI!$M$4,DI!M16,IF(JURÍDICA!$F$20=DI!$N$4,DI!N16,IF(JURÍDICA!$F$20=DI!$O$4,DI!O16,IF(JURÍDICA!$F$20=DI!$P$4,DI!P16,IF(JURÍDICA!$F$20=DI!$Q$4,DI!Q16,IF(JURÍDICA!$F$20=DI!$R$4,DI!R16,IF(JURÍDICA!$F$20=DI!$S$4,DI!S16,IF(JURÍDICA!$F$20=DI!$T$4,DI!T16,IF(JURÍDICA!$F$20=DI!$U$4,DI!U16,IF(JURÍDICA!$F$20=DI!$V$4,DI!V16,IF(JURÍDICA!$F$20=DI!$W$4,DI!W16,IF(JURÍDICA!$F$20=DI!$X$4,DI!X16,IF(JURÍDICA!$F$20=DI!$Y$4,DI!Y16,\"\"))))))))))))))))))))))","v":""},""]
["11","Retalhuleu","11-Retalhuleu","0113-Fraijanes","0213-San Miguel Dueñas","0313-San Andrés Itzapa",null,"0513-Nueva Concepción","0613-Pueblo Nuevo Viñas","0713-San Lucas Tolimán",null,"0913-Almolonga","1013-Chicacao",null,"1213-El Tumbador","1313-San Miguel Acatán","1413-Nebaj",null,"1613-Chisec","1712-Poptún",null,null,null,null,"2213-Conguaco",null,{"$f":"IF(JURÍDICA!$F$20=DI!$D$4,DI!D17,IF(JURÍDICA!$F$20=DI!$E$4,DI!E17,IF(JURÍDICA!$F$20=DI!$F$4,DI!F17,IF(JURÍDICA!$F$20=DI!$G$4,DI!G17,IF(JURÍDICA!$F$20=DI!$H$4,DI!H17,IF(JURÍDICA!$F$20=DI!$I$4,DI!I17,IF(JURÍDICA!$F$20=DI!$J$4,DI!J17,IF(JURÍDICA!$F$20=DI!$K$4,DI!K17,IF(JURÍDICA!$F$20=DI!$L$4,DI!L17,IF(JURÍDICA!$F$20=DI!$M$4,DI!M17,IF(JURÍDICA!$F$20=DI!$N$4,DI!N17,IF(JURÍDICA!$F$20=DI!$O$4,DI!O17,IF(JURÍDICA!$F$20=DI!$P$4,DI!P17,IF(JURÍDICA!$F$20=DI!$Q$4,DI!Q17,IF(JURÍDICA!$F$20=DI!$R$4,DI!R17,IF(JURÍDICA!$F$20=DI!$S$4,DI!S17,IF(JURÍDICA!$F$20=DI!$T$4,DI!T17,IF(JURÍDICA!$F$20=DI!$U$4,DI!U17,IF(JURÍDICA!$F$20=DI!$V$4,DI!V17,IF(JURÍDICA!$F$20=DI!$W$4,DI!W17,IF(JURÍDICA!$F$20=DI!$X$4,DI!X17,IF(JURÍDICA!$F$20=DI!$Y$4,DI!Y17,\"\"))))))))))))))))))))))","v":""},""]
["12","San Marcos","12-San Marcos","0114-Amatitlán","0214-Alotenango","0314-Parramos",null,null,"0614-Nueva Santa Rosa","0714-Santa Cruz La Laguna",null,"0914-Cantel","1014-Patulul",null,"1214-San José El Rodeo","1314-San Rafael La Independencia","1414-San Andrés Sajcabajá",null,"1614-Chahal","1713-Las Cruces",null,null,null,null,"2214-Moyuta",null,{"$f":"IF(JURÍDICA!$F$20=DI!$D$4,DI!D18,IF(JURÍDICA!$F$20=DI!$E$4,DI!E18,IF(JURÍDICA!$F$20=DI!$F$4,DI!F18,IF(JURÍDICA!$F$20=DI!$G$4,DI!G18,IF(JURÍDICA!$F$20=DI!$H$4,DI!H18,IF(JURÍDICA!$F$20=DI!$I$4,DI!I18,IF(JURÍDICA!$F$20=DI!$J$4,DI!J18,IF(JURÍDICA!$F$20=DI!$K$4,DI!K18,IF(JURÍDICA!$F$20=DI!$L$4,DI!L18,IF(JURÍDICA!$F$20=DI!$M$4,DI!M18,IF(JURÍDICA!$F$20=DI!$N$4,DI!N18,IF(JURÍDICA!$F$20=DI!$O$4,DI!O18,IF(JURÍDICA!$F$20=DI!$P$4,DI!P18,IF(JURÍDICA!$F$20=DI!$Q$4,DI!Q18,IF(JURÍDICA!$F$20=DI!$R$4,DI!R18,IF(JURÍDICA!$F$20=DI!$S$4,DI!S18,IF(JURÍDICA!$F$20=DI!$T$4,DI!T18,IF(JURÍDICA!$F$20=DI!$U$4,DI!U18,IF(JURÍDICA!$F$20=DI!$V$4,DI!V18,IF(JURÍDICA!$F$20=DI!$W$4,DI!W18,IF(JURÍDICA!$F$20=DI!$X$4,DI!X18,IF(JURÍDICA!$F$20=DI!$Y$4,DI!Y18,\"\"))))))))))))))))))))))","v":""},""]
["13","Huehuetenango","13-Huehuetenango","0115-Villa Nueva","0215-San Antonio Aguas Calientes","0315-Zaragoza",null,null,null,"0715-San Pablo La Laguna",null,"0915-Huitán","1015-Santa Bárbara",null,"1215-Malacatán","1315-Todos Santos Cuchumatánes","1415-Uspantán",null,"1615-Fray Bartolomé de Las Casas",null,null,null,null,null,"2215-Pasaco",null,{"$f":"IF(JURÍDICA!$F$20=DI!$D$4,DI!D19,IF(JURÍDICA!$F$20=DI!$E$4,DI!E19,IF(JURÍDICA!$F$20=DI!$F$4,DI!F19,IF(JURÍDICA!$F$20=DI!$G$4,DI!G19,IF(JURÍDICA!$F$20=DI!$H$4,DI!H19,IF(JURÍDICA!$F$20=DI!$I$4,DI!I19,IF(JURÍDICA!$F$20=DI!$J$4,DI!J19,IF(JURÍDICA!$F$20=DI!$K$4,DI!K19,IF(JURÍDICA!$F$20=DI!$L$4,DI!L19,IF(JURÍDICA!$F$20=DI!$M$4,DI!M19,IF(JURÍDICA!$F$20=DI!$N$4,DI!N19,IF(JURÍDICA!$F$20=DI!$O$4,DI!O19,IF(JURÍDICA!$F$20=DI!$P$4,DI!P19,IF(JURÍDICA!$F$20=DI!$Q$4,DI!Q19,IF(JURÍDICA!$F$20=DI!$R$4,DI!R19,IF(JURÍDICA!$F$20=DI!$S$4,DI!S19,IF(JURÍDICA!$F$20=DI!$T$4,DI!T19,IF(JURÍDICA!$F$20=DI!$U$4,DI!U19,IF(JURÍDICA!$F$20=DI!$V$4,DI!V19,IF(JURÍDICA!$F$20=DI!$W$4,DI!W19,IF(JURÍDICA!$F$20=DI!$X$4,DI!X19,IF(JURÍDICA!$F$20=DI!$Y$4,DI!Y19,\"\"))))))))))))))))))))))","v":""},""]
["14","El Quiché","14-El Quiché","0116-Villa Canales","0216-Santa Catalina Barahona","0316-El Tejar",null,null,null,"0716-San Marcos La Laguna",null,"0916-Zunil","1016-San Juan Bautista",null,"1216-Catarina","1316-San Juan Atitán","1416-Sacapulas",null,"1616-Santa Catarina La Tinta",null,null,null,null,null,"2216-San José Acatempa",null,{"$f":"IF(JURÍDICA!$F$20=DI!$D$4,DI!D20,IF(JURÍDICA!$F$20=DI!$E$4,DI!E20,IF(JURÍDICA!$F$20=DI!$F$4,DI!F20,IF(JURÍDICA!$F$20=DI!$G$4,DI!G20,IF(JURÍDICA!$F$20=DI!$H$4,DI!H20,IF(JURÍDICA!$F$20=DI!$I$4,DI!I20,IF(JURÍDICA!$F$20=DI!$J$4,DI!J20,IF(JURÍDICA!$F$20=DI!$K$4,DI!K20,IF(JURÍDICA!$F$20=DI!$L$4,DI!L20,IF(JURÍDICA!$F$20=DI!$M$4,DI!M20,IF(JURÍDICA!$F$20=DI!$N$4,DI!N20,IF(JURÍDICA!$F$20=DI!$O$4,DI!O20,IF(JURÍDICA!$F$20=DI!$P$4,DI!P20,IF(JURÍDICA!$F$20=DI!$Q$4,DI!Q20,IF(JURÍDICA!$F$20=DI!$R$4,DI!R20,IF(JURÍDICA!$F$20=DI!$S$4,DI!S20,IF(JURÍDICA!$F$20=DI!$T$4,DI!T20,IF(JURÍDICA!$F$20=DI!$U$4,DI!U20,IF(JURÍDICA!$F$20=DI!$V$4,DI!V20,IF(JURÍDICA!$F$20=DI!$W$4,DI!W20,IF(JURÍDICA!$F$20=DI!$X$4,DI!X20,IF(JURÍDICA!$F$20=DI!$Y$4,DI!Y20,\"\"))))))))))))))))))))))","v":""},""]
["15","Baja Verapaz","15-Baja Verapaz","0117-Petapa",null,null,null,null,null,"0717-San Juan La Laguna",null,"0917-Colomba","1017-Santo Tomás La Unión",null,"1217-Ayutla (Tecún Uman)","1317-Santa Eulalia","1417-San Bartolomé Jocotenango",null,"1617-Raxruha",null,null,null,null,null,"2217-Quezada",null,{"$f":"IF(JURÍDICA!$F$20=DI!$D$4,DI!D21,IF(JURÍDICA!$F$20=DI!$E$4,DI!E21,IF(JURÍDICA!$F$20=DI!$F$4,DI!F21,IF(JURÍDICA!$F$20=DI!$G$4,DI!G21,IF(JURÍDICA!$F$20=DI!$H$4,DI!H21,IF(JURÍDICA!$F$20=DI!$I$4,DI!I21,IF(JURÍDICA!$F$20=DI!$J$4,DI!J21,IF(JURÍDICA!$F$20=DI!$K$4,DI!K21,IF(JURÍDICA!$F$20=DI!$L$4,DI!L21,IF(JURÍDICA!$F$20=DI!$M$4,DI!M21,IF(JURÍDICA!$F$20=DI!$N$4,DI!N21,IF(JURÍDICA!$F$20=DI!$O$4,DI!O21,IF(JURÍDICA!$F$20=DI!$P$4,DI!P21,IF(JURÍDICA!$F$20=DI!$Q$4,DI!Q21,IF(JURÍDICA!$F$20=DI!$R$4,DI!R21,IF(JURÍDICA!$F$20=DI!$S$4,DI!S21,IF(JURÍDICA!$F$20=DI!$T$4,DI!T21,IF(JURÍDICA!$F$20=DI!$U$4,DI!U21,IF(JURÍDICA!$F$20=DI!$V$4,DI!V21,IF(JURÍDICA!$F$20=DI!$W$4,DI!W21,IF(JURÍDICA!$F$20=DI!$X$4,DI!X21,IF(JURÍDICA!$F$20=DI!$Y$4,DI!Y21,\"\"))))))))))))))))))))))","v":""},""]
["16","Alta Verapaz","16-Alta Verapaz",null,null,null,null,null,null,"0718-San Pedro La Laguna",null,"0918-San Francisco La Unión","1018-Zunilito",null,"1218-Ocós","1318-San Mateo Ixtatán","1418-Canillá",null,null,null,null,null,null,null,null,null,{"$f":"IF(JURÍDICA!$F$20=DI!$D$4,DI!D22,IF(JURÍDICA!$F$20=DI!$E$4,DI!E22,IF(JURÍDICA!$F$20=DI!$F$4,DI!F22,IF(JURÍDICA!$F$20=DI!$G$4,DI!G22,IF(JURÍDICA!$F$20=DI!$H$4,DI!H22,IF(JURÍDICA!$F$20=DI!$I$4,DI!I22,IF(JURÍDICA!$F$20=DI!$J$4,DI!J22,IF(JURÍDICA!$F$20=DI!$K$4,DI!K22,IF(JURÍDICA!$F$20=DI!$L$4,DI!L22,IF(JURÍDICA!$F$20=DI!$M$4,DI!M22,IF(JURÍDICA!$F$20=DI!$N$4,DI!N22,IF(JURÍDICA!$F$20=DI!$O$4,DI!O22,IF(JURÍDICA!$F$20=DI!$P$4,DI!P22,IF(JURÍDICA!$F$20=DI!$Q$4,DI!Q22,IF(JURÍDICA!$F$20=DI!$R$4,DI!R22,IF(JURÍDICA!$F$20=DI!$S$4,DI!S22,IF(JURÍDICA!$F$20=DI!$T$4,DI!T22,IF(JURÍDICA!$F$20=DI!$U$4,DI!U22,IF(JURÍDICA!$F$20=DI!$V$4,DI!V22,IF(JURÍDICA!$F$20=DI!$W$4,DI!W22,IF(JURÍDICA!$F$20=DI!$X$4,DI!X22,IF(JURÍDICA!$F$20=DI!$Y$4,DI!Y22,\"\"))))))))))))))))))))))","v":""},""]
["17","Petén","17-Petén",null,null,null,null,null,null,"0719-Santiago Atitlán",null,"0919-El Palmar","1019-Pueblo Nuevo",null,"1219-San Pablo","1319-Colotenango","1419-Chicamán",null,null,null,null,null,null,null,null,null,{"$f":"IF(JURÍDICA!$F$20=DI!$D$4,DI!D23,IF(JURÍDICA!$F$20=DI!$E$4,DI!E23,IF(JURÍDICA!$F$20=DI!$F$4,DI!F23,IF(JURÍDICA!$F$20=DI!$G$4,DI!G23,IF(JURÍDICA!$F$20=DI!$H$4,DI!H23,IF(JURÍDICA!$F$20=DI!$I$4,DI!I23,IF(JURÍDICA!$F$20=DI!$J$4,DI!J23,IF(JURÍDICA!$F$20=DI!$K$4,DI!K23,IF(JURÍDICA!$F$20=DI!$L$4,DI!L23,IF(JURÍDICA!$F$20=DI!$M$4,DI!M23,IF(JURÍDICA!$F$20=DI!$N$4,DI!N23,IF(JURÍDICA!$F$20=DI!$O$4,DI!O23,IF(JURÍDICA!$F$20=DI!$P$4,DI!P23,IF(JURÍDICA!$F$20=DI!$Q$4,DI!Q23,IF(JURÍDICA!$F$20=DI!$R$4,DI!R23,IF(JURÍDICA!$F$20=DI!$S$4,DI!S23,IF(JURÍDICA!$F$20=DI!$T$4,DI!T23,IF(JURÍDICA!$F$20=DI!$U$4,DI!U23,IF(JURÍDICA!$F$20=DI!$V$4,DI!V23,IF(JURÍDICA!$F$20=DI!$W$4,DI!W23,IF(JURÍDICA!$F$20=DI!$X$4,DI!X23,IF(JURÍDICA!$F$20=DI!$Y$4,DI!Y23,\"\"))))))))))))))))))))))","v":""},""]
["18","Izabal","18-Izabal",null,null,null,null,null,null,null,null,"0920-Coatepeque","1020-Río Bravo",null,"1220-El Quetzal","1320-San Sebastián Huehetenango","1420-Ixcán",null,null,null,null,null,null,null,null,null,{"$f":"IF(JURÍDICA!$F$20=DI!$D$4,DI!D24,IF(JURÍDICA!$F$20=DI!$E$4,DI!E24,IF(JURÍDICA!$F$20=DI!$F$4,DI!F24,IF(JURÍDICA!$F$20=DI!$G$4,DI!G24,IF(JURÍDICA!$F$20=DI!$H$4,DI!H24,IF(JURÍDICA!$F$20=DI!$I$4,DI!I24,IF(JURÍDICA!$F$20=DI!$J$4,DI!J24,IF(JURÍDICA!$F$20=DI!$K$4,DI!K24,IF(JURÍDICA!$F$20=DI!$L$4,DI!L24,IF(JURÍDICA!$F$20=DI!$M$4,DI!M24,IF(JURÍDICA!$F$20=DI!$N$4,DI!N24,IF(JURÍDICA!$F$20=DI!$O$4,DI!O24,IF(JURÍDICA!$F$20=DI!$P$4,DI!P24,IF(JURÍDICA!$F$20=DI!$Q$4,DI!Q24,IF(JURÍDICA!$F$20=DI!$R$4,DI!R24,IF(JURÍDICA!$F$20=DI!$S$4,DI!S24,IF(JURÍDICA!$F$20=DI!$T$4,DI!T24,IF(JURÍDICA!$F$20=DI!$U$4,DI!U24,IF(JURÍDICA!$F$20=DI!$V$4,DI!V24,IF(JURÍDICA!$F$20=DI!$W$4,DI!W24,IF(JURÍDICA!$F$20=DI!$X$4,DI!X24,IF(JURÍDICA!$F$20=DI!$Y$4,DI!Y24,\"\"))))))))))))))))))))))","v":""},""]
["19","Zacapa","19-Zacapa",null,null,null,null,null,null,null,null,"0921-Génova Cosata Cuca",null,null,"1221-La Reforma","1321-Tectitán","1421-Pachalum",null,null,null,null,null,null,null,null,null,{"$f":"IF(JURÍDICA!$F$20=DI!$D$4,DI!D25,IF(JURÍDICA!$F$20=DI!$E$4,DI!E25,IF(JURÍDICA!$F$20=DI!$F$4,DI!F25,IF(JURÍDICA!$F$20=DI!$G$4,DI!G25,IF(JURÍDICA!$F$20=DI!$H$4,DI!H25,IF(JURÍDICA!$F$20=DI!$I$4,DI!I25,IF(JURÍDICA!$F$20=DI!$J$4,DI!J25,IF(JURÍDICA!$F$20=DI!$K$4,DI!K25,IF(JURÍDICA!$F$20=DI!$L$4,DI!L25,IF(JURÍDICA!$F$20=DI!$M$4,DI!M25,IF(JURÍDICA!$F$20=DI!$N$4,DI!N25,IF(JURÍDICA!$F$20=DI!$O$4,DI!O25,IF(JURÍDICA!$F$20=DI!$P$4,DI!P25,IF(JURÍDICA!$F$20=DI!$Q$4,DI!Q25,IF(JURÍDICA!$F$20=DI!$R$4,DI!R25,IF(JURÍDICA!$F$20=DI!$S$4,DI!S25,IF(JURÍDICA!$F$20=DI!$T$4,DI!T25,IF(JURÍDICA!$F$20=DI!$U$4,DI!U25,IF(JURÍDICA!$F$20=DI!$V$4,DI!V25,IF(JURÍDICA!$F$20=DI!$W$4,DI!W25,IF(JURÍDICA!$F$20=DI!$X$4,DI!X25,IF(JURÍDICA!$F$20=DI!$Y$4,DI!Y25,\"\"))))))))))))))))))))))","v":""},""]
["20","Chiquimula","20-Chiquimula",null,null,null,null,null,null,null,null,"0922-Flores ",null,null,"1222-Pajapita","1322-Concepción Huista",null,null,null,null,null,null,null,null,null,null,{"$f":"IF(JURÍDICA!$F$20=DI!$D$4,DI!D26,IF(JURÍDICA!$F$20=DI!$E$4,DI!E26,IF(JURÍDICA!$F$20=DI!$F$4,DI!F26,IF(JURÍDICA!$F$20=DI!$G$4,DI!G26,IF(JURÍDICA!$F$20=DI!$H$4,DI!H26,IF(JURÍDICA!$F$20=DI!$I$4,DI!I26,IF(JURÍDICA!$F$20=DI!$J$4,DI!J26,IF(JURÍDICA!$F$20=DI!$K$4,DI!K26,IF(JURÍDICA!$F$20=DI!$L$4,DI!L26,IF(JURÍDICA!$F$20=DI!$M$4,DI!M26,IF(JURÍDICA!$F$20=DI!$N$4,DI!N26,IF(JURÍDICA!$F$20=DI!$O$4,DI!O26,IF(JURÍDICA!$F$20=DI!$P$4,DI!P26,IF(JURÍDICA!$F$20=DI!$Q$4,DI!Q26,IF(JURÍDICA!$F$20=DI!$R$4,DI!R26,IF(JURÍDICA!$F$20=DI!$S$4,DI!S26,IF(JURÍDICA!$F$20=DI!$T$4,DI!T26,IF(JURÍDICA!$F$20=DI!$U$4,DI!U26,IF(JURÍDICA!$F$20=DI!$V$4,DI!V26,IF(JURÍDICA!$F$20=DI!$W$4,DI!W26,IF(JURÍDICA!$F$20=DI!$X$4,DI!X26,IF(JURÍDICA!$F$20=DI!$Y$4,DI!Y26,\"\"))))))))))))))))))))))","v":""},""]
["21","Jalapa","21-Jalapa",null,null,null,null,null,null,null,null,"0923-La Esperanza",null,null,"1223-Ixchiguán","1323-San Juan Ixcoy",null,null,null,null,null,null,null,null,null,null,{"$f":"IF(JURÍDICA!$F$20=DI!$D$4,DI!D27,IF(JURÍDICA!$F$20=DI!$E$4,DI!E27,IF(JURÍDICA!$F$20=DI!$F$4,DI!F27,IF(JURÍDICA!$F$20=DI!$G$4,DI!G27,IF(JURÍDICA!$F$20=DI!$H$4,DI!H27,IF(JURÍDICA!$F$20=DI!$I$4,DI!I27,IF(JURÍDICA!$F$20=DI!$J$4,DI!J27,IF(JURÍDICA!$F$20=DI!$K$4,DI!K27,IF(JURÍDICA!$F$20=DI!$L$4,DI!L27,IF(JURÍDICA!$F$20=DI!$M$4,DI!M27,IF(JURÍDICA!$F$20=DI!$N$4,DI!N27,IF(JURÍDICA!$F$20=DI!$O$4,DI!O27,IF(JURÍDICA!$F$20=DI!$P$4,DI!P27,IF(JURÍDICA!$F$20=DI!$Q$4,DI!Q27,IF(JURÍDICA!$F$20=DI!$R$4,DI!R27,IF(JURÍDICA!$F$20=DI!$S$4,DI!S27,IF(JURÍDICA!$F$20=DI!$T$4,DI!T27,IF(JURÍDICA!$F$20=DI!$U$4,DI!U27,IF(JURÍDICA!$F$20=DI!$V$4,DI!V27,IF(JURÍDICA!$F$20=DI!$W$4,DI!W27,IF(JURÍDICA!$F$20=DI!$X$4,DI!X27,IF(JURÍDICA!$F$20=DI!$Y$4,DI!Y27,\"\"))))))))))))))))))))))","v":""},""]
["22","Jutiapa","22-Jutiapa",null,null,null,null,null,null,null,null,"0924-Palestina de Los Altos",null,null,"1224-San José Ojetenam","1324-San Antonio Huista",null,null,null,null,null,null,null,null,null,null,{"$f":"IF(JURÍDICA!$F$20=DI!$D$4,DI!D28,IF(JURÍDICA!$F$20=DI!$E$4,DI!E28,IF(JURÍDICA!$F$20=DI!$F$4,DI!F28,IF(JURÍDICA!$F$20=DI!$G$4,DI!G28,IF(JURÍDICA!$F$20=DI!$H$4,DI!H28,IF(JURÍDICA!$F$20=DI!$I$4,DI!I28,IF(JURÍDICA!$F$20=DI!$J$4,DI!J28,IF(JURÍDICA!$F$20=DI!$K$4,DI!K28,IF(JURÍDICA!$F$20=DI!$L$4,DI!L28,IF(JURÍDICA!$F$20=DI!$M$4,DI!M28,IF(JURÍDICA!$F$20=DI!$N$4,DI!N28,IF(JURÍDICA!$F$20=DI!$O$4,DI!O28,IF(JURÍDICA!$F$20=DI!$P$4,DI!P28,IF(JURÍDICA!$F$20=DI!$Q$4,DI!Q28,IF(JURÍDICA!$F$20=DI!$R$4,DI!R28,IF(JURÍDICA!$F$20=DI!$S$4,DI!S28,IF(JURÍDICA!$F$20=DI!$T$4,DI!T28,IF(JURÍDICA!$F$20=DI!$U$4,DI!U28,IF(JURÍDICA!$F$20=DI!$V$4,DI!V28,IF(JURÍDICA!$F$20=DI!$W$4,DI!W28,IF(JURÍDICA!$F$20=DI!$X$4,DI!X28,IF(JURÍDICA!$F$20=DI!$Y$4,DI!Y28,\"\"))))))))))))))))))))))","v":""},""]
[null,null,null,null,null,null,null,null,null,null,null,null,null,null,"1225-San Cristóbal Cucho","1325-San Sebastián Coatán",null,null,null,null,null,null,null,null,null,null,{"$f":"IF(JURÍDICA!$F$20=DI!$D$4,DI!D29,IF(JURÍDICA!$F$20=DI!$E$4,DI!E29,IF(JURÍDICA!$F$20=DI!$F$4,DI!F29,IF(JURÍDICA!$F$20=DI!$G$4,DI!G29,IF(JURÍDICA!$F$20=DI!$H$4,DI!H29,IF(JURÍDICA!$F$20=DI!$I$4,DI!I29,IF(JURÍDICA!$F$20=DI!$J$4,DI!J29,IF(JURÍDICA!$F$20=DI!$K$4,DI!K29,IF(JURÍDICA!$F$20=DI!$L$4,DI!L29,IF(JURÍDICA!$F$20=DI!$M$4,DI!M29,IF(JURÍDICA!$F$20=DI!$N$4,DI!N29,IF(JURÍDICA!$F$20=DI!$O$4,DI!O29,IF(JURÍDICA!$F$20=DI!$P$4,DI!P29,IF(JURÍDICA!$F$20=DI!$Q$4,DI!Q29,IF(JURÍDICA!$F$20=DI!$R$4,DI!R29,IF(JURÍDICA!$F$20=DI!$S$4,DI!S29,IF(JURÍDICA!$F$20=DI!$T$4,DI!T29,IF(JURÍDICA!$F$20=DI!$U$4,DI!U29,IF(JURÍDICA!$F$20=DI!$V$4,DI!V29,IF(JURÍDICA!$F$20=DI!$W$4,DI!W29,IF(JURÍDICA!$F$20=DI!$X$4,DI!X29,IF(JURÍDICA!$F$20=DI!$Y$4,DI!Y29,\"\"))))))))))))))))))))))","v":""},""]
[null,null,null,null,null,null,null,null,null,null,null,null,null,null,"1226-Sipacapa","1326-Barillas",null,null,null,null,null,null,null,null,null,null,{"$f":"IF(JURÍDICA!$F$20=DI!$D$4,DI!D30,IF(JURÍDICA!$F$20=DI!$E$4,DI!E30,IF(JURÍDICA!$F$20=DI!$F$4,DI!F30,IF(JURÍDICA!$F$20=DI!$G$4,DI!G30,IF(JURÍDICA!$F$20=DI!$H$4,DI!H30,IF(JURÍDICA!$F$20=DI!$I$4,DI!I30,IF(JURÍDICA!$F$20=DI!$J$4,DI!J30,IF(JURÍDICA!$F$20=DI!$K$4,DI!K30,IF(JURÍDICA!$F$20=DI!$L$4,DI!L30,IF(JURÍDICA!$F$20=DI!$M$4,DI!M30,IF(JURÍDICA!$F$20=DI!$N$4,DI!N30,IF(JURÍDICA!$F$20=DI!$O$4,DI!O30,IF(JURÍDICA!$F$20=DI!$P$4,DI!P30,IF(JURÍDICA!$F$20=DI!$Q$4,DI!Q30,IF(JURÍDICA!$F$20=DI!$R$4,DI!R30,IF(JURÍDICA!$F$20=DI!$S$4,DI!S30,IF(JURÍDICA!$F$20=DI!$T$4,DI!T30,IF(JURÍDICA!$F$20=DI!$U$4,DI!U30,IF(JURÍDICA!$F$20=DI!$V$4,DI!V30,IF(JURÍDICA!$F$20=DI!$W$4,DI!W30,IF(JURÍDICA!$F$20=DI!$X$4,DI!X30,IF(JURÍDICA!$F$20=DI!$Y$4,DI!Y30,\"\"))))))))))))))))))))))","v":""},""]
[null,null,null,null,null,null,null,null,null,null,null,null,null,null,"1227-Esquipulas Palo Gordo","1327-Aguacatán",null,null,null,null,null,null,null,null,null,null,{"$f":"IF(JURÍDICA!$F$20=DI!$D$4,DI!D31,IF(JURÍDICA!$F$20=DI!$E$4,DI!E31,IF(JURÍDICA!$F$20=DI!$F$4,DI!F31,IF(JURÍDICA!$F$20=DI!$G$4,DI!G31,IF(JURÍDICA!$F$20=DI!$H$4,DI!H31,IF(JURÍDICA!$F$20=DI!$I$4,DI!I31,IF(JURÍDICA!$F$20=DI!$J$4,DI!J31,IF(JURÍDICA!$F$20=DI!$K$4,DI!K31,IF(JURÍDICA!$F$20=DI!$L$4,DI!L31,IF(JURÍDICA!$F$20=DI!$M$4,DI!M31,IF(JURÍDICA!$F$20=DI!$N$4,DI!N31,IF(JURÍDICA!$F$20=DI!$O$4,DI!O31,IF(JURÍDICA!$F$20=DI!$P$4,DI!P31,IF(JURÍDICA!$F$20=DI!$Q$4,DI!Q31,IF(JURÍDICA!$F$20=DI!$R$4,DI!R31,IF(JURÍDICA!$F$20=DI!$S$4,DI!S31,IF(JURÍDICA!$F$20=DI!$T$4,DI!T31,IF(JURÍDICA!$F$20=DI!$U$4,DI!U31,IF(JURÍDICA!$F$20=DI!$V$4,DI!V31,IF(JURÍDICA!$F$20=DI!$W$4,DI!W31,IF(JURÍDICA!$F$20=DI!$X$4,DI!X31,IF(JURÍDICA!$F$20=DI!$Y$4,DI!Y31,\"\"))))))))))))))))))))))","v":""},""]
[null,null,null,null,null,null,null,null,null,null,null,null,null,null,"1228-Río Blanco","1328-San Rafael Petzal",null,null,null,null,null,null,null,null,null,null,{"$f":"IF(JURÍDICA!$F$20=DI!$D$4,DI!D32,IF(JURÍDICA!$F$20=DI!$E$4,DI!E32,IF(JURÍDICA!$F$20=DI!$F$4,DI!F32,IF(JURÍDICA!$F$20=DI!$G$4,DI!G32,IF(JURÍDICA!$F$20=DI!$H$4,DI!H32,IF(JURÍDICA!$F$20=DI!$I$4,DI!I32,IF(JURÍDICA!$F$20=DI!$J$4,DI!J32,IF(JURÍDICA!$F$20=DI!$K$4,DI!K32,IF(JURÍDICA!$F$20=DI!$L$4,DI!L32,IF(JURÍDICA!$F$20=DI!$M$4,DI!M32,IF(JURÍDICA!$F$20=DI!$N$4,DI!N32,IF(JURÍDICA!$F$20=DI!$O$4,DI!O32,IF(JURÍDICA!$F$20=DI!$P$4,DI!P32,IF(JURÍDICA!$F$20=DI!$Q$4,DI!Q32,IF(JURÍDICA!$F$20=DI!$R$4,DI!R32,IF(JURÍDICA!$F$20=DI!$S$4,DI!S32,IF(JURÍDICA!$F$20=DI!$T$4,DI!T32,IF(JURÍDICA!$F$20=DI!$U$4,DI!U32,IF(JURÍDICA!$F$20=DI!$V$4,DI!V32,IF(JURÍDICA!$F$20=DI!$W$4,DI!W32,IF(JURÍDICA!$F$20=DI!$X$4,DI!X32,IF(JURÍDICA!$F$20=DI!$Y$4,DI!Y32,\"\"))))))))))))))))))))))","v":""},""]
[null,null,null,null,null,null,null,null,null,null,null,null,null,null,"1229-San Lorenzo","1329-San Gaspar Ixchil",null,null,null,null,null,null,null,null,null,null,{"$f":"IF(JURÍDICA!$F$20=DI!$D$4,DI!D33,IF(JURÍDICA!$F$20=DI!$E$4,DI!E33,IF(JURÍDICA!$F$20=DI!$F$4,DI!F33,IF(JURÍDICA!$F$20=DI!$G$4,DI!G33,IF(JURÍDICA!$F$20=DI!$H$4,DI!H33,IF(JURÍDICA!$F$20=DI!$I$4,DI!I33,IF(JURÍDICA!$F$20=DI!$J$4,DI!J33,IF(JURÍDICA!$F$20=DI!$K$4,DI!K33,IF(JURÍDICA!$F$20=DI!$L$4,DI!L33,IF(JURÍDICA!$F$20=DI!$M$4,DI!M33,IF(JURÍDICA!$F$20=DI!$N$4,DI!N33,IF(JURÍDICA!$F$20=DI!$O$4,DI!O33,IF(JURÍDICA!$F$20=DI!$P$4,DI!P33,IF(JURÍDICA!$F$20=DI!$Q$4,DI!Q33,IF(JURÍDICA!$F$20=DI!$R$4,DI!R33,IF(JURÍDICA!$F$20=DI!$S$4,DI!S33,IF(JURÍDICA!$F$20=DI!$T$4,DI!T33,IF(JURÍDICA!$F$20=DI!$U$4,DI!U33,IF(JURÍDICA!$F$20=DI!$V$4,DI!V33,IF(JURÍDICA!$F$20=DI!$W$4,DI!W33,IF(JURÍDICA!$F$20=DI!$X$4,DI!X33,IF(JURÍDICA!$F$20=DI!$Y$4,DI!Y33,\"\"))))))))))))))))))))))","v":""},""]
[null,null,null,null,null,null,null,null,null,null,null,null,null,null,null,"1330-Santiago Chimaltenango",null,null,null,null,null,null,null,null,null,null,{"$f":"IF(JURÍDICA!$F$20=DI!$D$4,DI!D34,IF(JURÍDICA!$F$20=DI!$E$4,DI!E34,IF(JURÍDICA!$F$20=DI!$F$4,DI!F34,IF(JURÍDICA!$F$20=DI!$G$4,DI!G34,IF(JURÍDICA!$F$20=DI!$H$4,DI!H34,IF(JURÍDICA!$F$20=DI!$I$4,DI!I34,IF(JURÍDICA!$F$20=DI!$J$4,DI!J34,IF(JURÍDICA!$F$20=DI!$K$4,DI!K34,IF(JURÍDICA!$F$20=DI!$L$4,DI!L34,IF(JURÍDICA!$F$20=DI!$M$4,DI!M34,IF(JURÍDICA!$F$20=DI!$N$4,DI!N34,IF(JURÍDICA!$F$20=DI!$O$4,DI!O34,IF(JURÍDICA!$F$20=DI!$P$4,DI!P34,IF(JURÍDICA!$F$20=DI!$Q$4,DI!Q34,IF(JURÍDICA!$F$20=DI!$R$4,DI!R34,IF(JURÍDICA!$F$20=DI!$S$4,DI!S34,IF(JURÍDICA!$F$20=DI!$T$4,DI!T34,IF(JURÍDICA!$F$20=DI!$U$4,DI!U34,IF(JURÍDICA!$F$20=DI!$V$4,DI!V34,IF(JURÍDICA!$F$20=DI!$W$4,DI!W34,IF(JURÍDICA!$F$20=DI!$X$4,DI!X34,IF(JURÍDICA!$F$20=DI!$Y$4,DI!Y34,\"\"))))))))))))))))))))))","v":""},""]
[null,null,null,null,null,null,null,null,null,null,null,null,null,null,null,"1331-Santa Ana Huista",null,null,null,null,null,null,null,null,null,null,{"$f":"IF(JURÍDICA!$F$20=DI!$D$4,DI!D35,IF(JURÍDICA!$F$20=DI!$E$4,DI!E35,IF(JURÍDICA!$F$20=DI!$F$4,DI!F35,IF(JURÍDICA!$F$20=DI!$G$4,DI!G35,IF(JURÍDICA!$F$20=DI!$H$4,DI!H35,IF(JURÍDICA!$F$20=DI!$I$4,DI!I35,IF(JURÍDICA!$F$20=DI!$J$4,DI!J35,IF(JURÍDICA!$F$20=DI!$K$4,DI!K35,IF(JURÍDICA!$F$20=DI!$L$4,DI!L35,IF(JURÍDICA!$F$20=DI!$M$4,DI!M35,IF(JURÍDICA!$F$20=DI!$N$4,DI!N35,IF(JURÍDICA!$F$20=DI!$O$4,DI!O35,IF(JURÍDICA!$F$20=DI!$P$4,DI!P35,IF(JURÍDICA!$F$20=DI!$Q$4,DI!Q35,IF(JURÍDICA!$F$20=DI!$R$4,DI!R35,IF(JURÍDICA!$F$20=DI!$S$4,DI!S35,IF(JURÍDICA!$F$20=DI!$T$4,DI!T35,IF(JURÍDICA!$F$20=DI!$U$4,DI!U35,IF(JURÍDICA!$F$20=DI!$V$4,DI!V35,IF(JURÍDICA!$F$20=DI!$W$4,DI!W35,IF(JURÍDICA!$F$20=DI!$X$4,DI!X35,IF(JURÍDICA!$F$20=DI!$Y$4,DI!Y35,\"\"))))))))))))))))))))))","v":""},""]
[null,null,null,null,null,null,null,null,null,null,null,null,null,null,null,"1332-Unión Cantinil",null,null,null,null,null,null,null,null,null,null,{"$f":"IF(JURÍDICA!$F$20=DI!$D$4,DI!D36,IF(JURÍDICA!$F$20=DI!$E$4,DI!E36,IF(JURÍDICA!$F$20=DI!$F$4,DI!F36,IF(JURÍDICA!$F$20=DI!$G$4,DI!G36,IF(JURÍDICA!$F$20=DI!$H$4,DI!H36,IF(JURÍDICA!$F$20=DI!$I$4,DI!I36,IF(JURÍDICA!$F$20=DI!$J$4,DI!J36,IF(JURÍDICA!$F$20=DI!$K$4,DI!K36,IF(JURÍDICA!$F$20=DI!$L$4,DI!L36,IF(JURÍDICA!$F$20=DI!$M$4,DI!M36,IF(JURÍDICA!$F$20=DI!$N$4,DI!N36,IF(JURÍDICA!$F$20=DI!$O$4,DI!O36,IF(JURÍDICA!$F$20=DI!$P$4,DI!P36,IF(JURÍDICA!$F$20=DI!$Q$4,DI!Q36,IF(JURÍDICA!$F$20=DI!$R$4,DI!R36,IF(JURÍDICA!$F$20=DI!$S$4,DI!S36,IF(JURÍDICA!$F$20=DI!$T$4,DI!T36,IF(JURÍDICA!$F$20=DI!$U$4,DI!U36,IF(JURÍDICA!$F$20=DI!$V$4,DI!V36,IF(JURÍDICA!$F$20=DI!$W$4,DI!W36,IF(JURÍDICA!$F$20=DI!$X$4,DI!X36,IF(JURÍDICA!$F$20=DI!$Y$4,DI!Y36,\"\"))))))))))))))))))))))","v":""},""]

{"sheet":"I-J","index":5,"n_rows":74,"n_cols":28,"rows_kept":74,"cut":false,"hidden":true,"merged":[]}
[]
[]
[]
[null,null,null,"01-Guatemala","02-Sacatepéquez","03-Chimaltenango","04-El Progreso","05-Escuintla","06-Santa Rosa","07-Sololá","08-Totonicapán","09-Quetzaltenango","10-Suchitepéquez","11-Retalhuleu","12-San Marcos","13-Huehuetenango","14-El Quiché","15-Baja Verapaz","16-Alta Verapaz","17-Petén","18-Izabal","19-Zacapa","20-Chiquimula","21-Jalapa","22-Jutiapa",null,"Formula","Final"]
["Departamento",null,null,"0101-Guatemala","0201-Antigua Guatemala","0301-Chimaltenango","0401-Guastatoya","0501-Escuintla","0601-Cuilapa","0701-Sololá","0801-Totonicapán","0901-Quetzaltenango","1001-Mazatenango","1101-Retalhuleu","1201-San Marcos","1301-Huehuetenango","1401-Santa Cruz del Quiché","1501-Salamá","1601-Cobán","1701-Flores","1801-Puerto Barrios","1901-Zacapa","2001-Chiquimula","2101-Jalapa","2201-Jutiapa",null,{"$f":"IF(#REF!=$D$4,D5,IF(#REF!= $E$4,E5,IF(#REF!= $F$4,F5,IF(#REF!= $G$4,G5,IF(#REF!= $H$4,H5,IF(#REF!= $I$4, I5,IF(#REF!= $J$4, J5,IF(#REF!= $K$4, K5,IF(#REF!= $L$4, L5,IF(#REF!= $M$4, M5,IF(#REF!= $N$4, N5,IF(#REF!= $O$4, O5,IF(#REF!= $P$4, P5,IF(#REF!= $Q$4, Q5,IF(#REF!= $R$4, R5,IF(#REF!= $S$4, S5,IF(#REF!= $T$4, T5,IF(#REF!= $U$4, U5,IF(#REF!= $V$4, V5,IF(#REF!= $W$4, W5,IF(#REF!= $X$4, X5,IF(#REF!= $Y$4, Y5,\" \"))))))))))))))))))))))","v":{"$error":"#REF!"}},{"$f":"IF(AA5=0,\"\",AA5)","v":{"$error":"#REF!"}}]
["Código","Descripción","concatenar","0102-Santa Catarina Pínula","0202-Jocotenango","0302-San José Poaquil","0402-Morazán","0502-Santa Lucía Cotzumalguapa","0602-Barberena","0702-San José Chacayá","0802-San Cristóbal Totonicapan","0902-Salcajá","1002-Cuyotenango","1102-San Sebastián","1202-San Pedro Sacatepéquez","1302-Chiantla","1402-Chiché","1502-San Miguel Chicaj","1602-Santa Cruz Verapaz","1701-Santa Elena","1802-Lívingston","1902-Estanzuela","2002-San José La Arada","2102-San Pedro Pínula","2202-El Progreso",null,{"$f":"IF(#REF!=$D$4,D6,IF(#REF!= $E$4,E6,IF(#REF!= $F$4,F6,IF(#REF!= $G$4,G6,IF(#REF!= $H$4,H6,IF(#REF!= $I$4, I6,IF(#REF!= $J$4, J6,IF(#REF!= $K$4, K6,IF(#REF!= $L$4, L6,IF(#REF!= $M$4, M6,IF(#REF!= $N$4, N6,IF(#REF!= $O$4, O6,IF(#REF!= $P$4, P6,IF(#REF!= $Q$4, Q6,IF(#REF!= $R$4, R6,IF(#REF!= $S$4, S6,IF(#REF!= $T$4, T6,IF(#REF!= $U$4, U6,IF(#REF!= $V$4, V6,IF(#REF!= $W$4, W6,IF(#REF!= $X$4, X6,IF(#REF!= $Y$4, Y6,\" \"))))))))))))))))))))))","v":{"$error":"#REF!"}},{"$f":"IF(AA6=0,\"\",AA6)","v":{"$error":"#REF!"}}]
["01","Guatemala",{"$f":"CONCATENATE(A7,\"-\",B7)","v":"01-Guatemala"},"0103-San José Pínula","0203-Pastores","0303-San Martín Jilotepeque","0403-San Agustín Acasaguastlán","0503-La Democracia","0603-Santa Rosa De Lima","0703-Santa María Visitación","0803-San Francisco El Alto","0903-Olintepeque","1003-San Francisco Zapotitlán","1103-Santa Cruz Muluá","1203-San Antonio Sacatepéquez","1303-Malacatancito","1403-Chinique","1503-Rabinal","1603-San Cristóbal Verapaz","1702-San José","1803-El Estor","1903-Río Hondo","2003-San Juan Ermita","2103-San Luis Jilotepeque","2203-Santa Catarina Mita",null,{"$f":"IF(#REF!=$D$4,D7,IF(#REF!= $E$4,E7,IF(#REF!= $F$4,F7,IF(#REF!= $G$4,G7,IF(#REF!= $H$4,H7,IF(#REF!= $I$4, I7,IF(#REF!= $J$4, J7,IF(#REF!= $K$4, K7,IF(#REF!= $L$4, L7,IF(#REF!= $M$4, M7,IF(#REF!= $N$4, N7,IF(#REF!= $O$4, O7,IF(#REF!= $P$4, P7,IF(#REF!= $Q$4, Q7,IF(#REF!= $R$4, R7,IF(#REF!= $S$4, S7,IF(#REF!= $T$4, T7,IF(#REF!= $U$4, U7,IF(#REF!= $V$4, V7,IF(#REF!= $W$4, W7,IF(#REF!= $X$4, X7,IF(#REF!= $Y$4, Y7,\" \"))))))))))))))))))))))","v":{"$error":"#REF!"}},{"$error":"#REF!"}]
["02","Sacatepéquez","02-Sacatepéquez","0104-San José del Golfo","0204-Sumpango","0304-Comalapa","0404-San Cristóbal Acasaguastlán","0504-Siquinala","0604-Casillas","0704-Santa Lucía Utatlán","0804-San Andrés Xecul","0904-San Carlos Sija","1004-San Bernardino","1104-San Martín Zapotitlán","1204-Comitancillo","1304-Cuilco","1404-Zacualpa","1504-Cubulco","1604-Tactic","1703-San Benito","1804-Morales","1904-Gualán","2004-Jocotán","2104-San Manuel Chaparrón","2204-Agua Blanca",null,{"$f":"IF(#REF!=$D$4,D8,IF(#REF!= $E$4,E8,IF(#REF!= $F$4,F8,IF(#REF!= $G$4,G8,IF(#REF!= $H$4,H8,IF(#REF!= $I$4, I8,IF(#REF!= $J$4, J8,IF(#REF!= $K$4, K8,IF(#REF!= $L$4, L8,IF(#REF!= $M$4, M8,IF(#REF!= $N$4, N8,IF(#REF!= $O$4, O8,IF(#REF!= $P$4, P8,IF(#REF!= $Q$4, Q8,IF(#REF!= $R$4, R8,IF(#REF!= $S$4, S8,IF(#REF!= $T$4, T8,IF(#REF!= $U$4, U8,IF(#REF!= $V$4, V8,IF(#REF!= $W$4, W8,IF(#REF!= $X$4, X8,IF(#REF!= $Y$4, Y8,\" \"))))))))))))))))))))))","v":{"$error":"#REF!"}},{"$error":"#REF!"}]
["03","Chimaltenango","03-Chimaltenango","0105-Palencia","0205-Santo Domingo Xenacoj","0305-Santa Apolonia","0405-El Jícaro","0505-Masagua","0605-San Rafael Las Flores","0705-Nahualá","0805-Momostenango","0905-Sibilia","1005-San José El Idolo","1105-San Felipe","1205-San Miguel Ixtahuacán","1305-Nentón","1405-Chajul","1505-Granados","1605-Tamahú","1704-San Andrés","1805-Los Amates","1905-Teculután","2005-Camotán","2105-San Carlos Alzatate","2205-Asunción Mita",null,{"$f":"IF(#REF!=$D$4,D9,IF(#REF!= $E$4,E9,IF(#REF!= $F$4,F9,IF(#REF!= $G$4,G9,IF(#REF!= $H$4,H9,IF(#REF!= $I$4, I9,IF(#REF!= $J$4, J9,IF(#REF!= $K$4, K9,IF(#REF!= $L$4, L9,IF(#REF!= $M$4, M9,IF(#REF!= $N$4, N9,IF(#REF!= $O$4, O9,IF(#REF!= $P$4, P9,IF(#REF!= $Q$4, Q9,IF(#REF!= $R$4, R9,IF(#REF!= $S$4, S9,IF(#REF!= $T$4, T9,IF(#REF!= $U$4, U9,IF(#REF!= $V$4, V9,IF(#REF!= $W$4, W9,IF(#REF!= $X$4, X9,IF(#REF!= $Y$4, Y9,\" \"))))))))))))))))))))))","v":{"$error":"#REF!"}},{"$error":"#REF!"}]
["04","El Progreso","04-El Progreso","0106-Chinautla","0206-Santiago Sacatepéquez","0306-Tecpan Guatemala","0406-Sansare","0506-Tiquisate","0606-Oratorio","0706-Santa Catarina Ixtahuacán","0806-Santa María Chiquimula","0906-Cabricán","1006-Santo Domingo Suchitepéquez","1106-San Andrés Villa Seca","1206-Concepción Tutuapa","1306-San Pedro Necta","1406-Chichicastenango","1506-El Chol","1606-Tucurú","1705-La Libertad",null,"1906-Usumatlán","2006-Olopa","2106-Monjas","2206-Yupiltepeque",null,{"$f":"IF(#REF!=$D$4,D10,IF(#REF!= $E$4,E10,IF(#REF!= $F$4,F10,IF(#REF!= $G$4,G10,IF(#REF!= $H$4,H10,IF(#REF!= $I$4, I10,IF(#REF!= $J$4, J10,IF(#REF!= $K$4, K10,IF(#REF!= $L$4, L10,IF(#REF!= $M$4, M10,IF(#REF!= $N$4, N10,IF(#REF!= $O$4, O10,IF(#REF!= $P$4, P10,IF(#REF!= $Q$4, Q10,IF(#REF!= $R$4, R10,IF(#REF!= $S$4, S10,IF(#REF!= $T$4, T10,IF(#REF!= $U$4, U10,IF(#REF!= $V$4, V10,IF(#REF!= $W$4, W10,IF(#REF!= $X$4, X10,IF(#REF!= $Y$4, Y10,\" \"))))))))))))))))))))))","v":{"$error":"#REF!"}},{"$error":"#REF!"}]
["05","Escuintla","05-Escuintla","0107-San Pedro Ayampuc","0207-San Bartolomé Milpas Altas","0307-Patzún","0407-Sanarate","0507-La Gomera","0607-San Juan Tecuaco","0707-Santa Clara La Laguna","0807-Santa Lucía La Reforma","0907-Cajolá","1007-San Lorenzo","1107-Champerico","1207-Tacaná","1307-Jacaltenango","1407-Patzité","1507-San Jerónimo","1607-Panzós","1706-San Francisco",null,"1907-Cabañas","2007-Esquipulas","2107-Mataquescuintla","2207-Atescatempa",null,{"$f":"IF(#REF!=$D$4,D11,IF(#REF!= $E$4,E11,IF(#REF!= $F$4,F11,IF(#REF!= $G$4,G11,IF(#REF!= $H$4,H11,IF(#REF!= $I$4, I11,IF(#REF!= $J$4, J11,IF(#REF!= $K$4, K11,IF(#REF!= $L$4, L11,IF(#REF!= $M$4, M11,IF(#REF!= $N$4, N11,IF(#REF!= $O$4, O11,IF(#REF!= $P$4, P11,IF(#REF!= $Q$4, Q11,IF(#REF!= $R$4, R11,IF(#REF!= $S$4, S11,IF(#REF!= $T$4, T11,IF(#REF!= $U$4, U11,IF(#REF!= $V$4, V11,IF(#REF!= $W$4, W11,IF(#REF!= $X$4, X11,IF(#REF!= $Y$4, Y11,\" \"))))))))))))))))))))))","v":{"$error":"#REF!"}},{"$error":"#REF!"}]
["06","Santa Rosa","06-Santa Rosa","0108-Mixco","0208-San Lucas Sacatepéquez","0308-Pochuta","0408-San Antonio La Paz","0508-Guanagazapa","0608-Chiquimulilla","0708-Concepción","0808-San Bartolo","0908-San Miguel Siguilá","1008-Samayac","1108-Nuevo San Carlos","1208-Sibinal","1308-Soloma","1408-San Antonio Ilotenango","1508-Purulhá","1608-Senahú","1707-Santa Ana",null,"1908-San Diego","2008-Concepción Las Minas",null,"2208-Jerez",null,{"$f":"IF(#REF!=$D$4,D12,IF(#REF!= $E$4,E12,IF(#REF!= $F$4,F12,IF(#REF!= $G$4,G12,IF(#REF!= $H$4,H12,IF(#REF!= $I$4, I12,IF(#REF!= $J$4, J12,IF(#REF!= $K$4, K12,IF(#REF!= $L$4, L12,IF(#REF!= $M$4, M12,IF(#REF!= $N$4, N12,IF(#REF!= $O$4, O12,IF(#REF!= $P$4, P12,IF(#REF!= $Q$4, Q12,IF(#REF!= $R$4, R12,IF(#REF!= $S$4, S12,IF(#REF!= $T$4, T12,IF(#REF!= $U$4, U12,IF(#REF!= $V$4, V12,IF(#REF!= $W$4, W12,IF(#REF!= $X$4, X12,IF(#REF!= $Y$4, Y12,\" \"))))))))))))))))))))))","v":{"$error":"#REF!"}},{"$error":"#REF!"}]
["07","Sololá","07-Sololá","0109-San Pedro Sacatepéquez","0209-Santa Lucia Milpas Altas","0309-Patzicía",null,"0509-Puerto San José","0609-Taxisco","0709-San Andrés Semetabaj",null,"0909-San Juan Ostuncalco","1009-San Pablo Jocopilas","1109-El Asintal","1209-Tajumulco","1309-Ixtahuacán","1409-San Pedro Jocopilas",null,"1609-San Pedro Carchá","1708-Dolores",null,"1909-La Unión","2009-Quetzaltepeque",null,"2209-El Adelanto",null,{"$f":"IF(#REF!=$D$4,D13,IF(#REF!= $E$4,E13,IF(#REF!= $F$4,F13,IF(#REF!= $G$4,G13,IF(#REF!= $H$4,H13,IF(#REF!= $I$4, I13,IF(#REF!= $J$4, J13,IF(#REF!= $K$4, K13,IF(#REF!= $L$4, L13,IF(#REF!= $M$4, M13,IF(#REF!= $N$4, N13,IF(#REF!= $O$4, O13,IF(#REF!= $P$4, P13,IF(#REF!= $Q$4, Q13,IF(#REF!= $R$4, R13,IF(#REF!= $S$4, S13,IF(#REF!= $T$4, T13,IF(#REF!= $U$4, U13,IF(#REF!= $V$4, V13,IF(#REF!= $W$4, W13,IF(#REF!= $X$4, X13,IF(#REF!= $Y$4, Y13,\" \"))))))))))))))))))))))","v":{"$error":"#REF!"}},{"$error":"#REF!"}]
["08","Totonicapán","08-Totonicapán","0110-San Juan Sacatepéquez","0210-Magdalena Milpas Altas","0310-Santa Cruz Balanya",null,"0510-Iztapa","0610-Santa María Ixhuatán","0710-Panajachel",null,"0910-San Mateo","1010-San Antonio Suchitepéquez",null,"1210-Tejutla","1310-Santa Bárbara","1410-Cunén",null,"1610-San Juan Chamelco","1709-San Luis",null,"1910-Huité","2010-San Jacinto",null,"2210-Zapotitlán",null,{"$f":"IF(#REF!=$D$4,D14,IF(#REF!= $E$4,E14,IF(#REF!= $F$4,F14,IF(#REF!= $G$4,G14,IF(#REF!= $H$4,H14,IF(#REF!= $I$4, I14,IF(#REF!= $J$4, J14,IF(#REF!= $K$4, K14,IF(#REF!= $L$4, L14,IF(#REF!= $M$4, M14,IF(#REF!= $N$4, N14,IF(#REF!= $O$4, O14,IF(#REF!= $P$4, P14,IF(#REF!= $Q$4, Q14,IF(#REF!= $R$4, R14,IF(#REF!= $S$4, S14,IF(#REF!= $T$4, T14,IF(#REF!= $U$4, U14,IF(#REF!= $V$4, V14,IF(#REF!= $W$4, W14,IF(#REF!= $X$4, X14,IF(#REF!= $Y$4, Y14,\" \"))))))))))))))))))))))","v":{"$error":"#REF!"}},{"$error":"#REF!"}]
["09","Quetzaltenango","09-Quetzaltenango","0111-San Raymundo","0211-Santa María de Jesús","0311-Acatenango",null,"0511-Palín","0611-Guazacapan","0711-Santa Catarina Palopó",null,"0911-Concepción Chiquirichapa","1011-San Miguel Panán",null,"1211-San Rafael Pie De La Cuesta","1311-La Libertad","1411-San Juan Cotzal",null,"1611-Lanquín","1710-Sayaxché",null,null,"2011-Ipala",null,"2211-Comapa",null,{"$f":"IF(#REF!=$D$4,D15,IF(#REF!= $E$4,E15,IF(#REF!= $F$4,F15,IF(#REF!= $G$4,G15,IF(#REF!= $H$4,H15,IF(#REF!= $I$4, I15,IF(#REF!= $J$4, J15,IF(#REF!= $K$4, K15,IF(#REF!= $L$4, L15,IF(#REF!= $M$4, M15,IF(#REF!= $N$4, N15,IF(#REF!= $O$4, O15,IF(#REF!= $P$4, P15,IF(#REF!= $Q$4, Q15,IF(#REF!= $R$4, R15,IF(#REF!= $S$4, S15,IF(#REF!= $T$4, T15,IF(#REF!= $U$4, U15,IF(#REF!= $V$4, V15,IF(#REF!= $W$4, W15,IF(#REF!= $X$4, X15,IF(#REF!= $Y$4, Y15,\" \"))))))))))))))))))))))","v":{"$error":"#REF!"}},{"$error":"#REF!"}]
["10","Suchitepéquez","10-Suchitepéquez","0112-Chuarrancho","0212-Ciudad Vieja","0312-San Pedro Yepocapa",null,"0512-San Vicente Pacaya","0612-Santa Cruz Naranjo","0712-San Antonio Palopó",null,"0912-San Martín Sacatepéquez","1012-San Gabriel",null,"1212-Nuevo Progreso","1312-La Democracia","1412-Joyabaj",null,"1612-Cahabón","1711-Melchor De Mencos",null,null,null,null,"2212-Jalpatagua",null,{"$f":"IF(#REF!=$D$4,D16,IF(#REF!= $E$4,E16,IF(#REF!= $F$4,F16,IF(#REF!= $G$4,G16,IF(#REF!= $H$4,H16,IF(#REF!= $I$4, I16,IF(#REF!= $J$4, J16,IF(#REF!= $K$4, K16,IF(#REF!= $L$4, L16,IF(#REF!= $M$4, M16,IF(#REF!= $N$4, N16,IF(#REF!= $O$4, O16,IF(#REF!= $P$4, P16,IF(#REF!= $Q$4, Q16,IF(#REF!= $R$4, R16,IF(#REF!= $S$4, S16,IF(#REF!= $T$4, T16,IF(#REF!= $U$4, U16,IF(#REF!= $V$4, V16,IF(#REF!= $W$4, W16,IF(#REF!= $X$4, X16,IF(#REF!= $Y$4, Y16,\" \"))))))))))))))))))))))","v":{"$error":"#REF!"}},{"$error":"#REF!"}]
["11","Retalhuleu","11-Retalhuleu","0113-Fraijanes","0213-San Miguel Dueñas","0313-San Andrés Itzapa",null,"0513-Nueva Concepción","0613-Pueblo Nuevo Viñas","0713-San Lucas Tolimán",null,"0913-Almolonga","1013-Chicacao",null,"1213-El Tumbador","1313-San Miguel Acatán","1413-Nebaj",null,"1613-Chisec","1712-Poptún",null,null,null,null,"2213-Conguaco",null,{"$f":"IF(#REF!=$D$4,D17,IF(#REF!= $E$4,E17,IF(#REF!= $F$4,F17,IF(#REF!= $G$4,G17,IF(#REF!= $H$4,H17,IF(#REF!= $I$4, I17,IF(#REF!= $J$4, J17,IF(#REF!= $K$4, K17,IF(#REF!= $L$4, L17,IF(#REF!= $M$4, M17,IF(#REF!= $N$4, N17,IF(#REF!= $O$4, O17,IF(#REF!= $P$4, P17,IF(#REF!= $Q$4, Q17,IF(#REF!= $R$4, R17,IF(#REF!= $S$4, S17,IF(#REF!= $T$4, T17,IF(#REF!= $U$4, U17,IF(#REF!= $V$4, V17,IF(#REF!= $W$4, W17,IF(#REF!= $X$4, X17,IF(#REF!= $Y$4, Y17,\" \"))))))))))))))))))))))","v":{"$error":"#REF!"}},{"$error":"#REF!"}]
["12","San Marcos","12-San Marcos","0114-Amatitlán","0214-Alotenango","0314-Parramos",null,null,"0614-Nueva Santa Rosa","0714-Santa Cruz La Laguna",null,"0914-Cantel","1014-Patulul",null,"1214-San José El Rodeo","1314-San Rafael La Independencia","1414-San Andrés Sajcabajá",null,"1614-Chahal","1713-Las Cruces",null,null,null,null,"2214-Moyuta",null,{"$f":"IF(#REF!=$D$4,D18,IF(#REF!= $E$4,E18,IF(#REF!= $F$4,F18,IF(#REF!= $G$4,G18,IF(#REF!= $H$4,H18,IF(#REF!= $I$4, I18,IF(#REF!= $J$4, J18,IF(#REF!= $K$4, K18,IF(#REF!= $L$4, L18,IF(#REF!= $M$4, M18,IF(#REF!= $N$4, N18,IF(#REF!= $O$4, O18,IF(#REF!= $P$4, P18,IF(#REF!= $Q$4, Q18,IF(#REF!= $R$4, R18,IF(#REF!= $S$4, S18,IF(#REF!= $T$4, T18,IF(#REF!= $U$4, U18,IF(#REF!= $V$4, V18,IF(#REF!= $W$4, W18,IF(#REF!= $X$4, X18,IF(#REF!= $Y$4, Y18,\" \"))))))))))))))))))))))","v":{"$error":"#REF!"}},{"$error":"#REF!"}]
["13","Huehuetenango","13-Huehuetenango","0115-Villa Nueva","0215-San Antonio Aguas Calientes","0315-Zaragoza",null,null,null,"0715-San Pablo La Laguna",null,"0915-Huitán","1015-Santa Bárbara",null,"1215-Malacatán","1315-Todos Santos Cuchumatánes","1415-Uspantán",null,"1615-Fray Bartolomé de Las Casas",null,null,null,null,null,"2215-Pasaco",null,{"$f":"IF(#REF!=$D$4,D19,IF(#REF!= $E$4,E19,IF(#REF!= $F$4,F19,IF(#REF!= $G$4,G19,IF(#REF!= $H$4,H19,IF(#REF!= $I$4, I19,IF(#REF!= $J$4, J19,IF(#REF!= $K$4, K19,IF(#REF!= $L$4, L19,IF(#REF!= $M$4, M19,IF(#REF!= $N$4, N19,IF(#REF!= $O$4, O19,IF(#REF!= $P$4, P19,IF(#REF!= $Q$4, Q19,IF(#REF!= $R$4, R19,IF(#REF!= $S$4, S19,IF(#REF!= $T$4, T19,IF(#REF!= $U$4, U19,IF(#REF!= $V$4, V19,IF(#REF!= $W$4, W19,IF(#REF!= $X$4, X19,IF(#REF!= $Y$4, Y19,\" \"))))))))))))))))))))))","v":{"$error":"#REF!"}},{"$error":"#REF!"}]
["14","El Quiché","14-El Quiché","0116-Villa Canales","0216-Santa Catalina Barahona","0316-El Tejar",null,null,null,"0716-San Marcos La Laguna",null,"0916-Zunil","1016-San Juan Bautista",null,"1216-Catarina","1316-San Juan Atitán","1416-Sacapulas",null,"1616-Santa Catarina La Tinta",null,null,null,null,null,"2216-San José Acatempa",null,{"$f":"IF(#REF!=$D$4,D20,IF(#REF!= $E$4,E20,IF(#REF!= $F$4,F20,IF(#REF!= $G$4,G20,IF(#REF!= $H$4,H20,IF(#REF!= $I$4, I20,IF(#REF!= $J$4, J20,IF(#REF!= $K$4, K20,IF(#REF!= $L$4, L20,IF(#REF!= $M$4, M20,IF(#REF!= $N$4, N20,IF(#REF!= $O$4, O20,IF(#REF!= $P$4, P20,IF(#REF!= $Q$4, Q20,IF(#REF!= $R$4, R20,IF(#REF!= $S$4, S20,IF(#REF!= $T$4, T20,IF(#REF!= $U$4, U20,IF(#REF!= $V$4, V20,IF(#REF!= $W$4, W20,IF(#REF!= $X$4, X20,IF(#REF!= $Y$4, Y20,\" \"))))))))))))))))))))))","v":{"$error":"#REF!"}},{"$error":"#REF!"}]
["15","Baja Verapaz","15-Baja Verapaz","0117-Petapa",null,null,null,null,null,"0717-San Juan La Laguna",null,"0917-Colomba","1017-Santo Tomás La Unión",null,"1217-Ayutla (Tecún Uman)","1317-Santa Eulalia","1417-San Bartolomé Jocotenango",null,"1617-Raxruha",null,null,null,null,null,"2217-Quezada",null,{"$f":"IF(#REF!=$D$4,D21,IF(#REF!= $E$4,E21,IF(#REF!= $F$4,F21,IF(#REF!= $G$4,G21,IF(#REF!= $H$4,H21,IF(#REF!= $I$4, I21,IF(#REF!= $J$4, J21,IF(#REF!= $K$4, K21,IF(#REF!= $L$4, L21,IF(#REF!= $M$4, M21,IF(#REF!= $N$4, N21,IF(#REF!= $O$4, O21,IF(#REF!= $P$4, P21,IF(#REF!= $Q$4, Q21,IF(#REF!= $R$4, R21,IF(#REF!= $S$4, S21,IF(#REF!= $T$4, T21,IF(#REF!= $U$4, U21,IF(#REF!= $V$4, V21,IF(#REF!= $W$4, W21,IF(#REF!= $X$4, X21,IF(#REF!= $Y$4, Y21,\" \"))))))))))))))))))))))","v":{"$error":"#REF!"}},{"$error":"#REF!"}]
["16","Alta Verapaz","16-Alta Verapaz",null,null,null,null,null,null,"0718-San Pedro La Laguna",null,"0918-San Francisco La Unión","1018-Zunilito",null,"1218-Ocós","1318-San Mateo Ixtatán","1418-Canillá",null,null,null,null,null,null,null,null,null,{"$f":"IF(#REF!=$D$4,D22,IF(#REF!= $E$4,E22,IF(#REF!= $F$4,F22,IF(#REF!= $G$4,G22,IF(#REF!= $H$4,H22,IF(#REF!= $I$4, I22,IF(#REF!= $J$4, J22,IF(#REF!= $K$4, K22,IF(#REF!= $L$4, L22,IF(#REF!= $M$4, M22,IF(#REF!= $N$4, N22,IF(#REF!= $O$4, O22,IF(#REF!= $P$4, P22,IF(#REF!= $Q$4, Q22,IF(#REF!= $R$4, R22,IF(#REF!= $S$4, S22,IF(#REF!= $T$4, T22,IF(#REF!= $U$4, U22,IF(#REF!= $V$4, V22,IF(#REF!= $W$4, W22,IF(#REF!= $X$4, X22,IF(#REF!= $Y$4, Y22,\" \"))))))))))))))))))))))","v":{"$error":"#REF!"}},{"$error":"#REF!"}]
["17","Petén","17-Petén",null,null,null,null,null,null,"0719-Santiago Atitlán",null,"0919-El Palmar","1019-Pueblo Nuevo",null,"1219-San Pablo","1319-Colotenango","1419-Chicamán",null,null,null,null,null,null,null,null,null,{"$f":"IF(#REF!=$D$4,D23,IF(#REF!= $E$4,E23,IF(#REF!= $F$4,F23,IF(#REF!= $G$4,G23,IF(#REF!= $H$4,H23,IF(#REF!= $I$4, I23,IF(#REF!= $J$4, J23,IF(#REF!= $K$4, K23,IF(#REF!= $L$4, L23,IF(#REF!= $M$4, M23,IF(#REF!= $N$4, N23,IF(#REF!= $O$4, O23,IF(#REF!= $P$4, P23,IF(#REF!= $Q$4, Q23,IF(#REF!= $R$4, R23,IF(#REF!= $S$4, S23,IF(#REF!= $T$4, T23,IF(#REF!= $U$4, U23,IF(#REF!= $V$4, V23,IF(#REF!= $W$4, W23,IF(#REF!= $X$4, X23,IF(#REF!= $Y$4, Y23,\" \"))))))))))))))))))))))","v":{"$error":"#REF!"}},{"$error":"#REF!"}]
["18","Izabal","18-Izabal",null,null,null,null,null,null,null,null,"0920-Coatepeque","1020-Río Bravo",null,"1220-El Quetzal","1320-San Sebastián Huehetenango","1420-Ixcán",null,null,null,null,null,null,null,null,null,{"$f":"IF(#REF!=$D$4,D24,IF(#REF!= $E$4,E24,IF(#REF!= $F$4,F24,IF(#REF!= $G$4,G24,IF(#REF!= $H$4,H24,IF(#REF!= $I$4, I24,IF(#REF!= $J$4, J24,IF(#REF!= $K$4, K24,IF(#REF!= $L$4, L24,IF(#REF!= $M$4, M24,IF(#REF!= $N$4, N24,IF(#REF!= $O$4, O24,IF(#REF!= $P$4, P24,IF(#REF!= $Q$4, Q24,IF(#REF!= $R$4, R24,IF(#REF!= $S$4, S24,IF(#REF!= $T$4, T24,IF(#REF!= $U$4, U24,IF(#REF!= $V$4, V24,IF(#REF!= $W$4, W24,IF(#REF!= $X$4, X24,IF(#REF!= $Y$4, Y24,\" \"))))))))))))))))))))))","v":{"$error":"#REF!"}},{"$error":"#REF!"}]
["19","Zacapa","19-Zacapa",null,null,null,null,null,null,null,null,"0921-Génova Cosata Cuca",null,null,"1221-La Reforma","1321-Tectitán","1421-Pachalum",null,null,null,null,null,null,null,null,null,{"$f":"IF(#REF!=$D$4,D25,IF(#REF!= $E$4,E25,IF(#REF!= $F$4,F25,IF(#REF!= $G$4,G25,IF(#REF!= $H$4,H25,IF(#REF!= $I$4, I25,IF(#REF!= $J$4, J25,IF(#REF!= $K$4, K25,IF(#REF!= $L$4, L25,IF(#REF!= $M$4, M25,IF(#REF!= $N$4, N25,IF(#REF!= $O$4, O25,IF(#REF!= $P$4, P25,IF(#REF!= $Q$4, Q25,IF(#REF!= $R$4, R25,IF(#REF!= $S$4, S25,IF(#REF!= $T$4, T25,IF(#REF!= $U$4, U25,IF(#REF!= $V$4, V25,IF(#REF!= $W$4, W25,IF(#REF!= $X$4, X25,IF(#REF!= $Y$4, Y25,\" \"))))))))))))))))))))))","v":{"$error":"#REF!"}},{"$error":"#REF!"}]
["20","Chiquimula","20-Chiquimula",null,null,null,null,null,null,null,null,"0922-Flores ",null,null,"1222-Pajapita","1322-Concepción Huista",null,null,null,null,null,null,null,null,null,null,{"$f":"IF(#REF!=$D$4,D26,IF(#REF!= $E$4,E26,IF(#REF!= $F$4,F26,IF(#REF!= $G$4,G26,IF(#REF!= $H$4,H26,IF(#REF!= $I$4, I26,IF(#REF!= $J$4, J26,IF(#REF!= $K$4, K26,IF(#REF!= $L$4, L26,IF(#REF!= $M$4, M26,IF(#REF!= $N$4, N26,IF(#REF!= $O$4, O26,IF(#REF!= $P$4, P26,IF(#REF!= $Q$4, Q26,IF(#REF!= $R$4, R26,IF(#REF!= $S$4, S26,IF(#REF!= $T$4, T26,IF(#REF!= $U$4, U26,IF(#REF!= $V$4, V26,IF(#REF!= $W$4, W26,IF(#REF!= $X$4, X26,IF(#REF!= $Y$4, Y26,\" \"))))))))))))))))))))))","v":{"$error":"#REF!"}},{"$error":"#REF!"}]
["21","Jalapa","21-Jalapa",null,null,null,null,null,null,null,null,"0923-La Esperanza",null,null,"1223-Ixchiguán","1323-San Juan Ixcoy",null,null,null,null,null,null,null,null,null,null,{"$f":"IF(#REF!=$D$4,D27,IF(#REF!= $E$4,E27,IF(#REF!= $F$4,F27,IF(#REF!= $G$4,G27,IF(#REF!= $H$4,H27,IF(#REF!= $I$4, I27,IF(#REF!= $J$4, J27,IF(#REF!= $K$4, K27,IF(#REF!= $L$4, L27,IF(#REF!= $M$4, M27,IF(#REF!= $N$4, N27,IF(#REF!= $O$4, O27,IF(#REF!= $P$4, P27,IF(#REF!= $Q$4, Q27,IF(#REF!= $R$4, R27,IF(#REF!= $S$4, S27,IF(#REF!= $T$4, T27,IF(#REF!= $U$4, U27,IF(#REF!= $V$4, V27,IF(#REF!= $W$4, W27,IF(#REF!= $X$4, X27,IF(#REF!= $Y$4, Y27,\" \"))))))))))))))))))))))","v":{"$error":"#REF!"}},{"$error":"#REF!"}]
["22","Jutiapa","22-Jutiapa",null,null,null,null,null,null,null,null,"0924-Palestina de Los Altos",null,null,"1224-San José Ojetenam","1324-San Antonio Huista",null,null,null,null,null,null,null,null,null,null,{"$f":"IF(#REF!=$D$4,D28,IF(#REF!= $E$4,E28,IF(#REF!= $F$4,F28,IF(#REF!= $G$4,G28,IF(#REF!= $H$4,H28,IF(#REF!= $I$4, I28,IF(#REF!= $J$4, J28,IF(#REF!= $K$4, K28,IF(#REF!= $L$4, L28,IF(#REF!= $M$4, M28,IF(#REF!= $N$4, N28,IF(#REF!= $O$4, O28,IF(#REF!= $P$4, P28,IF(#REF!= $Q$4, Q28,IF(#REF!= $R$4, R28,IF(#REF!= $S$4, S28,IF(#REF!= $T$4, T28,IF(#REF!= $U$4, U28,IF(#REF!= $V$4, V28,IF(#REF!= $W$4, W28,IF(#REF!= $X$4, X28,IF(#REF!= $Y$4, Y28,\" \"))))))))))))))))))))))","v":{"$error":"#REF!"}},{"$error":"#REF!"}]
[null,null,null,null,null,null,null,null,null,null,null,null,null,null,"1225-San Cristóbal Cucho","1325-San Sebastián Coatán",null,null,null,null,null,null,null,null,null,null,{"$f":"IF(#REF!=$D$4,D29,IF(#REF!= $E$4,E29,IF(#REF!= $F$4,F29,IF(#REF!= $G$4,G29,IF(#REF!= $H$4,H29,IF(#REF!= $I$4, I29,IF(#REF!= $J$4, J29,IF(#REF!= $K$4, K29,IF(#REF!= $L$4, L29,IF(#REF!= $M$4, M29,IF(#REF!= $N$4, N29,IF(#REF!= $O$4, O29,IF(#REF!= $P$4, P29,IF(#REF!= $Q$4, Q29,IF(#REF!= $R$4, R29,IF(#REF!= $S$4, S29,IF(#REF!= $T$4, T29,IF(#REF!= $U$4, U29,IF(#REF!= $V$4, V29,IF(#REF!= $W$4, W29,IF(#REF!= $X$4, X29,IF(#REF!= $Y$4, Y29,\" \"))))))))))))))))))))))","v":{"$error":"#REF!"}},{"$error":"#REF!"}]
[null,null,null,null,null,null,null,null,null,null,null,null,null,null,"1226-Sipacapa","1326-Barillas",null,null,null,null,null,null,null,null,null,null,{"$f":"IF(#REF!=$D$4,D30,IF(#REF!= $E$4,E30,IF(#REF!= $F$4,F30,IF(#REF!= $G$4,G30,IF(#REF!= $H$4,H30,IF(#REF!= $I$4, I30,IF(#REF!= $J$4, J30,IF(#REF!= $K$4, K30,IF(#REF!= $L$4, L30,IF(#REF!= $M$4, M30,IF(#REF!= $N$4, N30,IF(#REF!= $O$4, O30,IF(#REF!= $P$4, P30,IF(#REF!= $Q$4, Q30,IF(#REF!= $R$4, R30,IF(#REF!= $S$4, S30,IF(#REF!= $T$4, T30,IF(#REF!= $U$4, U30,IF(#REF!= $V$4, V30,IF(#REF!= $W$4, W30,IF(#REF!= $X$4, X30,IF(#REF!= $Y$4, Y30,\" \"))))))))))))))))))))))","v":{"$error":"#REF!"}},{"$error":"#REF!"}]
[null,null,null,null,null,null,null,null,null,null,null,null,null,null,"1227-Esquipulas Palo Gordo","1327-Aguacatán",null,null,null,null,null,null,null,null,null,null,{"$f":"IF(#REF!=$D$4,D31,IF(#REF!= $E$4,E31,IF(#REF!= $F$4,F31,IF(#REF!= $G$4,G31,IF(#REF!= $H$4,H31,IF(#REF!= $I$4, I31,IF(#REF!= $J$4, J31,IF(#REF!= $K$4, K31,IF(#REF!= $L$4, L31,IF(#REF!= $M$4, M31,IF(#REF!= $N$4, N31,IF(#REF!= $O$4, O31,IF(#REF!= $P$4, P31,IF(#REF!= $Q$4, Q31,IF(#REF!= $R$4, R31,IF(#REF!= $S$4, S31,IF(#REF!= $T$4, T31,IF(#REF!= $U$4, U31,IF(#REF!= $V$4, V31,IF(#REF!= $W$4, W31,IF(#REF!= $X$4, X31,IF(#REF!= $Y$4, Y31,\" \"))))))))))))))))))))))","v":{"$error":"#REF!"}},{"$error":"#REF!"}]
[null,null,null,null,null,null,null,null,null,null,null,null,null,null,"1228-Río Blanco","1328-San Rafael Petzal",null,null,null,null,null,null,null,null,null,null,{"$f":"IF(#REF!=$D$4,D32,IF(#REF!= $E$4,E32,IF(#REF!= $F$4,F32,IF(#REF!= $G$4,G32,IF(#REF!= $H$4,H32,IF(#REF!= $I$4, I32,IF(#REF!= $J$4, J32,IF(#REF!= $K$4, K32,IF(#REF!= $L$4, L32,IF(#REF!= $M$4, M32,IF(#REF!= $N$4, N32,IF(#REF!= $O$4, O32,IF(#REF!= $P$4, P32,IF(#REF!= $Q$4, Q32,IF(#REF!= $R$4, R32,IF(#REF!= $S$4, S32,IF(#REF!= $T$4, T32,IF(#REF!= $U$4, U32,IF(#REF!= $V$4, V32,IF(#REF!= $W$4, W32,IF(#REF!= $X$4, X32,IF(#REF!= $Y$4, Y32,\" \"))))))))))))))))))))))","v":{"$error":"#REF!"}},{"$error":"#REF!"}]
[null,null,null,null,null,null,null,null,null,null,null,null,null,null,"1229-San Lorenzo","1329-San Gaspar Ixchil",null,null,null,null,null,null,null,null,null,null,{"$f":"IF(#REF!=$D$4,D33,IF(#REF!= $E$4,E33,IF(#REF!= $F$4,F33,IF(#REF!= $G$4,G33,IF(#REF!= $H$4,H33,IF(#REF!= $I$4, I33,IF(#REF!= $J$4, J33,IF(#REF!= $K$4, K33,IF(#REF!= $L$4, L33,IF(#REF!= $M$4, M33,IF(#REF!= $N$4, N33,IF(#REF!= $O$4, O33,IF(#REF!= $P$4, P33,IF(#REF!= $Q$4, Q33,IF(#REF!= $R$4, R33,IF(#REF!= $S$4, S33,IF(#REF!= $T$4, T33,IF(#REF!= $U$4, U33,IF(#REF!= $V$4, V33,IF(#REF!= $W$4, W33,IF(#REF!= $X$4, X33,IF(#REF!= $Y$4, Y33,\" \"))))))))))))))))))))))","v":{"$error":"#REF!"}},{"$error":"#REF!"}]
[null,null,null,null,null,null,null,null,null,null,null,null,null,null,null,"1330-Santiago Chimaltenango",null,null,null,null,null,null,null,null,null,null,{"$f":"IF(#REF!=$D$4,D34,IF(#REF!= $E$4,E34,IF(#REF!= $F$4,F34,IF(#REF!= $G$4,G34,IF(#REF!= $H$4,H34,IF(#REF!= $I$4, I34,IF(#REF!= $J$4, J34,IF(#REF!= $K$4, K34,IF(#REF!= $L$4, L34,IF(#REF!= $M$4, M34,IF(#REF!= $N$4, N34,IF(#REF!= $O$4, O34,IF(#REF!= $P$4, P34,IF(#REF!= $Q$4, Q34,IF(#REF!= $R$4, R34,IF(#REF!= $S$4, S34,IF(#REF!= $T$4, T34,IF(#REF!= $U$4, U34,IF(#REF!= $V$4, V34,IF(#REF!= $W$4, W34,IF(#REF!= $X$4, X34,IF(#REF!= $Y$4, Y34,\" \"))))))))))))))))))))))","v":{"$error":"#REF!"}},{"$error":"#REF!"}]
[null,null,null,null,null,null,null,null,null,null,null,null,null,null,null,"1331-Santa Ana Huista",null,null,null,null,null,null,null,null,null,null,{"$f":"IF(#REF!=$D$4,D35,IF(#REF!= $E$4,E35,IF(#REF!= $F$4,F35,IF(#REF!= $G$4,G35,IF(#REF!= $H$4,H35,IF(#REF!= $I$4, I35,IF(#REF!= $J$4, J35,IF(#REF!= $K$4, K35,IF(#REF!= $L$4, L35,IF(#REF!= $M$4, M35,IF(#REF!= $N$4, N35,IF(#REF!= $O$4, O35,IF(#REF!= $P$4, P35,IF(#REF!= $Q$4, Q35,IF(#REF!= $R$4, R35,IF(#REF!= $S$4, S35,IF(#REF!= $T$4, T35,IF(#REF!= $U$4, U35,IF(#REF!= $V$4, V35,IF(#REF!= $W$4, W35,IF(#REF!= $X$4, X35,IF(#REF!= $Y$4, Y35,\" \"))))))))))))))))))))))","v":{"$error":"#REF!"}},{"$error":"#REF!"}]
[null,null,null,null,null,null,null,null,null,null,null,null,null,null,null,"1332-Unión Cantinil",null,null,null,null,null,null,null,null,null,null,{"$f":"IF(#REF!=$D$4,D36,IF(#REF!= $E$4,E36,IF(#REF!= $F$4,F36,IF(#REF!= $G$4,G36,IF(#REF!= $H$4,H36,IF(#REF!= $I$4, I36,IF(#REF!= $J$4, J36,IF(#REF!= $K$4, K36,IF(#REF!= $L$4, L36,IF(#REF!= $M$4, M36,IF(#REF!= $N$4, N36,IF(#REF!= $O$4, O36,IF(#REF!= $P$4, P36,IF(#REF!= $Q$4, Q36,IF(#REF!= $R$4, R36,IF(#REF!= $S$4, S36,IF(#REF!= $T$4, T36,IF(#REF!= $U$4, U36,IF(#REF!= $V$4, V36,IF(#REF!= $W$4, W36,IF(#REF!= $X$4, X36,IF(#REF!= $Y$4, Y36,\" \"))))))))))))))))))))))","v":{"$error":"#REF!"}},{"$error":"#REF!"}]
[null,null,null,null,null,null,null,null,null,null,null,null,null,null,null,null,null,null,null,null,null,null,null,null,null,null,{"$f":"IF(#REF!=$D$4,D37,IF(#REF!= $E$4,E37,IF(#REF!= $F$4,F37,IF(#REF!= $G$4,G37,IF(#REF!= $H$4,H37,IF(#REF!= $I$4, I37,IF(#REF!= $J$4, J37,IF(#REF!= $K$4, K37,IF(#REF!= $L$4, L37,IF(#REF!= $M$4, M37,IF(#REF!= $N$4, N37,IF(#REF!= $O$4, O37,IF(#REF!= $P$4, P37,IF(#REF!= $Q$4, Q37,IF(#REF!= $R$4, R37,IF(#REF!= $S$4, S37,IF(#REF!= $T$4, T37,IF(#REF!= $U$4, U37,IF(#REF!= $V$4, V37,IF(#REF!= $W$4, W37,IF(#REF!= $X$4, X37,IF(#REF!= $Y$4, Y37,\" \"))))))))))))))))))))))","v":{"$error":"#REF!"}}]
[null,null,null,null,null,null,null,null,null,null,null,null,null,null,null,null,null,null,null,null,null,null,null,null,null,null,{"$f":"IF(#REF!=$D$4,D38,IF(#REF!= $E$4,E38,IF(#REF!= $F$4,F38,IF(#REF!= $G$4,G38,IF(#REF!= $H$4,H38,IF(#REF!= $I$4, I38,IF(#REF!= $J$4, J38,IF(#REF!= $K$4, K38,IF(#REF!= $L$4, L38,IF(#REF!= $M$4, M38,IF(#REF!= $N$4, N38,IF(#REF!= $O$4, O38,IF(#REF!= $P$4, P38,IF(#REF!= $Q$4, Q38,IF(#REF!= $R$4, R38,IF(#REF!= $S$4, S38,IF(#REF!= $T$4, T38,IF(#REF!= $U$4, U38,IF(#REF!= $V$4, V38,IF(#REF!= $W$4, W38,IF(#REF!= $X$4, X38,IF(#REF!= $Y$4, Y38,\" \"))))))))))))))))))))))","v":{"$error":"#REF!"}}]
[null,null,null,null,null,null,null,null,null,null,null,null,null,null,null,null,null,null,null,null,null,null,null,null,null,null,{"$f":"IF(#REF!=$D$4,D39,IF(#REF!= $E$4,E39,IF(#REF!= $F$4,F39,IF(#REF!= $G$4,G39,IF(#REF!= $H$4,H39,IF(#REF!= $I$4, I39,IF(#REF!= $J$4, J39,IF(#REF!= $K$4, K39,IF(#REF!= $L$4, L39,IF(#REF!= $M$4, M39,IF(#REF!= $N$4, N39,IF(#REF!= $O$4, O39,IF(#REF!= $P$4, P39,IF(#REF!= $Q$4, Q39,IF(#REF!= $R$4, R39,IF(#REF!= $S$4, S39,IF(#REF!= $T$4, T39,IF(#REF!= $U$4, U39,IF(#REF!= $V$4, V39,IF(#REF!= $W$4, W39,IF(#REF!= $X$4, X39,IF(#REF!= $Y$4, Y39,\" \"))))))))))))))))))))))","v":{"$error":"#REF!"}}]
[]
[null,null,null,"01-Guatemala","02-Sacatepéquez","03-Chimaltenango","04-El Progreso","05-Escuintla","06-Santa Rosa","07-Sololá","08-Totonicapán","09-Quetzaltenango","10-Suchitepéquez","11-Retalhuleu","12-San Marcos","13-Huehuetenango","14-El Quiché","15-Baja Verapaz","16-Alta Verapaz","17-Petén","18-Izabal","19-Zacapa","20-Chiquimula","21-Jalapa","22-Jutiapa",null,"Formula","Final"]
["Departamento",null,null,"0101-Guatemala","0201-Antigua Guatemala","0301-Chimaltenango","0401-Guastatoya","0501-Escuintla","0601-Cuilapa","0701-Sololá","0801-Totonicapán","0901-Quetzaltenango","1001-Mazatenango","1101-Retalhuleu","1201-San Marcos","1301-Huehuetenango","1401-Santa Cruz del Quiché","1501-Salamá","1601-Cobán","1701-Flores","1801-Puerto Barrios","1901-Zacapa","2001-Chiquimula","2101-Jalapa","2201-Jutiapa",null,{"$f":"IF(#REF!=$D$4,D42,IF(#REF!= $E$4,E42,IF(#REF!= $F$4,F42,IF(#REF!= $G$4,G42,IF(#REF!= $H$4,H42,IF(#REF!= $I$4, I42,IF(#REF!= $J$4, J42,IF(#REF!= $K$4, K42,IF(#REF!= $L$4, L42,IF(#REF!= $M$4, M42,IF(#REF!= $N$4, N42,IF(#REF!= $O$4, O42,IF(#REF!= $P$4, P42,IF(#REF!= $Q$4, Q42,IF(#REF!= $R$4, R42,IF(#REF!= $S$4, S42,IF(#REF!= $T$4, T42,IF(#REF!= $U$4, U42,IF(#REF!= $V$4, V42,IF(#REF!= $W$4, W42,IF(#REF!= $X$4, X42,IF(#REF!= $Y$4, Y42,\" \"))))))))))))))))))))))","v":{"$error":"#REF!"}},{"$f":"IF(AA42=0,\"\",AA42)","v":{"$error":"#REF!"}}]
["Código","Descripción","concatenar","0102-Santa Catarina Pínula","0202-Jocotenango","0302-San José Poaquil","0402-Morazán","0502-Santa Lucía Cotzumalguapa","0602-Barberena","0702-San José Chacayá","0802-San Cristóbal Totonicapan","0902-Salcajá","1002-Cuyotenango","1102-San Sebastián","1202-San Pedro Sacatepéquez","1302-Chiantla","1402-Chiché","1502-San Miguel Chicaj","1602-Santa Cruz Verapaz","1701-Santa Elena","1802-Lívingston","1902-Estanzuela","2002-San José La Arada","2102-San Pedro Pínula","2202-El Progreso",null,{"$f":"IF(#REF!=$D$4,D43,IF(#REF!= $E$4,E43,IF(#REF!= $F$4,F43,IF(#REF!= $G$4,G43,IF(#REF!= $H$4,H43,IF(#REF!= $I$4, I43,IF(#REF!= $J$4, J43,IF(#REF!= $K$4, K43,IF(#REF!= $L$4, L43,IF(#REF!= $M$4, M43,IF(#REF!= $N$4, N43,IF(#REF!= $O$4, O43,IF(#REF!= $P$4, P43,IF(#REF!= $Q$4, Q43,IF(#REF!= $R$4, R43,IF(#REF!= $S$4, S43,IF(#REF!= $T$4, T43,IF(#REF!= $U$4, U43,IF(#REF!= $V$4, V43,IF(#REF!= $W$4, W43,IF(#REF!= $X$4, X43,IF(#REF!= $Y$4, Y43,\" \"))))))))))))))))))))))","v":{"$error":"#REF!"}},{"$f":"IF(AA43=0,\"\",AA43)","v":{"$error":"#REF!"}}]
["01","Guatemala",{"$f":"CONCATENATE(A44,\"-\",B44)","v":"01-Guatemala"},"0103-San José Pínula","0203-Pastores","0303-San Martín Jilotepeque","0403-San Agustín Acasaguastlán","0503-La Democracia","0603-Santa Rosa De Lima","0703-Santa María Visitación","0803-San Francisco El Alto","0903-Olintepeque","1003-San Francisco Zapotitlán","1103-Santa Cruz Muluá","1203-San Antonio Sacatepéquez","1303-Malacatancito","1403-Chinique","1503-Rabinal","1603-San Cristóbal Verapaz","1702-San José","1803-El Estor","1903-Río Hondo","2003-San Juan Ermita","2103-San Luis Jilotepeque","2203-Santa Catarina Mita",null,{"$f":"IF(#REF!=$D$4,D44,IF(#REF!= $E$4,E44,IF(#REF!= $F$4,F44,IF(#REF!= $G$4,G44,IF(#REF!= $H$4,H44,IF(#REF!= $I$4, I44,IF(#REF!= $J$4, J44,IF(#REF!= $K$4, K44,IF(#REF!= $L$4, L44,IF(#REF!= $M$4, M44,IF(#REF!= $N$4, N44,IF(#REF!= $O$4, O44,IF(#REF!= $P$4, P44,IF(#REF!= $Q$4, Q44,IF(#REF!= $R$4, R44,IF(#REF!= $S$4, S44,IF(#REF!= $T$4, T44,IF(#REF!= $U$4, U44,IF(#REF!= $V$4, V44,IF(#REF!= $W$4, W44,IF(#REF!= $X$4, X44,IF(#REF!= $Y$4, Y44,\" \"))))))))))))))))))))))","v":{"$error":"#REF!"}},{"$error":"#REF!"}]
["02","Sacatepéquez","02-Sacatepéquez","0104-San José del Golfo","0204-Sumpango","0304-Comalapa","0404-San Cristóbal Acasaguastlán","0504-Siquinala","0604-Casillas","0704-Santa Lucía Utatlán","0804-San Andrés Xecul","0904-San Carlos Sija","1004-San Bernardino","1104-San Martín Zapotitlán","1204-Comitancillo","1304-Cuilco","1404-Zacualpa","1504-Cubulco","1604-Tactic","1703-San Benito","1804-Morales","1904-Gualán","2004-Jocotán","2104-San Manuel Chaparrón","2204-Agua Blanca",null,{"$f":"IF(#REF!=$D$4,D45,IF(#REF!= $E$4,E45,IF(#REF!= $F$4,F45,IF(#REF!= $G$4,G45,IF(#REF!= $H$4,H45,IF(#REF!= $I$4, I45,IF(#REF!= $J$4, J45,IF(#REF!= $K$4, K45,IF(#REF!= $L$4, L45,IF(#REF!= $M$4, M45,IF(#REF!= $N$4, N45,IF(#REF!= $O$4, O45,IF(#REF!= $P$4, P45,IF(#REF!= $Q$4, Q45,IF(#REF!= $R$4, R45,IF(#REF!= $S$4, S45,IF(#REF!= $T$4, T45,IF(#REF!= $U$4, U45,IF(#REF!= $V$4, V45,IF(#REF!= $W$4, W45,IF(#REF!= $X$4, X45,IF(#REF!= $Y$4, Y45,\" \"))))))))))))))))))))))","v":{"$error":"#REF!"}},{"$error":"#REF!"}]
["03","Chimaltenango","03-Chimaltenango","0105-Palencia","0205-Santo Domingo Xenacoj","0305-Santa Apolonia","0405-El Jícaro","0505-Masagua","0605-San Rafael Las Flores","0705-Nahualá","0805-Momostenango","0905-Sibilia","1005-San José El Idolo","1105-San Felipe","1205-San Miguel Ixtahuacán","1305-Nentón","1405-Chajul","1505-Granados","1605-Tamahú","1704-San Andrés","1805-Los Amates","1905-Teculután","2005-Camotán","2105-San Carlos Alzatate","2205-Asunción Mita",null,{"$f":"IF(#REF!=$D$4,D46,IF(#REF!= $E$4,E46,IF(#REF!= $F$4,F46,IF(#REF!= $G$4,G46,IF(#REF!= $H$4,H46,IF(#REF!= $I$4, I46,IF(#REF!= $J$4, J46,IF(#REF!= $K$4, K46,IF(#REF!= $L$4, L46,IF(#REF!= $M$4, M46,IF(#REF!= $N$4, N46,IF(#REF!= $O$4, O46,IF(#REF!= $P$4, P46,IF(#REF!= $Q$4, Q46,IF(#REF!= $R$4, R46,IF(#REF!= $S$4, S46,IF(#REF!= $T$4, T46,IF(#REF!= $U$4, U46,IF(#REF!= $V$4, V46,IF(#REF!= $W$4, W46,IF(#REF!= $X$4, X46,IF(#REF!= $Y$4, Y46,\" \"))))))))))))))))))))))","v":{"$error":"#REF!"}},{"$error":"#REF!"}]
["04","El Progreso","04-El Progreso","0106-Chinautla","0206-Santiago Sacatepéquez","0306-Tecpan Guatemala","0406-Sansare","0506-Tiquisate","0606-Oratorio","0706-Santa Catarina Ixtahuacán","0806-Santa María Chiquimula","0906-Cabricán","1006-Santo Domingo Suchitepéquez","1106-San Andrés Villa Seca","1206-Concepción Tutuapa","1306-San Pedro Necta","1406-Chichicastenango","1506-El Chol","1606-Tucurú","1705-La Libertad",null,"1906-Usumatlán","2006-Olopa","2106-Monjas","2206-Yupiltepeque",null,{"$f":"IF(#REF!=$D$4,D47,IF(#REF!= $E$4,E47,IF(#REF!= $F$4,F47,IF(#REF!= $G$4,G47,IF(#REF!= $H$4,H47,IF(#REF!= $I$4, I47,IF(#REF!= $J$4, J47,IF(#REF!= $K$4, K47,IF(#REF!= $L$4, L47,IF(#REF!= $M$4, M47,IF(#REF!= $N$4, N47,IF(#REF!= $O$4, O47,IF(#REF!= $P$4, P47,IF(#REF!= $Q$4, Q47,IF(#REF!= $R$4, R47,IF(#REF!= $S$4, S47,IF(#REF!= $T$4, T47,IF(#REF!= $U$4, U47,IF(#REF!= $V$4, V47,IF(#REF!= $W$4, W47,IF(#REF!= $X$4, X47,IF(#REF!= $Y$4, Y47,\" \"))))))))))))))))))))))","v":{"$error":"#REF!"}},{"$error":"#REF!"}]
["05","Escuintla","05-Escuintla","0107-San Pedro Ayampuc","0207-San Bartolomé Milpas Altas","0307-Patzún","0407-Sanarate","0507-La Gomera","0607-San Juan Tecuaco","0707-Santa Clara La Laguna","0807-Santa Lucía La Reforma","0907-Cajolá","1007-San Lorenzo","1107-Champerico","1207-Tacaná","1307-Jacaltenango","1407-Patzité","1507-San Jerónimo","1607-Panzós","1706-San Francisco",null,"1907-Cabañas","2007-Esquipulas","2107-Mataquescuintla","2207-Atescatempa",null,{"$f":"IF(#REF!=$D$4,D48,IF(#REF!= $E$4,E48,IF(#REF!= $F$4,F48,IF(#REF!= $G$4,G48,IF(#REF!= $H$4,H48,IF(#REF!= $I$4, I48,IF(#REF!= $J$4, J48,IF(#REF!= $K$4, K48,IF(#REF!= $L$4, L48,IF(#REF!= $M$4, M48,IF(#REF!= $N$4, N48,IF(#REF!= $O$4, O48,IF(#REF!= $P$4, P48,IF(#REF!= $Q$4, Q48,IF(#REF!= $R$4, R48,IF(#REF!= $S$4, S48,IF(#REF!= $T$4, T48,IF(#REF!= $U$4, U48,IF(#REF!= $V$4, V48,IF(#REF!= $W$4, W48,IF(#REF!= $X$4, X48,IF(#REF!= $Y$4, Y48,\" \"))))))))))))))))))))))","v":{"$error":"#REF!"}},{"$error":"#REF!"}]
["06","Santa Rosa","06-Santa Rosa","0108-Mixco","0208-San Lucas Sacatepéquez","0308-Pochuta","0408-San Antonio La Paz","0508-Guanagazapa","0608-Chiquimulilla","0708-Concepción","0808-San Bartolo","0908-San Miguel Siguilá","1008-Samayac","1108-Nuevo San Carlos","1208-Sibinal","1308-Soloma","1408-San Antonio Ilotenango","1508-Purulhá","1608-Senahú","1707-Santa Ana",null,"1908-San Diego","2008-Concepción Las Minas",null,"2208-Jerez",null,{"$f":"IF(#REF!=$D$4,D49,IF(#REF!= $E$4,E49,IF(#REF!= $F$4,F49,IF(#REF!= $G$4,G49,IF(#REF!= $H$4,H49,IF(#REF!= $I$4, I49,IF(#REF!= $J$4, J49,IF(#REF!= $K$4, K49,IF(#REF!= $L$4, L49,IF(#REF!= $M$4, M49,IF(#REF!= $N$4, N49,IF(#REF!= $O$4, O49,IF(#REF!= $P$4, P49,IF(#REF!= $Q$4, Q49,IF(#REF!= $R$4, R49,IF(#REF!= $S$4, S49,IF(#REF!= $T$4, T49,IF(#REF!= $U$4, U49,IF(#REF!= $V$4, V49,IF(#REF!= $W$4, W49,IF(#REF!= $X$4, X49,IF(#REF!= $Y$4, Y49,\" \"))))))))))))))))))))))","v":{"$error":"#REF!"}},{"$error":"#REF!"}]
["07","Sololá","07-Sololá","0109-San Pedro Sacatepéquez","0209-Santa Lucia Milpas Altas","0309-Patzicía",null,"0509-Puerto San José","0609-Taxisco","0709-San Andrés Semetabaj",null,"0909-San Juan Ostuncalco","1009-San Pablo Jocopilas","1109-El Asintal","1209-Tajumulco","1309-Ixtahuacán","1409-San Pedro Jocopilas",null,"1609-San Pedro Carchá","1708-Dolores",null,"1909-La Unión","2009-Quetzaltepeque",null,"2209-El Adelanto",null,{"$f":"IF(#REF!=$D$4,D50,IF(#REF!= $E$4,E50,IF(#REF!= $F$4,F50,IF(#REF!= $G$4,G50,IF(#REF!= $H$4,H50,IF(#REF!= $I$4, I50,IF(#REF!= $J$4, J50,IF(#REF!= $K$4, K50,IF(#REF!= $L$4, L50,IF(#REF!= $M$4, M50,IF(#REF!= $N$4, N50,IF(#REF!= $O$4, O50,IF(#REF!= $P$4, P50,IF(#REF!= $Q$4, Q50,IF(#REF!= $R$4, R50,IF(#REF!= $S$4, S50,IF(#REF!= $T$4, T50,IF(#REF!= $U$4, U50,IF(#REF!= $V$4, V50,IF(#REF!= $W$4, W50,IF(#REF!= $X$4, X50,IF(#REF!= $Y$4, Y50,\" \"))))))))))))))))))))))","v":{"$error":"#REF!"}},{"$error":"#REF!"}]
["08","Totonicapán","08-Totonicapán","0110-San Juan Sacatepéquez","0210-Magdalena Milpas Altas","0310-Santa Cruz Balanya",null,"0510-Iztapa","0610-Santa María Ixhuatán","0710-Panajachel",null,"0910-San Mateo","1010-San Antonio Suchitepéquez",null,"1210-Tejutla","1310-Santa Bárbara","1410-Cunén",null,"1610-San Juan Chamelco","1709-San Luis",null,"1910-Huité","2010-San Jacinto",null,"2210-Zapotitlán",null,{"$f":"IF(#REF!=$D$4,D51,IF(#REF!= $E$4,E51,IF(#REF!= $F$4,F51,IF(#REF!= $G$4,G51,IF(#REF!= $H$4,H51,IF(#REF!= $I$4, I51,IF(#REF!= $J$4, J51,IF(#REF!= $K$4, K51,IF(#REF!= $L$4, L51,IF(#REF!= $M$4, M51,IF(#REF!= $N$4, N51,IF(#REF!= $O$4, O51,IF(#REF!= $P$4, P51,IF(#REF!= $Q$4, Q51,IF(#REF!= $R$4, R51,IF(#REF!= $S$4, S51,IF(#REF!= $T$4, T51,IF(#REF!= $U$4, U51,IF(#REF!= $V$4, V51,IF(#REF!= $W$4, W51,IF(#REF!= $X$4, X51,IF(#REF!= $Y$4, Y51,\" \"))))))))))))))))))))))","v":{"$error":"#REF!"}},{"$error":"#REF!"}]
["09","Quetzaltenango","09-Quetzaltenango","0111-San Raymundo","0211-Santa María de Jesús","0311-Acatenango",null,"0511-Palín","0611-Guazacapan","0711-Santa Catarina Palopó",null,"0911-Concepción Chiquirichapa","1011-San Miguel Panán",null,"1211-San Rafael Pie De La Cuesta","1311-La Libertad","1411-San Juan Cotzal",null,"1611-Lanquín","1710-Sayaxché",null,null,"2011-Ipala",null,"2211-Comapa",null,{"$f":"IF(#REF!=$D$4,D52,IF(#REF!= $E$4,E52,IF(#REF!= $F$4,F52,IF(#REF!= $G$4,G52,IF(#REF!= $H$4,H52,IF(#REF!= $I$4, I52,IF(#REF!= $J$4, J52,IF(#REF!= $K$4, K52,IF(#REF!= $L$4, L52,IF(#REF!= $M$4, M52,IF(#REF!= $N$4, N52,IF(#REF!= $O$4, O52,IF(#REF!= $P$4, P52,IF(#REF!= $Q$4, Q52,IF(#REF!= $R$4, R52,IF(#REF!= $S$4, S52,IF(#REF!= $T$4, T52,IF(#REF!= $U$4, U52,IF(#REF!= $V$4, V52,IF(#REF!= $W$4, W52,IF(#REF!= $X$4, X52,IF(#REF!= $Y$4, Y52,\" \"))))))))))))))))))))))","v":{"$error":"#REF!"}},{"$error":"#REF!"}]
["10","Suchitepéquez","10-Suchitepéquez","0112-Chuarrancho","0212-Ciudad Vieja","0312-San Pedro Yepocapa",null,"0512-San Vicente Pacaya","0612-Santa Cruz Naranjo","0712-San Antonio Palopó",null,"0912-San Martín Sacatepéquez","1012-San Gabriel",null,"1212-Nuevo Progreso","1312-La Democracia","1412-Joyabaj",null,"1612-Cahabón","1711-Melchor De Mencos",null,null,null,null,"2212-Jalpatagua",null,{"$f":"IF(#REF!=$D$4,D53,IF(#REF!= $E$4,E53,IF(#REF!= $F$4,F53,IF(#REF!= $G$4,G53,IF(#REF!= $H$4,H53,IF(#REF!= $I$4, I53,IF(#REF!= $J$4, J53,IF(#REF!= $K$4, K53,IF(#REF!= $L$4, L53,IF(#REF!= $M$4, M53,IF(#REF!= $N$4, N53,IF(#REF!= $O$4, O53,IF(#REF!= $P$4, P53,IF(#REF!= $Q$4, Q53,IF(#REF!= $R$4, R53,IF(#REF!= $S$4, S53,IF(#REF!= $T$4, T53,IF(#REF!= $U$4, U53,IF(#REF!= $V$4, V53,IF(#REF!= $W$4, W53,IF(#REF!= $X$4, X53,IF(#REF!= $Y$4, Y53,\" \"))))))))))))))))))))))","v":{"$error":"#REF!"}},{"$error":"#REF!"}]
["11","Retalhuleu","11-Retalhuleu","0113-Fraijanes","0213-San Miguel Dueñas","0313-San Andrés Itzapa",null,"0513-Nueva Concepción","0613-Pueblo Nuevo Viñas","0713-San Lucas Tolimán",null,"0913-Almolonga","1013-Chicacao",null,"1213-El Tumbador","1313-San Miguel Acatán","1413-Nebaj",null,"1613-Chisec","1712-Poptún",null,null,null,null,"2213-Conguaco",null,{"$f":"IF(#REF!=$D$4,D54,IF(#REF!= $E$4,E54,IF(#REF!= $F$4,F54,IF(#REF!= $G$4,G54,IF(#REF!= $H$4,H54,IF(#REF!= $I$4, I54,IF(#REF!= $J$4, J54,IF(#REF!= $K$4, K54,IF(#REF!= $L$4, L54,IF(#REF!= $M$4, M54,IF(#REF!= $N$4, N54,IF(#REF!= $O$4, O54,IF(#REF!= $P$4, P54,IF(#REF!= $Q$4, Q54,IF(#REF!= $R$4, R54,IF(#REF!= $S$4, S54,IF(#REF!= $T$4, T54,IF(#REF!= $U$4, U54,IF(#REF!= $V$4, V54,IF(#REF!= $W$4, W54,IF(#REF!= $X$4, X54,IF(#REF!= $Y$4, Y54,\" \"))))))))))))))))))))))","v":{"$error":"#REF!"}},{"$error":"#REF!"}]
["12","San Marcos","12-San Marcos","0114-Amatitlán","0214-Alotenango","0314-Parramos",null,null,"0614-Nueva Santa Rosa","0714-Santa Cruz La Laguna",null,"0914-Cantel","1014-Patulul",null,"1214-San José El Rodeo","1314-San Rafael La Independencia","1414-San Andrés Sajcabajá",null,"1614-Chahal","1713-Las Cruces",null,null,null,null,"2214-Moyuta",null,{"$f":"IF(#REF!=$D$4,D55,IF(#REF!= $E$4,E55,IF(#REF!= $F$4,F55,IF(#REF!= $G$4,G55,IF(#REF!= $H$4,H55,IF(#REF!= $I$4, I55,IF(#REF!= $J$4, J55,IF(#REF!= $K$4, K55,IF(#REF!= $L$4, L55,IF(#REF!= $M$4, M55,IF(#REF!= $N$4, N55,IF(#REF!= $O$4, O55,IF(#REF!= $P$4, P55,IF(#REF!= $Q$4, Q55,IF(#REF!= $R$4, R55,IF(#REF!= $S$4, S55,IF(#REF!= $T$4, T55,IF(#REF!= $U$4, U55,IF(#REF!= $V$4, V55,IF(#REF!= $W$4, W55,IF(#REF!= $X$4, X55,IF(#REF!= $Y$4, Y55,\" \"))))))))))))))))))))))","v":{"$error":"#REF!"}},{"$error":"#REF!"}]
["13","Huehuetenango","13-Huehuetenango","0115-Villa Nueva","0215-San Antonio Aguas Calientes","0315-Zaragoza",null,null,null,"0715-San Pablo La Laguna",null,"0915-Huitán","1015-Santa Bárbara",null,"1215-Malacatán","1315-Todos Santos Cuchumatánes","1415-Uspantán",null,"1615-Fray Bartolomé de Las Casas",null,null,null,null,null,"2215-Pasaco",null,{"$f":"IF(#REF!=$D$4,D56,IF(#REF!= $E$4,E56,IF(#REF!= $F$4,F56,IF(#REF!= $G$4,G56,IF(#REF!= $H$4,H56,IF(#REF!= $I$4, I56,IF(#REF!= $J$4, J56,IF(#REF!= $K$4, K56,IF(#REF!= $L$4, L56,IF(#REF!= $M$4, M56,IF(#REF!= $N$4, N56,IF(#REF!= $O$4, O56,IF(#REF!= $P$4, P56,IF(#REF!= $Q$4, Q56,IF(#REF!= $R$4, R56,IF(#REF!= $S$4, S56,IF(#REF!= $T$4, T56,IF(#REF!= $U$4, U56,IF(#REF!= $V$4, V56,IF(#REF!= $W$4, W56,IF(#REF!= $X$4, X56,IF(#REF!= $Y$4, Y56,\" \"))))))))))))))))))))))","v":{"$error":"#REF!"}},{"$error":"#REF!"}]
["14","El Quiché","14-El Quiché","0116-Villa Canales","0216-Santa Catalina Barahona","0316-El Tejar",null,null,null,"0716-San Marcos La Laguna",null,"0916-Zunil","1016-San Juan Bautista",null,"1216-Catarina","1316-San Juan Atitán","1416-Sacapulas",null,"1616-Santa Catarina La Tinta",null,null,null,null,null,"2216-San José Acatempa",null,{"$f":"IF(#REF!=$D$4,D57,IF(#REF!= $E$4,E57,IF(#REF!= $F$4,F57,IF(#REF!= $G$4,G57,IF(#REF!= $H$4,H57,IF(#REF!= $I$4, I57,IF(#REF!= $J$4, J57,IF(#REF!= $K$4, K57,IF(#REF!= $L$4, L57,IF(#REF!= $M$4, M57,IF(#REF!= $N$4, N57,IF(#REF!= $O$4, O57,IF(#REF!= $P$4, P57,IF(#REF!= $Q$4, Q57,IF(#REF!= $R$4, R57,IF(#REF!= $S$4, S57,IF(#REF!= $T$4, T57,IF(#REF!= $U$4, U57,IF(#REF!= $V$4, V57,IF(#REF!= $W$4, W57,IF(#REF!= $X$4, X57,IF(#REF!= $Y$4, Y57,\" \"))))))))))))))))))))))","v":{"$error":"#REF!"}},{"$error":"#REF!"}]
["15","Baja Verapaz","15-Baja Verapaz","0117-Petapa",null,null,null,null,null,"0717-San Juan La Laguna",null,"0917-Colomba","1017-Santo Tomás La Unión",null,"1217-Ayutla (Tecún Uman)","1317-Santa Eulalia","1417-San Bartolomé Jocotenango",null,"1617-Raxruha",null,null,null,null,null,"2217-Quezada",null,{"$f":"IF(#REF!=$D$4,D58,IF(#REF!= $E$4,E58,IF(#REF!= $F$4,F58,IF(#REF!= $G$4,G58,IF(#REF!= $H$4,H58,IF(#REF!= $I$4, I58,IF(#REF!= $J$4, J58,IF(#REF!= $K$4, K58,IF(#REF!= $L$4, L58,IF(#REF!= $M$4, M58,IF(#REF!= $N$4, N58,IF(#REF!= $O$4, O58,IF(#REF!= $P$4, P58,IF(#REF!= $Q$4, Q58,IF(#REF!= $R$4, R58,IF(#REF!= $S$4, S58,IF(#REF!= $T$4, T58,IF(#REF!= $U$4, U58,IF(#REF!= $V$4, V58,IF(#REF!= $W$4, W58,IF(#REF!= $X$4, X58,IF(#REF!= $Y$4, Y58,\" \"))))))))))))))))))))))","v":{"$error":"#REF!"}},{"$error":"#REF!"}]
["16","Alta Verapaz","16-Alta Verapaz",null,null,null,null,null,null,"0718-San Pedro La Laguna",null,"0918-San Francisco La Unión","1018-Zunilito",null,"1218-Ocós","1318-San Mateo Ixtatán","1418-Canillá",null,null,null,null,null,null,null,null,null,{"$f":"IF(#REF!=$D$4,D59,IF(#REF!= $E$4,E59,IF(#REF!= $F$4,F59,IF(#REF!= $G$4,G59,IF(#REF!= $H$4,H59,IF(#REF!= $I$4, I59,IF(#REF!= $J$4, J59,IF(#REF!= $K$4, K59,IF(#REF!= $L$4, L59,IF(#REF!= $M$4, M59,IF(#REF!= $N$4, N59,IF(#REF!= $O$4, O59,IF(#REF!= $P$4, P59,IF(#REF!= $Q$4, Q59,IF(#REF!= $R$4, R59,IF(#REF!= $S$4, S59,IF(#REF!= $T$4, T59,IF(#REF!= $U$4, U59,IF(#REF!= $V$4, V59,IF(#REF!= $W$4, W59,IF(#REF!= $X$4, X59,IF(#REF!= $Y$4, Y59,\" \"))))))))))))))))))))))","v":{"$error":"#REF!"}},{"$error":"#REF!"}]
["17","Petén","17-Petén",null,null,null,null,null,null,"0719-Santiago Atitlán",null,"0919-El Palmar","1019-Pueblo Nuevo",null,"1219-San Pablo","1319-Colotenango","1419-Chicamán",null,null,null,null,null,null,null,null,null,{"$f":"IF(#REF!=$D$4,D60,IF(#REF!= $E$4,E60,IF(#REF!= $F$4,F60,IF(#REF!= $G$4,G60,IF(#REF!= $H$4,H60,IF(#REF!= $I$4, I60,IF(#REF!= $J$4, J60,IF(#REF!= $K$4, K60,IF(#REF!= $L$4, L60,IF(#REF!= $M$4, M60,IF(#REF!= $N$4, N60,IF(#REF!= $O$4, O60,IF(#REF!= $P$4, P60,IF(#REF!= $Q$4, Q60,IF(#REF!= $R$4, R60,IF(#REF!= $S$4, S60,IF(#REF!= $T$4, T60,IF(#REF!= $U$4, U60,IF(#REF!= $V$4, V60,IF(#REF!= $W$4, W60,IF(#REF!= $X$4, X60,IF(#REF!= $Y$4, Y60,\" \"))))))))))))))))))))))","v":{"$error":"#REF!"}},{"$error":"#REF!"}]
["18","Izabal","18-Izabal",null,null,null,null,null,null,null,null,"0920-Coatepeque","1020-Río Bravo",null,"1220-El Quetzal","1320-San Sebastián Huehetenango","1420-Ixcán",null,null,null,null,null,null,null,null,null,{"$f":"IF(#REF!=$D$4,D61,IF(#REF!= $E$4,E61,IF(#REF!= $F$4,F61,IF(#REF!= $G$4,G61,IF(#REF!= $H$4,H61,IF(#REF!= $I$4, I61,IF(#REF!= $J$4, J61,IF(#REF!= $K$4, K61,IF(#REF!= $L$4, L61,IF(#REF!= $M$4, M61,IF(#REF!= $N$4, N61,IF(#REF!= $O$4, O61,IF(#REF!= $P$4, P61,IF(#REF!= $Q$4, Q61,IF(#REF!= $R$4, R61,IF(#REF!= $S$4, S61,IF(#REF!= $T$4, T61,IF(#REF!= $U$4, U61,IF(#REF!= $V$4, V61,IF(#REF!= $W$4, W61,IF(#REF!= $X$4, X61,IF(#REF!= $Y$4, Y61,\" \"))))))))))))))))))))))","v":{"$error":"#REF!"}},{"$error":"#REF!"}]
["19","Zacapa","19-Zacapa",null,null,null,null,null,null,null,null,"0921-Génova Cosata Cuca",null,null,"1221-La Reforma","1321-Tectitán","1421-Pachalum",null,null,null,null,null,null,null,null,null,{"$f":"IF(#REF!=$D$4,D62,IF(#REF!= $E$4,E62,IF(#REF!= $F$4,F62,IF(#REF!= $G$4,G62,IF(#REF!= $H$4,H62,IF(#REF!= $I$4, I62,IF(#REF!= $J$4, J62,IF(#REF!= $K$4, K62,IF(#REF!= $L$4, L62,IF(#REF!= $M$4, M62,IF(#REF!= $N$4, N62,IF(#REF!= $O$4, O62,IF(#REF!= $P$4, P62,IF(#REF!= $Q$4, Q62,IF(#REF!= $R$4, R62,IF(#REF!= $S$4, S62,IF(#REF!= $T$4, T62,IF(#REF!= $U$4, U62,IF(#REF!= $V$4, V62,IF(#REF!= $W$4, W62,IF(#REF!= $X$4, X62,IF(#REF!= $Y$4, Y62,\" \"))))))))))))))))))))))","v":{"$error":"#REF!"}},{"$error":"#REF!"}]
["20","Chiquimula","20-Chiquimula",null,null,null,null,null,null,null,null,"0922-Flores ",null,null,"1222-Pajapita","1322-Concepción Huista",null,null,null,null,null,null,null,null,null,null,{"$f":"IF(#REF!=$D$4,D63,IF(#REF!= $E$4,E63,IF(#REF!= $F$4,F63,IF(#REF!= $G$4,G63,IF(#REF!= $H$4,H63,IF(#REF!= $I$4, I63,IF(#REF!= $J$4, J63,IF(#REF!= $K$4, K63,IF(#REF!= $L$4, L63,IF(#REF!= $M$4, M63,IF(#REF!= $N$4, N63,IF(#REF!= $O$4, O63,IF(#REF!= $P$4, P63,IF(#REF!= $Q$4, Q63,IF(#REF!= $R$4, R63,IF(#REF!= $S$4, S63,IF(#REF!= $T$4, T63,IF(#REF!= $U$4, U63,IF(#REF!= $V$4, V63,IF(#REF!= $W$4, W63,IF(#REF!= $X$4, X63,IF(#REF!= $Y$4, Y63,\" \"))))))))))))))))))))))","v":{"$error":"#REF!"}},{"$error":"#REF!"}]
["21","Jalapa","21-Jalapa",null,null,null,null,null,null,null,null,"0923-La Esperanza",null,null,"1223-Ixchiguán","1323-San Juan Ixcoy",null,null,null,null,null,null,null,null,null,null,{"$f":"IF(#REF!=$D$4,D64,IF(#REF!= $E$4,E64,IF(#REF!= $F$4,F64,IF(#REF!= $G$4,G64,IF(#REF!= $H$4,H64,IF(#REF!= $I$4, I64,IF(#REF!= $J$4, J64,IF(#REF!= $K$4, K64,IF(#REF!= $L$4, L64,IF(#REF!= $M$4, M64,IF(#REF!= $N$4, N64,IF(#REF!= $O$4, O64,IF(#REF!= $P$4, P64,IF(#REF!= $Q$4, Q64,IF(#REF!= $R$4, R64,IF(#REF!= $S$4, S64,IF(#REF!= $T$4, T64,IF(#REF!= $U$4, U64,IF(#REF!= $V$4, V64,IF(#REF!= $W$4, W64,IF(#REF!= $X$4, X64,IF(#REF!= $Y$4, Y64,\" \"))))))))))))))))))))))","v":{"$error":"#REF!"}},{"$error":"#REF!"}]
["22","Jutiapa","22-Jutiapa",null,null,null,null,null,null,null,null,"0924-Palestina de Los Altos",null,null,"1224-San José Ojetenam","1324-San Antonio Huista",null,null,null,null,null,null,null,null,null,null,{"$f":"IF(#REF!=$D$4,D65,IF(#REF!= $E$4,E65,IF(#REF!= $F$4,F65,IF(#REF!= $G$4,G65,IF(#REF!= $H$4,H65,IF(#REF!= $I$4, I65,IF(#REF!= $J$4, J65,IF(#REF!= $K$4, K65,IF(#REF!= $L$4, L65,IF(#REF!= $M$4, M65,IF(#REF!= $N$4, N65,IF(#REF!= $O$4, O65,IF(#REF!= $P$4, P65,IF(#REF!= $Q$4, Q65,IF(#REF!= $R$4, R65,IF(#REF!= $S$4, S65,IF(#REF!= $T$4, T65,IF(#REF!= $U$4, U65,IF(#REF!= $V$4, V65,IF(#REF!= $W$4, W65,IF(#REF!= $X$4, X65,IF(#REF!= $Y$4, Y65,\" \"))))))))))))))))))))))","v":{"$error":"#REF!"}},{"$error":"#REF!"}]
[null,null,null,null,null,null,null,null,null,null,null,null,null,null,"1225-San Cristóbal Cucho","1325-San Sebastián Coatán",null,null,null,null,null,null,null,null,null,null,{"$f":"IF(#REF!=$D$4,D66,IF(#REF!= $E$4,E66,IF(#REF!= $F$4,F66,IF(#REF!= $G$4,G66,IF(#REF!= $H$4,H66,IF(#REF!= $I$4, I66,IF(#REF!= $J$4, J66,IF(#REF!= $K$4, K66,IF(#REF!= $L$4, L66,IF(#REF!= $M$4, M66,IF(#REF!= $N$4, N66,IF(#REF!= $O$4, O66,IF(#REF!= $P$4, P66,IF(#REF!= $Q$4, Q66,IF(#REF!= $R$4, R66,IF(#REF!= $S$4, S66,IF(#REF!= $T$4, T66,IF(#REF!= $U$4, U66,IF(#REF!= $V$4, V66,IF(#REF!= $W$4, W66,IF(#REF!= $X$4, X66,IF(#REF!= $Y$4, Y66,\" \"))))))))))))))))))))))","v":{"$error":"#REF!"}},{"$error":"#REF!"}]
[null,null,null,null,null,null,null,null,null,null,null,null,null,null,"1226-Sipacapa","1326-Barillas",null,null,null,null,null,null,null,null,null,null,{"$f":"IF(#REF!=$D$4,D67,IF(#REF!= $E$4,E67,IF(#REF!= $F$4,F67,IF(#REF!= $G$4,G67,IF(#REF!= $H$4,H67,IF(#REF!= $I$4, I67,IF(#REF!= $J$4, J67,IF(#REF!= $K$4, K67,IF(#REF!= $L$4, L67,IF(#REF!= $M$4, M67,IF(#REF!= $N$4, N67,IF(#REF!= $O$4, O67,IF(#REF!= $P$4, P67,IF(#REF!= $Q$4, Q67,IF(#REF!= $R$4, R67,IF(#REF!= $S$4, S67,IF(#REF!= $T$4, T67,IF(#REF!= $U$4, U67,IF(#REF!= $V$4, V67,IF(#REF!= $W$4, W67,IF(#REF!= $X$4, X67,IF(#REF!= $Y$4, Y67,\" \"))))))))))))))))))))))","v":{"$error":"#REF!"}},{"$error":"#REF!"}]
[null,null,null,null,null,null,null,null,null,null,null,null,null,null,"1227-Esquipulas Palo Gordo","1327-Aguacatán",null,null,null,null,null,null,null,null,null,null,{"$f":"IF(#REF!=$D$4,D68,IF(#REF!= $E$4,E68,IF(#REF!= $F$4,F68,IF(#REF!= $G$4,G68,IF(#REF!= $H$4,H68,IF(#REF!= $I$4, I68,IF(#REF!= $J$4, J68,IF(#REF!= $K$4, K68,IF(#REF!= $L$4, L68,IF(#REF!= $M$4, M68,IF(#REF!= $N$4, N68,IF(#REF!= $O$4, O68,IF(#REF!= $P$4, P68,IF(#REF!= $Q$4, Q68,IF(#REF!= $R$4, R68,IF(#REF!= $S$4, S68,IF(#REF!= $T$4, T68,IF(#REF!= $U$4, U68,IF(#REF!= $V$4, V68,IF(#REF!= $W$4, W68,IF(#REF!= $X$4, X68,IF(#REF!= $Y$4, Y68,\" \"))))))))))))))))))))))","v":{"$error":"#REF!"}},{"$error":"#REF!"}]
[null,null,null,null,null,null,null,null,null,null,null,null,null,null,"1228-Río Blanco","1328-San Rafael Petzal",null,null,null,null,null,null,null,null,null,null,{"$f":"IF(#REF!=$D$4,D69,IF(#REF!= $E$4,E69,IF(#REF!= $F$4,F69,IF(#REF!= $G$4,G69,IF(#REF!= $H$4,H69,IF(#REF!= $I$4, I69,IF(#REF!= $J$4, J69,IF(#REF!= $K$4, K69,IF(#REF!= $L$4, L69,IF(#REF!= $M$4, M69,IF(#REF!= $N$4, N69,IF(#REF!= $O$4, O69,IF(#REF!= $P$4, P69,IF(#REF!= $Q$4, Q69,IF(#REF!= $R$4, R69,IF(#REF!= $S$4, S69,IF(#REF!= $T$4, T69,IF(#REF!= $U$4, U69,IF(#REF!= $V$4, V69,IF(#REF!= $W$4, W69,IF(#REF!= $X$4, X69,IF(#REF!= $Y$4, Y69,\" \"))))))))))))))))))))))","v":{"$error":"#REF!"}},{"$error":"#REF!"}]
[null,null,null,null,null,null,null,null,null,null,null,null,null,null,"1229-San Lorenzo","1329-San Gaspar Ixchil",null,null,null,null,null,null,null,null,null,null,{"$f":"IF(#REF!=$D$4,D70,IF(#REF!= $E$4,E70,IF(#REF!= $F$4,F70,IF(#REF!= $G$4,G70,IF(#REF!= $H$4,H70,IF(#REF!= $I$4, I70,IF(#REF!= $J$4, J70,IF(#REF!= $K$4, K70,IF(#REF!= $L$4, L70,IF(#REF!= $M$4, M70,IF(#REF!= $N$4, N70,IF(#REF!= $O$4, O70,IF(#REF!= $P$4, P70,IF(#REF!= $Q$4, Q70,IF(#REF!= $R$4, R70,IF(#REF!= $S$4, S70,IF(#REF!= $T$4, T70,IF(#REF!= $U$4, U70,IF(#REF!= $V$4, V70,IF(#REF!= $W$4, W70,IF(#REF!= $X$4, X70,IF(#REF!= $Y$4, Y70,\" \"))))))))))))))))))))))","v":{"$error":"#REF!"}},{"$error":"#REF!"}]
[null,null,null,null,null,null,null,null,null,null,null,null,null,null,null,"1330-Santiago Chimaltenango",null,null,null,null,null,null,null,null,null,null,{"$f":"IF(#REF!=$D$4,D71,IF(#REF!= $E$4,E71,IF(#REF!= $F$4,F71,IF(#REF!= $G$4,G71,IF(#REF!= $H$4,H71,IF(#REF!= $I$4, I71,IF(#REF!= $J$4, J71,IF(#REF!= $K$4, K71,IF(#REF!= $L$4, L71,IF(#REF!= $M$4, M71,IF(#REF!= $N$4, N71,IF(#REF!= $O$4, O71,IF(#REF!= $P$4, P71,IF(#REF!= $Q$4, Q71,IF(#REF!= $R$4, R71,IF(#REF!= $S$4, S71,IF(#REF!= $T$4, T71,IF(#REF!= $U$4, U71,IF(#REF!= $V$4, V71,IF(#REF!= $W$4, W71,IF(#REF!= $X$4, X71,IF(#REF!= $Y$4, Y71,\" \"))))))))))))))))))))))","v":{"$error":"#REF!"}},{"$error":"#REF!"}]
[null,null,null,null,null,null,null,null,null,null,null,null,null,null,null,"1331-Santa Ana Huista",null,null,null,null,null,null,null,null,null,null,{"$f":"IF(#REF!=$D$4,D72,IF(#REF!= $E$4,E72,IF(#REF!= $F$4,F72,IF(#REF!= $G$4,G72,IF(#REF!= $H$4,H72,IF(#REF!= $I$4, I72,IF(#REF!= $J$4, J72,IF(#REF!= $K$4, K72,IF(#REF!= $L$4, L72,IF(#REF!= $M$4, M72,IF(#REF!= $N$4, N72,IF(#REF!= $O$4, O72,IF(#REF!= $P$4, P72,IF(#REF!= $Q$4, Q72,IF(#REF!= $R$4, R72,IF(#REF!= $S$4, S72,IF(#REF!= $T$4, T72,IF(#REF!= $U$4, U72,IF(#REF!= $V$4, V72,IF(#REF!= $W$4, W72,IF(#REF!= $X$4, X72,IF(#REF!= $Y$4, Y72,\" \"))))))))))))))))))))))","v":{"$error":"#REF!"}},{"$error":"#REF!"}]
[null,null,null,null,null,null,null,null,null,null,null,null,null,null,null,"1332-Unión Cantinil",null,null,null,null,null,null,null,null,null,null,{"$f":"IF(#REF!=$D$4,D73,IF(#REF!= $E$4,E73,IF(#REF!= $F$4,F73,IF(#REF!= $G$4,G73,IF(#REF!= $H$4,H73,IF(#REF!= $I$4, I73,IF(#REF!= $J$4, J73,IF(#REF!= $K$4, K73,IF(#REF!= $L$4, L73,IF(#REF!= $M$4, M73,IF(#REF!= $N$4, N73,IF(#REF!= $O$4, O73,IF(#REF!= $P$4, P73,IF(#REF!= $Q$4, Q73,IF(#REF!= $R$4, R73,IF(#REF!= $S$4, S73,IF(#REF!= $T$4, T73,IF(#REF!= $U$4, U73,IF(#REF!= $V$4, V73,IF(#REF!= $W$4, W73,IF(#REF!= $X$4, X73,IF(#REF!= $Y$4, Y73,\" \"))))))))))))))))))))))","v":{"$error":"#REF!"}},{"$error":"#REF!"}]
[null,null,null,null,null,null,null,null,null,null,null,null,null,null,null,null,null,null,null,null,null,null,null,null,null,null,null,""]